Departmental Family,Entity,Date,Expense type,Expense area,Supplier,Transaction Number,Amount,Description
Department for Education,DEPARTMENT FOR EDUCATION,03/10/2016,Programme costs,Early Years Group,FAMILY & CHILDCARE TRUST,4000248697,43851.04,Funding to deliver policies (excluding consultancy) paid to third parties via a service delivery contract
Department for Education,DEPARTMENT FOR EDUCATION,03/10/2016,Programme costs,Post 16 and Disadvantage Group,ATKINS LTD,4000248699,60713.25,Funding to deliver policies (excluding consultancy) paid to third parties via a service delivery contract
Department for Education,DEPARTMENT FOR EDUCATION,03/10/2016,Grants,Children's Services Special Educational Needs Group,THE FAMILY FUND TRUST,4000248710,2397000.00,Grants to educational establishments or not for profit organisations including other businesses
Department for Education,NATIONAL COLLEGE FOR TEACHING AND LEADERSHIP AGENCY,03/10/2016,Programme costs,Delivery Directorate,FUTURE LEADERS LTD,4000248729,138575.00,Funding to deliver policies (excluding consultancy) paid to third parties via a service delivery contract
Department for Education,NATIONAL COLLEGE FOR TEACHING AND LEADERSHIP AGENCY,03/10/2016,Programme costs,Delivery Directorate,TEACH FIRST,4000248750,2684790.17,Funding to deliver policies (excluding consultancy) paid to third parties via a service delivery contract
Department for Education,DEPARTMENT FOR EDUCATION,03/10/2016,ICT,Portfolio Management Board,CAPGEMINI UK PLC,4000248722,44373.09,ICT Services
Department for Education,DEPARTMENT FOR EDUCATION,03/10/2016,Programme costs,"Children's Services, Equalities and Communication Safeguarding Group",THE FRONTLINE ORGANISATION,4000248755,63290.75,Funding to deliver policies (excluding consultancy) paid to third parties via a service delivery contract
Department for Education,STANDARDS AND TESTING AGENCY,03/10/2016,Programme costs,Test Development Division,NFER,4000248761,52169.00,Funding to deliver policies (excluding consultancy) paid to third parties via a service delivery contract
Department for Education,DEPARTMENT FOR EDUCATION,03/10/2016,ICT,Portfolio Management Board,CAPRICORN VENTIS LTD,4000248754,22000.00,ICT Services
Department for Education,DEPARTMENT FOR EDUCATION,03/10/2016,Professional Services Other,Strategic Analysis and Research Group,TNS BMRB,4000248702,600000.00,Research and evaluation activities
Department for Education,NATIONAL COLLEGE FOR TEACHING AND LEADERSHIP AGENCY,04/10/2016,Grants,Operations Directorate,LINCOLNSHIRE TEACHING SCHOOL ALLIANCE,4000248770,36130.64,Grants to educational establishments or not for profit organisations including other businesses
Department for Education,NATIONAL COLLEGE FOR TEACHING AND LEADERSHIP AGENCY,04/10/2016,Grants,Operations Directorate,UNIVERSITY OF CUMBRIA,4000248774,244748.72,Grants to educational establishments or not for profit organisations including other businesses
Department for Education,NATIONAL COLLEGE FOR TEACHING AND LEADERSHIP AGENCY,04/10/2016,Grants,Delivery Directorate,UNIVERSITY OF CUMBRIA,4000248774,23100.00,Grants to educational establishments or not for profit organisations including other businesses
Department for Education,DEPARTMENT FOR EDUCATION,04/10/2016,Grants,"Children's Services, Equalities and Communication Safeguarding Group",ST CHRISTOPHERS FELLOWSHIP,4000248775,291606.54,Grants to educational establishments or not for profit organisations including other businesses
Department for Education,DEPARTMENT FOR EDUCATION,04/10/2016,Grants,System Reform Group,NATIONAL GOVERNORS ASSOCIATION,4000248776,25280.00,Grants to educational establishments or not for profit organisations including other businesses
Department for Education,NATIONAL COLLEGE FOR TEACHING AND LEADERSHIP AGENCY,04/10/2016,Grants,Operations Directorate,DEYES HIGH SCHOOL,4000248778,29253.36,Grants to educational establishments or not for profit organisations including other businesses
Department for Education,NATIONAL COLLEGE FOR TEACHING AND LEADERSHIP AGENCY,04/10/2016,Grants,Operations Directorate,LAMPTON LWA SCITT,4000248781,33975.00,Grants to educational establishments or not for profit organisations including other businesses
Department for Education,NATIONAL COLLEGE FOR TEACHING AND LEADERSHIP AGENCY,04/10/2016,Grants,Operations Directorate,UNIVERSITY OF HULL,4000248782,183882.64,Grants to educational establishments or not for profit organisations including other businesses
Department for Education,NATIONAL COLLEGE FOR TEACHING AND LEADERSHIP AGENCY,04/10/2016,Grants,Operations Directorate,UNIVERSITY OF HULL,4000248782,7000.00,Grants to educational establishments or not for profit organisations including other businesses
Department for Education,NATIONAL COLLEGE FOR TEACHING AND LEADERSHIP AGENCY,04/10/2016,Grants,Operations Directorate,UNIVERSITY OF BRISTOL,4000248783,223867.52,Grants to educational establishments or not for profit organisations including other businesses
Department for Education,NATIONAL COLLEGE FOR TEACHING AND LEADERSHIP AGENCY,04/10/2016,Grants,Operations Directorate,MIDDLESEX UNIVERSITY,4000248788,107024.00,Grants to educational establishments or not for profit organisations including other businesses
Department for Education,NATIONAL COLLEGE FOR TEACHING AND LEADERSHIP AGENCY,04/10/2016,Grants,Delivery Directorate,MIDDLESEX UNIVERSITY,4000248788,32670.00,Grants to educational establishments or not for profit organisations including other businesses
Department for Education,DEPARTMENT FOR EDUCATION,04/10/2016,Grants,"Children's Services, Equalities and Communication Safeguarding Group",DONCASTER CHILDRENS TRUST,4000248791,229927.59,Grants to educational establishments or not for profit organisations including other businesses
Department for Education,DEPARTMENT FOR EDUCATION,04/10/2016,Grants,"Children's Services, Equalities and Communication Safeguarding Group",RESOLUTIONS CONSULTANCY PTY LTD,4000248792,36960.00,Grants to educational establishments or not for profit organisations including other businesses
Department for Education,NATIONAL COLLEGE FOR TEACHING AND LEADERSHIP AGENCY,04/10/2016,Grants,Delivery Directorate,UNIVERSITY OF GREENWICH,4000248797,6400.00,Grants to educational establishments or not for profit organisations including other businesses
Department for Education,NATIONAL COLLEGE FOR TEACHING AND LEADERSHIP AGENCY,04/10/2016,Grants,Operations Directorate,UNIVERSITY OF GREENWICH,4000248797,127628.40,Grants to educational establishments or not for profit organisations including other businesses
Department for Education,NATIONAL COLLEGE FOR TEACHING AND LEADERSHIP AGENCY,04/10/2016,Grants,Operations Directorate,UNIVERSITY OF GREENWICH,4000248797,7410.00,Grants to educational establishments or not for profit organisations including other businesses
Department for Education,NATIONAL COLLEGE FOR TEACHING AND LEADERSHIP AGENCY,04/10/2016,Grants,Operations Directorate,UNIVERSITY OF GREENWICH,4000248797,19950.00,Grants to educational establishments or not for profit organisations including other businesses
Department for Education,NATIONAL COLLEGE FOR TEACHING AND LEADERSHIP AGENCY,04/10/2016,Grants,Delivery Directorate,UNIVERSITY OF GREENWICH,4000248797,52305.00,Grants to educational establishments or not for profit organisations including other businesses
Department for Education,NATIONAL COLLEGE FOR TEACHING AND LEADERSHIP AGENCY,04/10/2016,Grants,Operations Directorate,ESSEX COUNTY COUNCIL,4000248799,27005.36,Grants to educational establishments or not for profit organisations including other businesses
Department for Education,NATIONAL COLLEGE FOR TEACHING AND LEADERSHIP AGENCY,04/10/2016,Grants,Operations Directorate,LONDON METROPOLITAN UNIVERSITY,4000248802,187655.12,Grants to educational establishments or not for profit organisations including other businesses
Department for Education,NATIONAL COLLEGE FOR TEACHING AND LEADERSHIP AGENCY,04/10/2016,Grants,Operations Directorate,NOTTINGHAM TRENT UNIVERSITY,4000248804,105338.48,Grants to educational establishments or not for profit organisations including other businesses
Department for Education,NATIONAL COLLEGE FOR TEACHING AND LEADERSHIP AGENCY,04/10/2016,Grants,Operations Directorate,NOTTINGHAM TRENT UNIVERSITY,4000248804,11250.00,Grants to educational establishments or not for profit organisations including other businesses
Department for Education,NATIONAL COLLEGE FOR TEACHING AND LEADERSHIP AGENCY,04/10/2016,Grants,Delivery Directorate,NOTTINGHAM TRENT UNIVERSITY,4000248804,7700.00,Grants to educational establishments or not for profit organisations including other businesses
Department for Education,NATIONAL COLLEGE FOR TEACHING AND LEADERSHIP AGENCY,04/10/2016,Grants,Operations Directorate,UNIVERSITY OF WORCESTER,4000248805,169932.72,Grants to educational establishments or not for profit organisations including other businesses
Department for Education,NATIONAL COLLEGE FOR TEACHING AND LEADERSHIP AGENCY,04/10/2016,Grants,Operations Directorate,PILGRIM SCITT,4000248807,40240.72,Grants to educational establishments or not for profit organisations including other businesses
Department for Education,NATIONAL COLLEGE FOR TEACHING AND LEADERSHIP AGENCY,04/10/2016,Grants,Operations Directorate,NORTH BEDS SCITT CONSORTIUM,4000248810,32884.56,Grants to educational establishments or not for profit organisations including other businesses
Department for Education,NATIONAL COLLEGE FOR TEACHING AND LEADERSHIP AGENCY,04/10/2016,Grants,Operations Directorate,THE OAKS SCITT,4000248813,52683.76,Grants to educational establishments or not for profit organisations including other businesses
Department for Education,NATIONAL COLLEGE FOR TEACHING AND LEADERSHIP AGENCY,04/10/2016,Grants,Operations Directorate,UNIVERSITY OF HERTFORDSHIRE,4000248820,105056.00,Grants to educational establishments or not for profit organisations including other businesses
Department for Education,NATIONAL COLLEGE FOR TEACHING AND LEADERSHIP AGENCY,04/10/2016,Grants,Operations Directorate,UNIVERSITY OF NORTHUMBRIA,4000248821,56784.72,Grants to educational establishments or not for profit organisations including other businesses
Department for Education,NATIONAL COLLEGE FOR TEACHING AND LEADERSHIP AGENCY,04/10/2016,Grants,Delivery Directorate,UNIVERSITY OF NORTHUMBRIA,4000248821,14795.00,Grants to educational establishments or not for profit organisations including other businesses
Department for Education,DEPARTMENT FOR EDUCATION,04/10/2016,Grants,Academies Regional Delivery Group,DIAMOND LEARNING PARTNERSHIP TRUST,4000248823,70000.00,Grants to educational establishments or not for profit organisations including other businesses
Department for Education,NATIONAL COLLEGE FOR TEACHING AND LEADERSHIP AGENCY,04/10/2016,Grants,Operations Directorate,NEWMAN COLLEGE,4000248825,106430.32,Grants to educational establishments or not for profit organisations including other businesses
Department for Education,NATIONAL COLLEGE FOR TEACHING AND LEADERSHIP AGENCY,04/10/2016,Grants,Delivery Directorate,NEWMAN COLLEGE,4000248825,12045.00,Grants to educational establishments or not for profit organisations including other businesses
Department for Education,DEPARTMENT FOR EDUCATION,04/10/2016,Grants,Academies Regional Delivery Group,HOLLY LODGE PRIMARY SCHOOL,4000248826,25000.00,Grants to educational establishments or not for profit organisations including other businesses
Department for Education,NATIONAL COLLEGE FOR TEACHING AND LEADERSHIP AGENCY,04/10/2016,Grants,Operations Directorate,MID SOMERSET CONSORTIUM FOR TEACHER TRAINING,4000248827,50880.00,Grants to educational establishments or not for profit organisations including other businesses
Department for Education,NATIONAL COLLEGE FOR TEACHING AND LEADERSHIP AGENCY,04/10/2016,Grants,Operations Directorate,ARK SCHOOLS,4000248833,39642.64,Grants to educational establishments or not for profit organisations including other businesses
Department for Education,NATIONAL COLLEGE FOR TEACHING AND LEADERSHIP AGENCY,04/10/2016,Grants,Operations Directorate,DURHAM SECONDARY APPLIED SCITT,4000248834,59440.00,Grants to educational establishments or not for profit organisations including other businesses
Department for Education,NATIONAL COLLEGE FOR TEACHING AND LEADERSHIP AGENCY,04/10/2016,Grants,Operations Directorate,UNIVERSITY OF EAST LONDON,4000248843,217946.00,Grants to educational establishments or not for profit organisations including other businesses
Department for Education,NATIONAL COLLEGE FOR TEACHING AND LEADERSHIP AGENCY,04/10/2016,Grants,Operations Directorate,UNIVERSITY OF OXFORD,4000248845,204638.16,Grants to educational establishments or not for profit organisations including other businesses
Department for Education,NATIONAL COLLEGE FOR TEACHING AND LEADERSHIP AGENCY,04/10/2016,Grants,Operations Directorate,THE COLLEGE OF ST MARK & ST JOHN,4000248848,48539.68,Grants to educational establishments or not for profit organisations including other businesses
Department for Education,NATIONAL COLLEGE FOR TEACHING AND LEADERSHIP AGENCY,04/10/2016,Grants,Delivery Directorate,THE COLLEGE OF ST MARK & ST JOHN,4000248848,14630.00,Grants to educational establishments or not for profit organisations including other businesses
Department for Education,NATIONAL COLLEGE FOR TEACHING AND LEADERSHIP AGENCY,04/10/2016,Grants,Operations Directorate,BISHOP GROSSETESTE COLLEGE,4000248849,101420.32,Grants to educational establishments or not for profit organisations including other businesses
Department for Education,NATIONAL COLLEGE FOR TEACHING AND LEADERSHIP AGENCY,04/10/2016,Grants,Delivery Directorate,BISHOP GROSSETESTE COLLEGE,4000248849,12815.00,Grants to educational establishments or not for profit organisations including other businesses
Department for Education,NATIONAL COLLEGE FOR TEACHING AND LEADERSHIP AGENCY,04/10/2016,Grants,Operations Directorate,BIRMINGHAM COLLEGE OF FOOD TOURISM & CRE,4000248850,9120.00,Grants to educational establishments or not for profit organisations including other businesses
Department for Education,NATIONAL COLLEGE FOR TEACHING AND LEADERSHIP AGENCY,04/10/2016,Grants,Delivery Directorate,BIRMINGHAM COLLEGE OF FOOD TOURISM & CRE,4000248850,30965.00,Grants to educational establishments or not for profit organisations including other businesses
Department for Education,NATIONAL COLLEGE FOR TEACHING AND LEADERSHIP AGENCY,04/10/2016,Grants,Operations Directorate,BILLERICAY EDUCATIONAL CONSORTIUM,4000248851,39733.04,Grants to educational establishments or not for profit organisations including other businesses
Department for Education,NATIONAL COLLEGE FOR TEACHING AND LEADERSHIP AGENCY,04/10/2016,Grants,Operations Directorate,LEICESTERSHIRE SECONDARY SCITT,4000248852,37354.64,Grants to educational establishments or not for profit organisations including other businesses
Department for Education,NATIONAL COLLEGE FOR TEACHING AND LEADERSHIP AGENCY,04/10/2016,Grants,Operations Directorate,UNIVERSITY OF WARWICK,4000248857,181065.60,Grants to educational establishments or not for profit organisations including other businesses
Department for Education,NATIONAL COLLEGE FOR TEACHING AND LEADERSHIP AGENCY,04/10/2016,Grants,Delivery Directorate,UNIVERSITY OF WARWICK,4000248857,22990.00,Grants to educational establishments or not for profit organisations including other businesses
Department for Education,NATIONAL COLLEGE FOR TEACHING AND LEADERSHIP AGENCY,04/10/2016,Grants,Operations Directorate,UNIVERSITY OF BEDFORDSHIRE,4000248859,65478.16,Grants to educational establishments or not for profit organisations including other businesses
Department for Education,NATIONAL COLLEGE FOR TEACHING AND LEADERSHIP AGENCY,04/10/2016,Grants,Delivery Directorate,UNIVERSITY OF BEDFORDSHIRE,4000248859,47685.00,Grants to educational establishments or not for profit organisations including other businesses
Department for Education,NATIONAL COLLEGE FOR TEACHING AND LEADERSHIP AGENCY,04/10/2016,Grants,Operations Directorate,LOUGHBOROUGH UNIVERSITY ENTERPRISE LTD,4000248860,44528.00,Grants to educational establishments or not for profit organisations including other businesses
Department for Education,DEPARTMENT FOR EDUCATION,04/10/2016,Grants,System Reform Group,HAMPSHIRE COUNTY COUNCIL,4000248861,25760.00,Grants to educational establishments or not for profit organisations including other businesses
Department for Education,NATIONAL COLLEGE FOR TEACHING AND LEADERSHIP AGENCY,04/10/2016,Grants,Operations Directorate,BATH SPA UNIVERSITY,4000248862,197290.96,Grants to educational establishments or not for profit organisations including other businesses
Department for Education,NATIONAL COLLEGE FOR TEACHING AND LEADERSHIP AGENCY,04/10/2016,Grants,Delivery Directorate,BATH SPA UNIVERSITY,4000248862,23705.00,Grants to educational establishments or not for profit organisations including other businesses
Department for Education,NATIONAL COLLEGE FOR TEACHING AND LEADERSHIP AGENCY,04/10/2016,Grants,Delivery Directorate,SHEFFIELD HALLAM UNIVERSITY,4000248865,3200.00,Grants to educational establishments or not for profit organisations including other businesses
Department for Education,NATIONAL COLLEGE FOR TEACHING AND LEADERSHIP AGENCY,04/10/2016,Grants,Operations Directorate,SHEFFIELD HALLAM UNIVERSITY,4000248865,339302.08,Grants to educational establishments or not for profit organisations including other businesses
Department for Education,NATIONAL COLLEGE FOR TEACHING AND LEADERSHIP AGENCY,04/10/2016,Grants,Operations Directorate,SHEFFIELD HALLAM UNIVERSITY,4000248865,86190.00,Grants to educational establishments or not for profit organisations including other businesses
Department for Education,NATIONAL COLLEGE FOR TEACHING AND LEADERSHIP AGENCY,04/10/2016,Grants,Operations Directorate,SHEFFIELD HALLAM UNIVERSITY,4000248865,10000.00,Grants to educational establishments or not for profit organisations including other businesses
Department for Education,NATIONAL COLLEGE FOR TEACHING AND LEADERSHIP AGENCY,04/10/2016,Grants,Operations Directorate,SHEFFIELD HALLAM UNIVERSITY,4000248865,13800.00,Grants to educational establishments or not for profit organisations including other businesses
Department for Education,NATIONAL COLLEGE FOR TEACHING AND LEADERSHIP AGENCY,04/10/2016,Grants,Delivery Directorate,SHEFFIELD HALLAM UNIVERSITY,4000248865,24805.00,Grants to educational establishments or not for profit organisations including other businesses
Department for Education,NATIONAL COLLEGE FOR TEACHING AND LEADERSHIP AGENCY,04/10/2016,Grants,Operations Directorate,UNIVERSITY OF BRIGHTON,4000248867,179482.88,Grants to educational establishments or not for profit organisations including other businesses
Department for Education,NATIONAL COLLEGE FOR TEACHING AND LEADERSHIP AGENCY,04/10/2016,Grants,Delivery Directorate,UNIVERSITY OF BRIGHTON,4000248867,19250.00,Grants to educational establishments or not for profit organisations including other businesses
Department for Education,NATIONAL COLLEGE FOR TEACHING AND LEADERSHIP AGENCY,04/10/2016,Grants,Operations Directorate,NOTLEY HIGH SCHOOL & BRAINTREE SIXTH FORM,4000248873,28693.36,Grants to educational establishments or not for profit organisations including other businesses
Department for Education,NATIONAL COLLEGE FOR TEACHING AND LEADERSHIP AGENCY,04/10/2016,Grants,Delivery Directorate,BRADFORD COLLEGE,4000248874,18240.00,Grants to educational establishments or not for profit organisations including other businesses
Department for Education,NATIONAL COLLEGE FOR TEACHING AND LEADERSHIP AGENCY,04/10/2016,Grants,Operations Directorate,BRADFORD COLLEGE,4000248874,78848.40,Grants to educational establishments or not for profit organisations including other businesses
Department for Education,NATIONAL COLLEGE FOR TEACHING AND LEADERSHIP AGENCY,04/10/2016,Grants,Operations Directorate,BRADFORD COLLEGE,4000248874,72090.00,Grants to educational establishments or not for profit organisations including other businesses
Department for Education,NATIONAL COLLEGE FOR TEACHING AND LEADERSHIP AGENCY,04/10/2016,Grants,Operations Directorate,LIVERPOOL HOPE UNIVERSITY,4000248875,238344.24,Grants to educational establishments or not for profit organisations including other businesses
Department for Education,NATIONAL COLLEGE FOR TEACHING AND LEADERSHIP AGENCY,04/10/2016,Grants,Operations Directorate,UNIVERSITY OF GLOUCESTERSHIRE,4000248876,56115.76,Grants to educational establishments or not for profit organisations including other businesses
Department for Education,NATIONAL COLLEGE FOR TEACHING AND LEADERSHIP AGENCY,04/10/2016,Grants,Delivery Directorate,UNIVERSITY OF GLOUCESTERSHIRE,4000248876,38500.00,Grants to educational establishments or not for profit organisations including other businesses
Department for Education,NATIONAL COLLEGE FOR TEACHING AND LEADERSHIP AGENCY,04/10/2016,Grants,Operations Directorate,UNIVERSITY OF SHEFFIELD,4000248877,146185.92,Grants to educational establishments or not for profit organisations including other businesses
Department for Education,NATIONAL COLLEGE FOR TEACHING AND LEADERSHIP AGENCY,04/10/2016,Grants,Operations Directorate,CHEADLE HULME HIGH SCHOOL,4000248879,33816.00,Grants to educational establishments or not for profit organisations including other businesses
Department for Education,NATIONAL COLLEGE FOR TEACHING AND LEADERSHIP AGENCY,04/10/2016,Grants,Operations Directorate,UNIVERSITY OF NOTTINGHAM,4000248880,215071.04,Grants to educational establishments or not for profit organisations including other businesses
Department for Education,NATIONAL COLLEGE FOR TEACHING AND LEADERSHIP AGENCY,04/10/2016,Grants,Operations Directorate,BLUECOAT ACADEMY,4000248882,29940.00,Grants to educational establishments or not for profit organisations including other businesses
Department for Education,NATIONAL COLLEGE FOR TEACHING AND LEADERSHIP AGENCY,04/10/2016,Grants,Operations Directorate,KINGSTON UNIVERSITY,4000248883,116779.76,Grants to educational establishments or not for profit organisations including other businesses
Department for Education,NATIONAL COLLEGE FOR TEACHING AND LEADERSHIP AGENCY,04/10/2016,Grants,Delivery Directorate,KINGSTON UNIVERSITY,4000248883,23100.00,Grants to educational establishments or not for profit organisations including other businesses
Department for Education,NATIONAL COLLEGE FOR TEACHING AND LEADERSHIP AGENCY,04/10/2016,Grants,Operations Directorate,COLCHESTER TEACHER TRAINING CONSORTIUM,4000248886,114287.40,Grants to educational establishments or not for profit organisations including other businesses
Department for Education,NATIONAL COLLEGE FOR TEACHING AND LEADERSHIP AGENCY,04/10/2016,Grants,Operations Directorate,CFBT THE DEEPINGS SCITT,4000248888,39830.70,Grants to educational establishments or not for profit organisations including other businesses
Department for Education,NATIONAL COLLEGE FOR TEACHING AND LEADERSHIP AGENCY,04/10/2016,Grants,Operations Directorate,NOTRE DAME HIGH SCHOOL,4000248896,56056.80,Grants to educational establishments or not for profit organisations including other businesses
Department for Education,NATIONAL COLLEGE FOR TEACHING AND LEADERSHIP AGENCY,04/10/2016,Grants,Operations Directorate,UNIVERSITY OF THE WEST OF ENGLAND,4000248899,174343.92,Grants to educational establishments or not for profit organisations including other businesses
Department for Education,NATIONAL COLLEGE FOR TEACHING AND LEADERSHIP AGENCY,04/10/2016,Grants,Delivery Directorate,UNIVERSITY OF THE WEST OF ENGLAND,4000248899,14795.00,Grants to educational establishments or not for profit organisations including other businesses
Department for Education,NATIONAL COLLEGE FOR TEACHING AND LEADERSHIP AGENCY,04/10/2016,Grants,Operations Directorate,THE CAMBRIDGE PARTNERSHIP,4000248900,36365.38,Grants to educational establishments or not for profit organisations including other businesses
Department for Education,NATIONAL COLLEGE FOR TEACHING AND LEADERSHIP AGENCY,04/10/2016,Grants,Operations Directorate,UNIVERSITY OF PLYMOUTH,4000248905,76632.00,Grants to educational establishments or not for profit organisations including other businesses
Department for Education,NATIONAL COLLEGE FOR TEACHING AND LEADERSHIP AGENCY,04/10/2016,Grants,Delivery Directorate,UNIVERSITY OF PLYMOUTH,4000248905,19305.00,Grants to educational establishments or not for profit organisations including other businesses
Department for Education,NATIONAL COLLEGE FOR TEACHING AND LEADERSHIP AGENCY,04/10/2016,Grants,Operations Directorate,TEACH SOUTHEAST,4000248906,77231.25,Grants to educational establishments or not for profit organisations including other businesses
Department for Education,DEPARTMENT FOR EDUCATION,04/10/2016,Grants,Academies Regional Delivery Group,CANTERBURY CROSS PRIMARY SCHOOL,4000248910,25000.00,Grants to educational establishments or not for profit organisations including other businesses
Department for Education,NATIONAL COLLEGE FOR TEACHING AND LEADERSHIP AGENCY,04/10/2016,Grants,Operations Directorate,LIVERPOOL JOHN MOORES UNIVERSITY,4000248913,246273.12,Grants to educational establishments or not for profit organisations including other businesses
Department for Education,NATIONAL COLLEGE FOR TEACHING AND LEADERSHIP AGENCY,04/10/2016,Grants,Operations Directorate,BIRMINGHAM CITY UNIVERSITY,4000248914,185894.20,Grants to educational establishments or not for profit organisations including other businesses
Department for Education,NATIONAL COLLEGE FOR TEACHING AND LEADERSHIP AGENCY,04/10/2016,Grants,Operations Directorate,DENBIGH SCHOOL,4000248916,27680.00,Grants to educational establishments or not for profit organisations including other businesses
Department for Education,NATIONAL COLLEGE FOR TEACHING AND LEADERSHIP AGENCY,04/10/2016,Grants,Operations Directorate,UNIVERSITY OF PORTSMOUTH,4000248918,127098.16,Grants to educational establishments or not for profit organisations including other businesses
Department for Education,NATIONAL COLLEGE FOR TEACHING AND LEADERSHIP AGENCY,04/10/2016,Grants,Delivery Directorate,UNIVERSITY OF SUSSEX,4000248923,1620.52,Grants to educational establishments or not for profit organisations including other businesses
Department for Education,NATIONAL COLLEGE FOR TEACHING AND LEADERSHIP AGENCY,04/10/2016,Grants,Operations Directorate,UNIVERSITY OF SUSSEX,4000248923,265459.92,Grants to educational establishments or not for profit organisations including other businesses
Department for Education,NATIONAL COLLEGE FOR TEACHING AND LEADERSHIP AGENCY,04/10/2016,Grants,Operations Directorate,UNIVERSITY OF SUSSEX,4000248923,12015.00,Grants to educational establishments or not for profit organisations including other businesses
Department for Education,NATIONAL COLLEGE FOR TEACHING AND LEADERSHIP AGENCY,04/10/2016,Grants,Delivery Directorate,UNIVERSITY OF SUSSEX,4000248923,18700.00,Grants to educational establishments or not for profit organisations including other businesses
Department for Education,NATIONAL COLLEGE FOR TEACHING AND LEADERSHIP AGENCY,04/10/2016,Grants,Operations Directorate,KINGS COLLEGE GUILDFORD,4000248926,272210.40,Grants to educational establishments or not for profit organisations including other businesses
Department for Education,NATIONAL COLLEGE FOR TEACHING AND LEADERSHIP AGENCY,04/10/2016,Grants,Operations Directorate,UNIVERSITY OF EAST ANGLIA,4000248927,182301.44,Grants to educational establishments or not for profit organisations including other businesses
Department for Education,DEPARTMENT FOR EDUCATION,04/10/2016,Grants,Academies Regional Delivery Group,ACADEMY TRANSFORMATION TRUST,4000248928,70000.00,Grants to educational establishments or not for profit organisations including other businesses
Department for Education,NATIONAL COLLEGE FOR TEACHING AND LEADERSHIP AGENCY,04/10/2016,Grants,Operations Directorate,UNIVERSITY OF CAMBRIDGE,4000248934,229799.44,Grants to educational establishments or not for profit organisations including other businesses
Department for Education,NATIONAL COLLEGE FOR TEACHING AND LEADERSHIP AGENCY,04/10/2016,Grants,Operations Directorate,SUFFOLK COUNTY COUNCIL,4000248936,50512.00,Grants to educational establishments or not for profit organisations including other businesses
Department for Education,NATIONAL COLLEGE FOR TEACHING AND LEADERSHIP AGENCY,04/10/2016,Grants,Operations Directorate,PADDINGTON ACADEMY,4000248937,36832.00,Grants to educational establishments or not for profit organisations including other businesses
Department for Education,NATIONAL COLLEGE FOR TEACHING AND LEADERSHIP AGENCY,04/10/2016,Grants,Operations Directorate,THE UNIVERSITY OF MANCHESTER,4000248938,267240.40,Grants to educational establishments or not for profit organisations including other businesses
Department for Education,NATIONAL COLLEGE FOR TEACHING AND LEADERSHIP AGENCY,04/10/2016,Grants,Operations Directorate,UNIVERSITY OF YORK,4000248941,138503.44,Grants to educational establishments or not for profit organisations including other businesses
Department for Education,NATIONAL COLLEGE FOR TEACHING AND LEADERSHIP AGENCY,04/10/2016,Grants,Operations Directorate,UNIVERSITY OF NEWCASTLE UPON TYNE,4000248942,150282.64,Grants to educational establishments or not for profit organisations including other businesses
Department for Education,NATIONAL COLLEGE FOR TEACHING AND LEADERSHIP AGENCY,04/10/2016,Grants,Operations Directorate,UNIVERSITY OF WOLVERHAMPTON,4000248944,164353.12,Grants to educational establishments or not for profit organisations including other businesses
Department for Education,NATIONAL COLLEGE FOR TEACHING AND LEADERSHIP AGENCY,04/10/2016,Grants,Operations Directorate,UNIVERSITY OF WOLVERHAMPTON,4000248944,12450.00,Grants to educational establishments or not for profit organisations including other businesses
Department for Education,NATIONAL COLLEGE FOR TEACHING AND LEADERSHIP AGENCY,04/10/2016,Grants,Delivery Directorate,UNIVERSITY OF WOLVERHAMPTON,4000248944,15400.00,Grants to educational establishments or not for profit organisations including other businesses
Department for Education,NATIONAL COLLEGE FOR TEACHING AND LEADERSHIP AGENCY,04/10/2016,Grants,Operations Directorate,UNIVERSITY OF DERBY,4000248947,53257.68,Grants to educational establishments or not for profit organisations including other businesses
Department for Education,NATIONAL COLLEGE FOR TEACHING AND LEADERSHIP AGENCY,04/10/2016,Grants,Operations Directorate,UNIVERSITY OF DERBY,4000248947,13650.00,Grants to educational establishments or not for profit organisations including other businesses
Department for Education,NATIONAL COLLEGE FOR TEACHING AND LEADERSHIP AGENCY,04/10/2016,Grants,Delivery Directorate,UNIVERSITY OF DERBY,4000248947,18535.00,Grants to educational establishments or not for profit organisations including other businesses
Department for Education,NATIONAL COLLEGE FOR TEACHING AND LEADERSHIP AGENCY,04/10/2016,Grants,Operations Directorate,STAFFORDSHIRE UNIVERSITY,4000248948,55263.60,Grants to educational establishments or not for profit organisations including other businesses
Department for Education,NATIONAL COLLEGE FOR TEACHING AND LEADERSHIP AGENCY,04/10/2016,Grants,Operations Directorate,STAFFORDSHIRE UNIVERSITY,4000248948,1800.00,Grants to educational establishments or not for profit organisations including other businesses
Department for Education,NATIONAL COLLEGE FOR TEACHING AND LEADERSHIP AGENCY,04/10/2016,Grants,Delivery Directorate,STAFFORDSHIRE UNIVERSITY,4000248948,11550.00,Grants to educational establishments or not for profit organisations including other businesses
Department for Education,NATIONAL COLLEGE FOR TEACHING AND LEADERSHIP AGENCY,04/10/2016,Grants,Operations Directorate,LEEDS BECKETT UNIVERSITY,4000248949,44223.84,Grants to educational establishments or not for profit organisations including other businesses
Department for Education,NATIONAL COLLEGE FOR TEACHING AND LEADERSHIP AGENCY,04/10/2016,Grants,Operations Directorate,RED KITE TEACHER TRAINING,4000248950,79739.22,Grants to educational establishments or not for profit organisations including other businesses
Department for Education,NATIONAL COLLEGE FOR TEACHING AND LEADERSHIP AGENCY,04/10/2016,Grants,Operations Directorate,PARTNERSHIP LONDON SCITT,4000248951,32669.52,Grants to educational establishments or not for profit organisations including other businesses
Department for Education,NATIONAL COLLEGE FOR TEACHING AND LEADERSHIP AGENCY,04/10/2016,Grants,Operations Directorate,HAYBRIDGE ALLIANCE SCITT,4000248955,30142.80,Grants to educational establishments or not for profit organisations including other businesses
Department for Education,NATIONAL COLLEGE FOR TEACHING AND LEADERSHIP AGENCY,04/10/2016,Grants,Operations Directorate,UNIVERSITY OF LEICESTER,4000248956,145053.68,Grants to educational establishments or not for profit organisations including other businesses
Department for Education,DEPARTMENT FOR EDUCATION,04/10/2016,Grants,System Reform Group,EDGE HILL UNIVERSITY,4000248958,19680.00,Grants to educational establishments or not for profit organisations including other businesses
Department for Education,NATIONAL COLLEGE FOR TEACHING AND LEADERSHIP AGENCY,04/10/2016,Grants,Delivery Directorate,EDGE HILL UNIVERSITY,4000248958,10000.00,Grants to educational establishments or not for profit organisations including other businesses
Department for Education,NATIONAL COLLEGE FOR TEACHING AND LEADERSHIP AGENCY,04/10/2016,Grants,Operations Directorate,EDGE HILL UNIVERSITY,4000248958,411993.82,Grants to educational establishments or not for profit organisations including other businesses
Department for Education,NATIONAL COLLEGE FOR TEACHING AND LEADERSHIP AGENCY,04/10/2016,Grants,Operations Directorate,EDGE HILL UNIVERSITY,4000248958,47750.00,Grants to educational establishments or not for profit organisations including other businesses
Department for Education,NATIONAL COLLEGE FOR TEACHING AND LEADERSHIP AGENCY,04/10/2016,Grants,Operations Directorate,EDGE HILL UNIVERSITY,4000248958,2250.00,Grants to educational establishments or not for profit organisations including other businesses
Department for Education,NATIONAL COLLEGE FOR TEACHING AND LEADERSHIP AGENCY,04/10/2016,Grants,Delivery Directorate,EDGE HILL UNIVERSITY,4000248958,60775.00,Grants to educational establishments or not for profit organisations including other businesses
Department for Education,DEPARTMENT FOR EDUCATION,04/10/2016,Grants,System Reform Group,BABCOCK 4S LTD,4000248959,29440.00,Grants to educational establishments or not for profit organisations including other businesses
Department for Education,NATIONAL COLLEGE FOR TEACHING AND LEADERSHIP AGENCY,04/10/2016,Grants,Operations Directorate,UNIVERSITY OF EXETER,4000248961,232153.76,Grants to educational establishments or not for profit organisations including other businesses
Department for Education,NATIONAL COLLEGE FOR TEACHING AND LEADERSHIP AGENCY,04/10/2016,Grants,Operations Directorate,UNIVERSITY OF DURHAM,4000248962,143746.32,Grants to educational establishments or not for profit organisations including other businesses
Department for Education,NATIONAL COLLEGE FOR TEACHING AND LEADERSHIP AGENCY,04/10/2016,Grants,Operations Directorate,LEEDS TRINITY UNIVERSITY COLLEGE,4000248964,194710.48,Grants to educational establishments or not for profit organisations including other businesses
Department for Education,NATIONAL COLLEGE FOR TEACHING AND LEADERSHIP AGENCY,04/10/2016,Grants,Operations Directorate,UNIVERSITY OF SUNDERLAND,4000248965,110420.80,Grants to educational establishments or not for profit organisations including other businesses
Department for Education,NATIONAL COLLEGE FOR TEACHING AND LEADERSHIP AGENCY,04/10/2016,Grants,Operations Directorate,UNIVERSITY OF SUNDERLAND,4000248965,19983.00,Grants to educational establishments or not for profit organisations including other businesses
Department for Education,NATIONAL COLLEGE FOR TEACHING AND LEADERSHIP AGENCY,04/10/2016,Grants,Operations Directorate,YORKSHIRE AND HUMBER TEACHER TRAINING,4000248968,28946.64,Grants to educational establishments or not for profit organisations including other businesses
Department for Education,NATIONAL COLLEGE FOR TEACHING AND LEADERSHIP AGENCY,04/10/2016,Grants,Operations Directorate,BARR BEACON SCITT,4000248969,26986.64,Grants to educational establishments or not for profit organisations including other businesses
Department for Education,NATIONAL COLLEGE FOR TEACHING AND LEADERSHIP AGENCY,04/10/2016,Grants,Operations Directorate,ASTRA SCITT,4000248970,33896.16,Grants to educational establishments or not for profit organisations including other businesses
Department for Education,NATIONAL COLLEGE FOR TEACHING AND LEADERSHIP AGENCY,04/10/2016,Grants,Operations Directorate,DONCASTER MBC,4000248973,29020.00,Grants to educational establishments or not for profit organisations including other businesses
Department for Education,DEPARTMENT FOR EDUCATION,04/10/2016,Grants,Early Years Group,PEN GREEN RESEARCH,4000248975,123057.83,Grants to educational establishments or not for profit organisations including other businesses
Department for Education,NATIONAL COLLEGE FOR TEACHING AND LEADERSHIP AGENCY,04/10/2016,Grants,Delivery Directorate,CANTERBURY CHRIST CHURCH UNIVERSITY,4000248977,3200.00,Grants to educational establishments or not for profit organisations including other businesses
Department for Education,NATIONAL COLLEGE FOR TEACHING AND LEADERSHIP AGENCY,04/10/2016,Grants,Operations Directorate,CANTERBURY CHRIST CHURCH UNIVERSITY,4000248977,257336.24,Grants to educational establishments or not for profit organisations including other businesses
Department for Education,NATIONAL COLLEGE FOR TEACHING AND LEADERSHIP AGENCY,04/10/2016,Grants,Delivery Directorate,CANTERBURY CHRIST CHURCH UNIVERSITY,4000248977,26565.00,Grants to educational establishments or not for profit organisations including other businesses
Department for Education,NATIONAL COLLEGE FOR TEACHING AND LEADERSHIP AGENCY,04/10/2016,Grants,Operations Directorate,THE UNIVERSITY OF LEEDS,4000248978,141724.00,Grants to educational establishments or not for profit organisations including other businesses
Department for Education,NATIONAL COLLEGE FOR TEACHING AND LEADERSHIP AGENCY,04/10/2016,Grants,Operations Directorate,UNIVERSITY OF HUDDERSFIELD,4000248979,70408.96,Grants to educational establishments or not for profit organisations including other businesses
Department for Education,NATIONAL COLLEGE FOR TEACHING AND LEADERSHIP AGENCY,04/10/2016,Grants,Operations Directorate,UNIVERSITY OF HUDDERSFIELD,4000248979,13800.00,Grants to educational establishments or not for profit organisations including other businesses
Department for Education,NATIONAL COLLEGE FOR TEACHING AND LEADERSHIP AGENCY,04/10/2016,Grants,Delivery Directorate,UNIVERSITY OF HUDDERSFIELD,4000248979,12705.00,Grants to educational establishments or not for profit organisations including other businesses
Department for Education,NATIONAL COLLEGE FOR TEACHING AND LEADERSHIP AGENCY,04/10/2016,Grants,Delivery Directorate,UNIVERSITY OF BIRMINGHAM,4000248981,8800.00,Grants to educational establishments or not for profit organisations including other businesses
Department for Education,NATIONAL COLLEGE FOR TEACHING AND LEADERSHIP AGENCY,04/10/2016,Grants,Operations Directorate,UNIVERSITY OF BIRMINGHAM,4000248981,285307.20,Grants to educational establishments or not for profit organisations including other businesses
Department for Education,NATIONAL COLLEGE FOR TEACHING AND LEADERSHIP AGENCY,04/10/2016,Grants,Operations Directorate,UNIVERSITY OF BIRMINGHAM,4000248981,14680.00,Grants to educational establishments or not for profit organisations including other businesses
Department for Education,DEPARTMENT FOR EDUCATION,04/10/2016,Grants,Academies Regional Delivery Group,NORTH EAST LEARNING TRUST,4000248985,130000.00,Grants to educational establishments or not for profit organisations including other businesses
Department for Education,DEPARTMENT FOR EDUCATION,04/10/2016,Grants,Academies Regional Delivery Group,HOB MOOR COMMUNITY PRIMARY SCHOOL,4000248989,25000.00,Grants to educational establishments or not for profit organisations including other businesses
Department for Education,NATIONAL COLLEGE FOR TEACHING AND LEADERSHIP AGENCY,04/10/2016,Grants,Operations Directorate,THE ARTHUR TERRY SCHOOL SCITT,4000248990,31080.00,Grants to educational establishments or not for profit organisations including other businesses
Department for Education,NATIONAL COLLEGE FOR TEACHING AND LEADERSHIP AGENCY,04/10/2016,Grants,Operations Directorate,LEEDS CITY COLLEGE,4000248994,40050.00,Grants to educational establishments or not for profit organisations including other businesses
Department for Education,NATIONAL COLLEGE FOR TEACHING AND LEADERSHIP AGENCY,04/10/2016,Grants,Operations Directorate,KENT & MEDWAY TRAINING,4000248995,69643.76,Grants to educational establishments or not for profit organisations including other businesses
Department for Education,NATIONAL COLLEGE FOR TEACHING AND LEADERSHIP AGENCY,04/10/2016,Grants,Operations Directorate,OXFORD BROOKES UNIVERSITY,4000248997,49163.28,Grants to educational establishments or not for profit organisations including other businesses
Department for Education,NATIONAL COLLEGE FOR TEACHING AND LEADERSHIP AGENCY,04/10/2016,Grants,Delivery Directorate,OXFORD BROOKES UNIVERSITY,4000248997,15400.00,Grants to educational establishments or not for profit organisations including other businesses
Department for Education,NATIONAL COLLEGE FOR TEACHING AND LEADERSHIP AGENCY,04/10/2016,Grants,Operations Directorate,THE MORLEY ACADEMY,4000248999,57608.96,Grants to educational establishments or not for profit organisations including other businesses
Department for Education,NATIONAL COLLEGE FOR TEACHING AND LEADERSHIP AGENCY,04/10/2016,Grants,Operations Directorate,BRUNEL UNIVERSITY,4000249000,100060.80,Grants to educational establishments or not for profit organisations including other businesses
Department for Education,NATIONAL COLLEGE FOR TEACHING AND LEADERSHIP AGENCY,04/10/2016,Grants,Operations Directorate,ESSEX PRY SCHOOLS TRAINING GROUP,4000249004,13729.92,Grants to educational establishments or not for profit organisations including other businesses
Department for Education,NATIONAL COLLEGE FOR TEACHING AND LEADERSHIP AGENCY,04/10/2016,Grants,Delivery Directorate,ESSEX PRY SCHOOLS TRAINING GROUP,4000249004,19250.00,Grants to educational establishments or not for profit organisations including other businesses
Department for Education,NATIONAL COLLEGE FOR TEACHING AND LEADERSHIP AGENCY,04/10/2016,Grants,Operations Directorate,SOUTH WEST TEACHER TRAINING,4000249011,28493.36,Grants to educational establishments or not for profit organisations including other businesses
Department for Education,NATIONAL COLLEGE FOR TEACHING AND LEADERSHIP AGENCY,04/10/2016,Grants,Operations Directorate,MANCHESTER METROPOLITAN UNIVERSITY,4000249012,473438.65,Grants to educational establishments or not for profit organisations including other businesses
Department for Education,NATIONAL COLLEGE FOR TEACHING AND LEADERSHIP AGENCY,04/10/2016,Grants,Operations Directorate,MANCHESTER METROPOLITAN UNIVERSITY,4000249012,10000.00,Grants to educational establishments or not for profit organisations including other businesses
Department for Education,NATIONAL COLLEGE FOR TEACHING AND LEADERSHIP AGENCY,04/10/2016,Grants,Operations Directorate,ST MARYS UNIVERSITY COLLEGE,4000249014,259702.88,Grants to educational establishments or not for profit organisations including other businesses
Department for Education,NATIONAL COLLEGE FOR TEACHING AND LEADERSHIP AGENCY,04/10/2016,Grants,Operations Directorate,UNIVERSITY OF NORTHAMPTON,4000249015,11396.00,Grants to educational establishments or not for profit organisations including other businesses
Department for Education,NATIONAL COLLEGE FOR TEACHING AND LEADERSHIP AGENCY,04/10/2016,Grants,Delivery Directorate,UNIVERSITY OF NORTHAMPTON,4000249015,30360.00,Grants to educational establishments or not for profit organisations including other businesses
Department for Education,DEPARTMENT FOR EDUCATION,04/10/2016,Programme costs,Adoption and Children in Care Division,MOTT MACDONALD LTD,4000249016,93981.39,Funding to deliver policies (excluding consultancy) paid to third parties via a service delivery contract
Department for Education,NATIONAL COLLEGE FOR TEACHING AND LEADERSHIP AGENCY,04/10/2016,Grants,Operations Directorate,GLOUCESTERSHIRE ITE PARTNERSHIP,4000249018,58626.72,Grants to educational establishments or not for profit organisations including other businesses
Department for Education,NATIONAL COLLEGE FOR TEACHING AND LEADERSHIP AGENCY,04/10/2016,Grants,Operations Directorate,TRAIN TO TEACH AT SURREY & HANTS,4000249021,31173.36,Grants to educational establishments or not for profit organisations including other businesses
Department for Education,NATIONAL COLLEGE FOR TEACHING AND LEADERSHIP AGENCY,04/10/2016,Grants,Operations Directorate,UNIVERSITY OF ROEHAMPTON,4000249027,126529.36,Grants to educational establishments or not for profit organisations including other businesses
Department for Education,NATIONAL COLLEGE FOR TEACHING AND LEADERSHIP AGENCY,04/10/2016,Programme costs,Delivery Directorate,EDUCATION DEVELOPMENT TRUST,4000249028,104474.35,Funding to deliver policies (excluding consultancy) paid to third parties via a service delivery contract
Department for Education,NATIONAL COLLEGE FOR TEACHING AND LEADERSHIP AGENCY,04/10/2016,Grants,Delivery Directorate,HIBERNIA COLLEGE UK,4000249032,35688.27,Grants to educational establishments or not for profit organisations including other businesses
Department for Education,NATIONAL COLLEGE FOR TEACHING AND LEADERSHIP AGENCY,04/10/2016,Grants,Operations Directorate,HIBERNIA COLLEGE UK,4000249032,66942.32,Grants to educational establishments or not for profit organisations including other businesses
Department for Education,NATIONAL COLLEGE FOR TEACHING AND LEADERSHIP AGENCY,04/10/2016,Grants,Operations Directorate,HIBERNIA COLLEGE UK,4000249032,182575.00,Grants to educational establishments or not for profit organisations including other businesses
Department for Education,NATIONAL COLLEGE FOR TEACHING AND LEADERSHIP AGENCY,04/10/2016,Grants,Operations Directorate,UCL INSTITUTE OF EDUCATION,4000249035,517610.32,Grants to educational establishments or not for profit organisations including other businesses
Department for Education,NATIONAL COLLEGE FOR TEACHING AND LEADERSHIP AGENCY,04/10/2016,Grants,Operations Directorate,UCL INSTITUTE OF EDUCATION,4000249035,7500.00,Grants to educational establishments or not for profit organisations including other businesses
Department for Education,NATIONAL COLLEGE FOR TEACHING AND LEADERSHIP AGENCY,04/10/2016,Grants,Delivery Directorate,UCL INSTITUTE OF EDUCATION,4000249035,37785.00,Grants to educational establishments or not for profit organisations including other businesses
Department for Education,NATIONAL COLLEGE FOR TEACHING AND LEADERSHIP AGENCY,04/10/2016,Grants,Operations Directorate,HAVERING BEACON PARTNERSHIP,4000249040,34240.00,Grants to educational establishments or not for profit organisations including other businesses
Department for Education,NATIONAL COLLEGE FOR TEACHING AND LEADERSHIP AGENCY,04/10/2016,Grants,Operations Directorate,GEORGE SPENCER TRAINING SCHOOL,4000249042,26564.40,Grants to educational establishments or not for profit organisations including other businesses
Department for Education,NATIONAL COLLEGE FOR TEACHING AND LEADERSHIP AGENCY,04/10/2016,Grants,Operations Directorate,GEORGE ABBOT ACADEMY,4000249043,25254.72,Grants to educational establishments or not for profit organisations including other businesses
Department for Education,NATIONAL COLLEGE FOR TEACHING AND LEADERSHIP AGENCY,04/10/2016,Grants,Operations Directorate,E QUALITAS PROFESSIONAL SERVICES LTD,4000249044,9266.64,Grants to educational establishments or not for profit organisations including other businesses
Department for Education,NATIONAL COLLEGE FOR TEACHING AND LEADERSHIP AGENCY,04/10/2016,Grants,Delivery Directorate,E QUALITAS PROFESSIONAL SERVICES LTD,4000249044,39105.00,Grants to educational establishments or not for profit organisations including other businesses
Department for Education,DEPARTMENT FOR EDUCATION,04/10/2016,Grants,Academies Regional Delivery Group,LEADING LEARNERS ACADEMY TRUST,4000249051,180000.00,Grants to educational establishments or not for profit organisations including other businesses
Department for Education,DEPARTMENT FOR EDUCATION,04/10/2016,Grants,"Children's Services, Equalities and Communication Safeguarding Group",THE FRONTLINE ORGANISATION,4000249053,292264.98,Grants to educational establishments or not for profit organisations including other businesses
Department for Education,NATIONAL COLLEGE FOR TEACHING AND LEADERSHIP AGENCY,04/10/2016,Grants,Operations Directorate,SHOTTON HALL SCITT,4000249055,57944.00,Grants to educational establishments or not for profit organisations including other businesses
Department for Education,NATIONAL COLLEGE FOR TEACHING AND LEADERSHIP AGENCY,04/10/2016,Grants,Operations Directorate,SUTTON SCITT,4000249057,28646.64,Grants to educational establishments or not for profit organisations including other businesses
Department for Education,NATIONAL COLLEGE FOR TEACHING AND LEADERSHIP AGENCY,04/10/2016,Grants,Operations Directorate,PENINSULA TEACHER TRAINING CORNWALL SCITT,4000249059,36520.00,Grants to educational establishments or not for profit organisations including other businesses
Department for Education,NATIONAL COLLEGE FOR TEACHING AND LEADERSHIP AGENCY,04/10/2016,Grants,Operations Directorate,GRAND UNION TRAINING PARTNERSHIP,4000249064,42368.00,Grants to educational establishments or not for profit organisations including other businesses
Department for Education,NATIONAL COLLEGE FOR TEACHING AND LEADERSHIP AGENCY,04/10/2016,Grants,Operations Directorate,GOLDSMITH COLLEGE,4000249065,187928.80,Grants to educational establishments or not for profit organisations including other businesses
Department for Education,NATIONAL COLLEGE FOR TEACHING AND LEADERSHIP AGENCY,04/10/2016,Grants,Operations Directorate,CARMEL TEACHER TRAINING PARTNERSHIP,4000249070,69956.64,Grants to educational establishments or not for profit organisations including other businesses
Department for Education,NATIONAL COLLEGE FOR TEACHING AND LEADERSHIP AGENCY,04/10/2016,Grants,Operations Directorate,THE UNIVERSITY OF READING,4000249071,208592.72,Grants to educational establishments or not for profit organisations including other businesses
Department for Education,NATIONAL COLLEGE FOR TEACHING AND LEADERSHIP AGENCY,04/10/2016,Grants,Delivery Directorate,THE UNIVERSITY OF READING,4000249071,31955.00,Grants to educational establishments or not for profit organisations including other businesses
Department for Education,NATIONAL COLLEGE FOR TEACHING AND LEADERSHIP AGENCY,04/10/2016,Grants,Operations Directorate,UNIVERSITY OF SOUTHAMPTON,4000249073,217293.12,Grants to educational establishments or not for profit organisations including other businesses
Department for Education,NATIONAL COLLEGE FOR TEACHING AND LEADERSHIP AGENCY,04/10/2016,Grants,Operations Directorate,UNIVERSITY OF SOUTHAMPTON,4000249073,8100.00,Grants to educational establishments or not for profit organisations including other businesses
Department for Education,DEPARTMENT FOR EDUCATION,04/10/2016,Grants,Academies Regional Delivery Group,CASTLE HILL SCHOOL ACADEMY TRUST,4000249078,70000.00,Grants to educational establishments or not for profit organisations including other businesses
Department for Education,NATIONAL COLLEGE FOR TEACHING AND LEADERSHIP AGENCY,04/10/2016,Grants,Operations Directorate,THE GREATER MANCHESTER BRIGHT FUTURES TRUST,4000249079,15512.00,Grants to educational establishments or not for profit organisations including other businesses
Department for Education,NATIONAL COLLEGE FOR TEACHING AND LEADERSHIP AGENCY,04/10/2016,Grants,Delivery Directorate,THE GREATER MANCHESTER BRIGHT FUTURES TRUST,4000249079,17930.00,Grants to educational establishments or not for profit organisations including other businesses
Department for Education,NATIONAL COLLEGE FOR TEACHING AND LEADERSHIP AGENCY,04/10/2016,Grants,Operations Directorate,UNIVERSITY OF CHICHESTER,4000249092,103251.28,Grants to educational establishments or not for profit organisations including other businesses
Department for Education,NATIONAL COLLEGE FOR TEACHING AND LEADERSHIP AGENCY,04/10/2016,Grants,Delivery Directorate,UNIVERSITY OF CHICHESTER,4000249092,11550.00,Grants to educational establishments or not for profit organisations including other businesses
Department for Education,NATIONAL COLLEGE FOR TEACHING AND LEADERSHIP AGENCY,04/10/2016,Grants,Operations Directorate,UNIVERSITY OF CHESTER,4000249094,207977.92,Grants to educational establishments or not for profit organisations including other businesses
Department for Education,NATIONAL COLLEGE FOR TEACHING AND LEADERSHIP AGENCY,04/10/2016,Grants,Operations Directorate,UNIVERSITY OF CHESTER,4000249094,2810.00,Grants to educational establishments or not for profit organisations including other businesses
Department for Education,NATIONAL COLLEGE FOR TEACHING AND LEADERSHIP AGENCY,04/10/2016,Grants,Delivery Directorate,UNIVERSITY OF CHESTER,4000249094,14795.00,Grants to educational establishments or not for profit organisations including other businesses
Department for Education,NATIONAL COLLEGE FOR TEACHING AND LEADERSHIP AGENCY,04/10/2016,Grants,Operations Directorate,CORNWALL SCITT,4000249096,58110.48,Grants to educational establishments or not for profit organisations including other businesses
Department for Education,NATIONAL COLLEGE FOR TEACHING AND LEADERSHIP AGENCY,04/10/2016,Grants,Operations Directorate,UNIVERSITY OF WINCHESTER,4000249097,37578.96,Grants to educational establishments or not for profit organisations including other businesses
Department for Education,NATIONAL COLLEGE FOR TEACHING AND LEADERSHIP AGENCY,04/10/2016,Grants,Operations Directorate,BROMLEY SCHOOLS COLLEGIATE,4000249099,36673.36,Grants to educational establishments or not for profit organisations including other businesses
Department for Education,NATIONAL COLLEGE FOR TEACHING AND LEADERSHIP AGENCY,04/10/2016,Grants,Operations Directorate,BOURNEMOUTH POOLE & DORSET EAST SECONDARY,4000249100,41640.00,Grants to educational establishments or not for profit organisations including other businesses
Department for Education,NATIONAL COLLEGE FOR TEACHING AND LEADERSHIP AGENCY,04/10/2016,Grants,Operations Directorate,HARRIS CITY ACADEMY,4000249101,43586.72,Grants to educational establishments or not for profit organisations including other businesses
Department for Education,DEPARTMENT FOR EDUCATION,05/10/2016,Grants,"Children's Services, Equalities and Communication Safeguarding Group",OFFICE OF THE CHILDRENS COMMISSIONER,2100131,251049.45,Current grants paid to organisations including arms length bodies and educational establishments
Department for Education,DEPARTMENT FOR EDUCATION,05/10/2016,Grants,Free School Group,WALLINGTON COUNTY GRAMMER SCHOOL,4000249111,30000.00,Grants to educational establishments or not for profit organisations including other businesses
Department for Education,NATIONAL COLLEGE FOR TEACHING AND LEADERSHIP AGENCY,05/10/2016,Programme costs,Delivery Directorate,EDUCATION DEVELOPMENT TRUST,4000249130,203172.81,Funding to deliver policies (excluding consultancy) paid to third parties via a service delivery contract
Department for Education,NATIONAL COLLEGE FOR TEACHING AND LEADERSHIP AGENCY,05/10/2016,Programme costs,Delivery Directorate,EDUCATION DEVELOPMENT TRUST,4000249130,395000.00,Funding to deliver policies (excluding consultancy) paid to third parties via a service delivery contract
Department for Education,DEPARTMENT FOR EDUCATION,05/10/2016,Grants,Free School Group,HARPENDEN SECONDARY EDUCATION TRUST,4000249140,30000.00,Grants to educational establishments or not for profit organisations including other businesses
Department for Education,DEPARTMENT FOR EDUCATION,05/10/2016,Grants,Free School Group,North East Futures UTC,4000249148,30000.00,Grants to educational establishments or not for profit organisations including other businesses
Department for Education,DEPARTMENT FOR EDUCATION,05/10/2016,Grants,Free School Group,GUILDFORD UTC,4000249149,30000.00,Grants to educational establishments or not for profit organisations including other businesses
Department for Education,DEPARTMENT FOR EDUCATION,05/10/2016,Grants,Free School Group,RON DEARING UTC TRUST LTD,4000249152,30000.00,Grants to educational establishments or not for profit organisations including other businesses
Department for Education,DEPARTMENT FOR EDUCATION,05/10/2016,Grants,Adoption and Children in Care Division,THE SHARE FOUNDATION 3RD PARTY TRUST,4000249160,35800.00,Grants to educational establishments or not for profit organisations including other businesses
Department for Education,DEPARTMENT FOR EDUCATION,05/10/2016,Grants,Free School Group,THE RUNNYMEDE SCHOOL,4000249161,30000.00,Grants to educational establishments or not for profit organisations including other businesses
Department for Education,DEPARTMENT FOR EDUCATION,05/10/2016,Grants,Free School Group,HAMPTON ACADEMIES TRUST,4000249163,30000.00,Grants to educational establishments or not for profit organisations including other businesses
Department for Education,NATIONAL COLLEGE FOR TEACHING AND LEADERSHIP AGENCY,05/10/2016,Programme costs,Delivery Directorate,UNIVERSITY OF BRIGHTON,4000249169,200387.08,Funding to deliver policies (excluding consultancy) paid to third parties via a service delivery contract
Department for Education,DEPARTMENT FOR EDUCATION,05/10/2016,Programme costs,Adoption and Children in Care Division,CORAM CLC,4000249172,56571.57,Funding to deliver policies (excluding consultancy) paid to third parties via a service delivery contract
Department for Education,DEPARTMENT FOR EDUCATION,05/10/2016,Grants,Free School Group,THE PARTNERSHIP LEARNING TRUST,4000249173,30000.00,Grants to educational establishments or not for profit organisations including other businesses
Department for Education,DEPARTMENT FOR EDUCATION,05/10/2016,Grants,Free School Group,BROMLEY UNIVERSITY TECHNICAL COLLEGE,4000249174,30000.00,Grants to educational establishments or not for profit organisations including other businesses
Department for Education,STANDARDS AND TESTING AGENCY,05/10/2016,Programme costs,Test Operations Division,NATIONAL FOUNDATION FOR EDUCATIONAL RESEARCH,4000249184,77117.00,Funding to deliver policies (excluding consultancy) paid to third parties via a service delivery contract
Department for Education,DEPARTMENT FOR EDUCATION,05/10/2016,Grants,Free School Group,THE LEIGH ACADEMIES TRUST,4000249194,30000.00,Grants to educational establishments or not for profit organisations including other businesses
Department for Education,DEPARTMENT FOR EDUCATION,05/10/2016,Programme costs,Systems and Accountability Group,RM EDUCATION PLC,4000249200,101449.85,Funding to deliver policies (excluding consultancy) paid to third parties via a service delivery contract
Department for Education,NATIONAL COLLEGE FOR TEACHING AND LEADERSHIP AGENCY,05/10/2016,Programme costs,Operations Directorate,TEXUNA TECHNOLOGIES,4000249206,27453.52,Funding to deliver policies (excluding consultancy) paid to third parties via a service delivery contract
Department for Education,DEPARTMENT FOR EDUCATION,05/10/2016,Programme costs,Children's Services Special Educational Needs Group,ACHIEVEMENT FOR ALL 3AS LTD,4000249212,36523.20,Funding to deliver policies (excluding consultancy) paid to third parties via a service delivery contract
Department for Education,DEPARTMENT FOR EDUCATION,05/10/2016,Programme costs,Systems and Accountability Group,RESEARCH MACHINES PLC,4000249213,620222.40,Funding to deliver policies (excluding consultancy) paid to third parties via a service delivery contract
Department for Education,DEPARTMENT FOR EDUCATION,05/10/2016,Grants,Free School Group,ST CLEMENT DANES SCHOOL,4000249214,30000.00,Grants to educational establishments or not for profit organisations including other businesses
Department for Education,STANDARDS AND TESTING AGENCY,05/10/2016,Programme costs,Test Development Division,NFER TRADING LIMITED INV T,4000249217,43796.00,Funding to deliver policies (excluding consultancy) paid to third parties via a service delivery contract
Department for Education,DEPARTMENT FOR EDUCATION,05/10/2016,Grants,Free School Group,STOKE DAMEREL COMMUNITY COLLEGE,4000249230,30000.00,Grants to educational establishments or not for profit organisations including other businesses
Department for Education,NATIONAL COLLEGE FOR TEACHING AND LEADERSHIP AGENCY,05/10/2016,Grants,Delivery Directorate,STOKE DAMEREL COMMUNITY COLLEGE,4000249230,1125.00,Grants to educational establishments or not for profit organisations including other businesses
Department for Education,DEPARTMENT FOR EDUCATION,05/10/2016,Facilities,International Education Group,DTZ DEBENHAM TIE LEUNG,4000249118,270306.65,"Building maintenance and repair, including repainting, replacing flooring, etc."
Department for Education,DEPARTMENT FOR EDUCATION,05/10/2016,Facilities,Property Asset Management Group,GVA GRIMLEY LTD,4000249208,47400.00,Rent
Department for Education,DEPARTMENT FOR EDUCATION,05/10/2016,Professional Services Other,Strategic Analysis and Research Group,NATIONAL FOUNDATION FOR EDUCATIONAL RESEARCH,4000249184,20144.00,Research and evaluation activities
Department for Education,DEPARTMENT FOR EDUCATION,05/10/2016,Facilities,Property Asset Management Group,GVA GRIMLEY LTD DCLG,4000249129,43117.64,"Rent. From 2016/17 financial year DCLG and DECC will use the DfE's finance system, reflecting the shared services arrangement for property asset management that already exists across the three departments. DfE will recharge DCLG and DECC on a quarterly basis."
Department for Education,DEPARTMENT FOR EDUCATION,05/10/2016,Professional Services Consultancy and Contingent Labour,Information Technology Group,HOME OFFICE,4000249108,345255.36,Costs related to temporary workers
Department for Education,DEPARTMENT FOR EDUCATION,05/10/2016,Facilities,Property Asset Management Group,INTERSERVE FACILITIES MANAGEMENT LTD,4000249188,19633.51,"Building maintenance and repair, including repainting, replacing flooring, etc."
Department for Education,DEPARTMENT FOR EDUCATION,05/10/2016,Facilities,Property Asset Management Group,INTERSERVE FACILITIES MANAGEMENT LTD,4000249188,36661.94,"Building maintenance and repair, including repainting, replacing flooring, etc."
Department for Education,DEPARTMENT FOR EDUCATION,05/10/2016,Facilities,Property Asset Management Group,INTERSERVE FACILITIES MANAGEMENT LTD,4000249188,9383.73,Property management
Department for Education,DEPARTMENT FOR EDUCATION,05/10/2016,ICT,Information Technology Group,LOCKHEED MARTIN,4000249141,31195.20,ICT Services
Department for Education,NATIONAL COLLEGE FOR TEACHING AND LEADERSHIP AGENCY,05/10/2016,Communications,Operations Directorate,INFERNO LTD,4000249198,22831.78,"Publicity, advertising, media advertising campaigns (excluding recruitment adverts)"
Department for Education,DEPARTMENT FOR EDUCATION,06/10/2016,Grants,Government Equalities Office,EQUALITY & HUMAN RIGHTS COMMISSION,2100132,1310764.00,Current grants paid to organisations including arms length bodies and educational establishments
Department for Education,DEPARTMENT FOR EDUCATION,06/10/2016,Grants,Academies Regional Delivery Group,HOB MOOR OAKS PRIMARY,4000249243,25000.00,Grants to educational establishments or not for profit organisations including other businesses
Department for Education,DEPARTMENT FOR EDUCATION,06/10/2016,Grants,Academies Regional Delivery Group,SOUTHAM PRIMARY SCHOOL,4000249244,25000.00,Grants to educational establishments or not for profit organisations including other businesses
Department for Education,DEPARTMENT FOR EDUCATION,06/10/2016,Grants,Academies Regional Delivery Group,ROUGHWOOD PRIMARY SCHOOL,4000249245,25000.00,Grants to educational establishments or not for profit organisations including other businesses
Department for Education,DEPARTMENT FOR EDUCATION,06/10/2016,Grants,Academies Regional Delivery Group,RAWSON JUNIOR INFANT & NURSERY SCHOOL,4000249247,25000.00,Grants to educational establishments or not for profit organisations including other businesses
Department for Education,DEPARTMENT FOR EDUCATION,06/10/2016,Grants,Children's Services Strategy Group,JOINT ADMINISTRATORS MESSRS STEPHENS OCONNELL & MCGILL,4000249254,41179.61,Grants to educational establishments or not for profit organisations including other businesses
Department for Education,DEPARTMENT FOR EDUCATION,06/10/2016,Grants,Post 16 and Disadvantage Group,THE CAREERS & ENTERPRISE COMPANY,4000249256,2000000.00,Grants to educational establishments or not for profit organisations including other businesses
Department for Education,DEPARTMENT FOR EDUCATION,06/10/2016,Programme costs,Adoption and Children in Care Division,NYAS,4000249280,35000.00,Funding to deliver policies (excluding consultancy) paid to third parties via a service delivery contract
Department for Education,DEPARTMENT FOR EDUCATION,06/10/2016,Grants,"Children's Services, Equalities and Communication Safeguarding Group",SLOUGH CHILDRENS SERVICES TRUST LTD,4000249302,433069.00,Grants to local authorities / other establishments within aggregate external funding or aggregate exchequer grant
Department for Education,STANDARDS AND TESTING AGENCY,06/10/2016,Programme costs,Test Development Division,GWASG PIA CYF,4000249305,34060.50,Funding to deliver policies (excluding consultancy) paid to third parties via a service delivery contract
Department for Education,DEPARTMENT FOR EDUCATION,06/10/2016,Grants,Adoption and Children in Care Division,THE SHARE FOUNDATION 3RD PARTY TRUST,4000249306,37000.00,Grants to educational establishments or not for profit organisations including other businesses
Department for Education,STANDARDS AND TESTING AGENCY,06/10/2016,Programme costs,Test Development Division,LEARN DIRECT,4000249307,52023.43,Funding to deliver policies (excluding consultancy) paid to third parties via a service delivery contract
Department for Education,DEPARTMENT FOR EDUCATION,06/10/2016,Communications,"Children's Services, Equalities and Communication Safeguarding Group",CARAT,4000249312,4247.54,Marketing services
Department for Education,NATIONAL COLLEGE FOR TEACHING AND LEADERSHIP AGENCY,06/10/2016,Communications,Operations Directorate,CARAT,4000249312,138949.11,Marketing services
Department for Education,NATIONAL COLLEGE FOR TEACHING AND LEADERSHIP AGENCY,06/10/2016,Communications,Operations Directorate,HIGH FLIERS RESEARCH LTD,4000249318,29700.00,Marketing services
Department for Education,DEPARTMENT FOR EDUCATION,06/10/2016,Personnel Related,"Children's Services, Equalities and Communication Safeguarding Group",DELOITTE LLP,4000249313,468562.00,"Personnel costs including staff recruitment, staff restaurant subsidies, family care expenses"
Department for Education,DEPARTMENT FOR EDUCATION,06/10/2016,Grants,Academies Regional Delivery Group,BISHOP ANTHONY EDUCATIONAL TRUST,4000249322,25000.00,Grants to educational establishments or not for profit organisations including other businesses
Department for Education,DEPARTMENT FOR EDUCATION,06/10/2016,Grants,"Children's Services, Equalities and Communication Safeguarding Group",THE TAVISTOCK & PORTMAN NHS FOUNDATION TRUST,4000249324,130320.00,Grants to educational establishments or not for profit organisations including other businesses
Department for Education,DEPARTMENT FOR EDUCATION,06/10/2016,Grants,Academies Regional Delivery Group,VALLEY INVICTA ACADEMIES TRUST,4000249325,80000.00,Capital grants paid to a private sector organisation or educational establishment
Department for Education,DEPARTMENT FOR EDUCATION,06/10/2016,Grants,Academies Regional Delivery Group,THE TED WRAGG MULTI ACADEMY TRUST,4000249326,25000.00,Grants to educational establishments or not for profit organisations including other businesses
Department for Education,DEPARTMENT FOR EDUCATION,06/10/2016,Professional Services Other,"Children's Services, Equalities and Communication Safeguarding Group",TNS BMRB,4000249330,59869.20,Research and evaluation activities
Department for Education,DEPARTMENT FOR EDUCATION,06/10/2016,Grants,Academies Regional Delivery Group,KENT CATHOLIC SCHOOLS PARTNERSHIP,4000249331,80000.00,Capital grants paid to a private sector organisation or educational establishment
Department for Education,DEPARTMENT FOR EDUCATION,06/10/2016,Professional Services Other,"Independent Education, Safeguarding in Schools and Counter Extremism Group",GOVERNMENT LEGAL DEPARTMENT,4000249349,55180.17,Legal services provided by Treasury Solicitor 
Department for Education,DEPARTMENT FOR EDUCATION,06/10/2016,Professional Services Other,Strategic Analysis and Research Group,TNS BMRB,4000249330,32621.00,Research and evaluation activities
Department for Education,NATIONAL COLLEGE FOR TEACHING AND LEADERSHIP AGENCY,06/10/2016,Communications,Operations Directorate,CARAT,4000249312,5436.62,"Publicity, advertising, media advertising campaigns (excluding recruitment adverts)"
Department for Education,DEPARTMENT FOR EDUCATION,06/10/2016,Facilities,Property Asset Management Group,THE ROYAL PARKS,4000249288,71504.95,Licence fee to enable access to St James Park and gates on to the Horse Guards Parade for plant and equipment during the construction phase for the Old Admiralty Building.
Department for Education,EDUCATION FUNDING AGENCY,07/10/2016,Office Solutions,Education Funding Agency Admin,ROYAL BANK OF SCOTLAND,4000249362,12.00,Payment of electronic procurement card (ePCS) invoice from September 2016. Details of ePCS spend over 500 can be found at https://www.gov.uk/government/collections/dfe-government-procurement-card-gpc-over-500.
Department for Education,DEPARTMENT FOR EDUCATION,07/10/2016,Facilities,Property Asset Management Group,BABCOCK CIVIL INFRASTRUCTURE LTD,4000249354,42386.83,"Building maintenance and repair, including repainting, replacing flooring, etc."
Department for Education,DEPARTMENT FOR EDUCATION,07/10/2016,Facilities,Property Asset Management Group,CAPITA PROPERTY & INFRASTRUCTURE LTD,4000249356,163785.88,Property management
Department for Education,DEPARTMENT FOR EDUCATION,07/10/2016,Facilities,Property Asset Management Group,CAPITA PROPERTY & INFRASTRUCTURE LTD,4000249356,1240365.47,Rent
Department for Education,STANDARDS AND TESTING AGENCY,07/10/2016,Professional Services Consultancy and Contingent Labour,Standards and Testing Agency Admin,ROYAL BANK OF SCOTLAND,4000249362,20.28,Payment of electronic procurement card (ePCS) invoice from September 2016. Details of ePCS spend over 500 can be found at https://www.gov.uk/government/collections/dfe-government-procurement-card-gpc-over-500.
Department for Education,DEPARTMENT FOR EDUCATION,07/10/2016,ICT,Communications Group,ROYAL BANK OF SCOTLAND,4000249362,25.09,Payment of electronic procurement card (ePCS) invoice from September 2016. Details of ePCS spend over 500 can be found at https://www.gov.uk/government/collections/dfe-government-procurement-card-gpc-over-500.
Department for Education,DEPARTMENT FOR EDUCATION,07/10/2016,Office Solutions,Academies Regional Delivery Group,ROYAL BANK OF SCOTLAND,4000249362,27.16,Payment of electronic procurement card (ePCS) invoice from September 2016. Details of ePCS spend over 500 can be found at https://www.gov.uk/government/collections/dfe-government-procurement-card-gpc-over-500.
Department for Education,DEPARTMENT FOR EDUCATION,07/10/2016,Office Solutions,Teachers and Teaching Group,ROYAL BANK OF SCOTLAND,4000249362,30.99,Payment of electronic procurement card (ePCS) invoice from September 2016. Details of ePCS spend over 500 can be found at https://www.gov.uk/government/collections/dfe-government-procurement-card-gpc-over-500.
Department for Education,DEPARTMENT FOR EDUCATION,07/10/2016,Print and Print Management,Strategic Analysis and Research Group,ROYAL BANK OF SCOTLAND,4000249362,31.20,Payment of electronic procurement card (ePCS) invoice from September 2016. Details of ePCS spend over 500 can be found at https://www.gov.uk/government/collections/dfe-government-procurement-card-gpc-over-500.
Department for Education,DEPARTMENT FOR EDUCATION,07/10/2016,Office Solutions,Communications Group,ROYAL BANK OF SCOTLAND,4000249362,38.70,Payment of electronic procurement card (ePCS) invoice from September 2016. Details of ePCS spend over 500 can be found at https://www.gov.uk/government/collections/dfe-government-procurement-card-gpc-over-500.
Department for Education,DEPARTMENT FOR EDUCATION,07/10/2016,ICT,Education Funding Group,ROYAL BANK OF SCOTLAND,4000249362,42.00,Payment of electronic procurement card (ePCS) invoice from September 2016. Details of ePCS spend over 500 can be found at https://www.gov.uk/government/collections/dfe-government-procurement-card-gpc-over-500.
Department for Education,DEPARTMENT FOR EDUCATION,07/10/2016,Print and Print Management,Information Technology Group,ROYAL BANK OF SCOTLAND,4000249362,50.97,Payment of electronic procurement card (ePCS) invoice from September 2016. Details of ePCS spend over 500 can be found at https://www.gov.uk/government/collections/dfe-government-procurement-card-gpc-over-500.
Department for Education,DEPARTMENT FOR EDUCATION,07/10/2016,Office Solutions,Academies Regional Delivery Group,ROYAL BANK OF SCOTLAND,4000249362,51.35,Payment of electronic procurement card (ePCS) invoice from September 2016. Details of ePCS spend over 500 can be found at https://www.gov.uk/government/collections/dfe-government-procurement-card-gpc-over-500.
Department for Education,DEPARTMENT FOR EDUCATION,07/10/2016,Office Solutions,Information Technology Group,ROYAL BANK OF SCOTLAND,4000249362,57.10,Payment of electronic procurement card (ePCS) invoice from September 2016. Details of ePCS spend over 500 can be found at https://www.gov.uk/government/collections/dfe-government-procurement-card-gpc-over-500.
Department for Education,DEPARTMENT FOR EDUCATION,07/10/2016,Office Solutions,Strategic Analysis and Research Group,ROYAL BANK OF SCOTLAND,4000249362,59.62,Payment of electronic procurement card (ePCS) invoice from September 2016. Details of ePCS spend over 500 can be found at https://www.gov.uk/government/collections/dfe-government-procurement-card-gpc-over-500.
Department for Education,DEPARTMENT FOR EDUCATION,07/10/2016,Office Solutions,Strategic Analysis and Research Group,ROYAL BANK OF SCOTLAND,4000249362,71.52,Payment of electronic procurement card (ePCS) invoice from September 2016. Details of ePCS spend over 500 can be found at https://www.gov.uk/government/collections/dfe-government-procurement-card-gpc-over-500.
Department for Education,DEPARTMENT FOR EDUCATION,07/10/2016,ICT,Ministerial and Public Communications Group,ROYAL BANK OF SCOTLAND,4000249362,71.92,Payment of electronic procurement card (ePCS) invoice from September 2016. Details of ePCS spend over 500 can be found at https://www.gov.uk/government/collections/dfe-government-procurement-card-gpc-over-500.
Department for Education,DEPARTMENT FOR EDUCATION,07/10/2016,Office Solutions,Property Asset Management Group,ROYAL BANK OF SCOTLAND,4000249362,79.60,Payment of electronic procurement card (ePCS) invoice from September 2016. Details of ePCS spend over 500 can be found at https://www.gov.uk/government/collections/dfe-government-procurement-card-gpc-over-500.
Department for Education,DEPARTMENT FOR EDUCATION,07/10/2016,Office Solutions,Communications Group,ROYAL BANK OF SCOTLAND,4000249362,87.62,Payment of electronic procurement card (ePCS) invoice from September 2016. Details of ePCS spend over 500 can be found at https://www.gov.uk/government/collections/dfe-government-procurement-card-gpc-over-500.
Department for Education,DEPARTMENT FOR EDUCATION,07/10/2016,Learning and Development,Academies Regional Delivery Group,ROYAL BANK OF SCOTLAND,4000249362,130.80,Payment of electronic procurement card (ePCS) invoice from September 2016. Details of ePCS spend over 500 can be found at https://www.gov.uk/government/collections/dfe-government-procurement-card-gpc-over-500.
Department for Education,DEPARTMENT FOR EDUCATION,07/10/2016,Office Solutions,Systems and Accountability Group,ROYAL BANK OF SCOTLAND,4000249362,144.50,Payment of electronic procurement card (ePCS) invoice from September 2016. Details of ePCS spend over 500 can be found at https://www.gov.uk/government/collections/dfe-government-procurement-card-gpc-over-500.
Department for Education,DEPARTMENT FOR EDUCATION,07/10/2016,Office Solutions,Property Asset Management Group,ROYAL BANK OF SCOTLAND,4000249362,145.50,Payment of electronic procurement card (ePCS) invoice from September 2016. Details of ePCS spend over 500 can be found at https://www.gov.uk/government/collections/dfe-government-procurement-card-gpc-over-500. TV licence for the Department for Education.
Department for Education,DEPARTMENT FOR EDUCATION,07/10/2016,Office Solutions,Property Asset Management Group,ROYAL BANK OF SCOTLAND,4000249362,145.50,Payment of electronic procurement card (ePCS) invoice from September 2016. Details of ePCS spend over 500 can be found at https://www.gov.uk/government/collections/dfe-government-procurement-card-gpc-over-500. TV licence for DECC.
Department for Education,DEPARTMENT FOR EDUCATION,07/10/2016,Office Solutions,Property Asset Management Group,ROYAL BANK OF SCOTLAND,4000249362,150.00,Payment of electronic procurement card (ePCS) invoice from September 2016. Details of ePCS spend over 500 can be found at https://www.gov.uk/government/collections/dfe-government-procurement-card-gpc-over-500.
Department for Education,DEPARTMENT FOR EDUCATION,07/10/2016,Office Solutions,Academies Regional Delivery Group,ROYAL BANK OF SCOTLAND,4000249362,221.00,Payment of electronic procurement card (ePCS) invoice from September 2016. Details of ePCS spend over 500 can be found at https://www.gov.uk/government/collections/dfe-government-procurement-card-gpc-over-500.
Department for Education,DEPARTMENT FOR EDUCATION,07/10/2016,ICT,Legal Advisers Office,ROYAL BANK OF SCOTLAND,4000249362,228.00,Payment of electronic procurement card (ePCS) invoice from September 2016. Details of ePCS spend over 500 can be found at https://www.gov.uk/government/collections/dfe-government-procurement-card-gpc-over-500.
Department for Education,DEPARTMENT FOR EDUCATION,07/10/2016,Facilities,Teachers and Teaching Group,ROYAL BANK OF SCOTLAND,4000249362,245.99,Payment of electronic procurement card (ePCS) invoice from September 2016. Details of ePCS spend over 500 can be found at https://www.gov.uk/government/collections/dfe-government-procurement-card-gpc-over-500.
Department for Education,DEPARTMENT FOR EDUCATION,07/10/2016,Office Solutions,Information Technology Group,ROYAL BANK OF SCOTLAND,4000249362,262.62,Payment of electronic procurement card (ePCS) invoice from September 2016. Details of ePCS spend over 500 can be found at https://www.gov.uk/government/collections/dfe-government-procurement-card-gpc-over-500.
Department for Education,DEPARTMENT FOR EDUCATION,07/10/2016,Print and Print Management,Information Technology Group,ROYAL BANK OF SCOTLAND,4000249362,269.75,Payment of electronic procurement card (ePCS) invoice from September 2016. Details of ePCS spend over 500 can be found at https://www.gov.uk/government/collections/dfe-government-procurement-card-gpc-over-500.
Department for Education,DEPARTMENT FOR EDUCATION,07/10/2016,Office Solutions,Academies Regional Delivery Group,ROYAL BANK OF SCOTLAND,4000249362,280.00,Payment of electronic procurement card (ePCS) invoice from September 2016. Details of ePCS spend over 500 can be found at https://www.gov.uk/government/collections/dfe-government-procurement-card-gpc-over-500.
Department for Education,DEPARTMENT FOR EDUCATION,07/10/2016,Office Solutions,Finance and Commercial Group,ROYAL BANK OF SCOTLAND,4000249362,358.92,Payment of electronic procurement card (ePCS) invoice from September 2016. Details of ePCS spend over 500 can be found at https://www.gov.uk/government/collections/dfe-government-procurement-card-gpc-over-500.
Department for Education,DEPARTMENT FOR EDUCATION,07/10/2016,Office Solutions,Information Technology Group,ROYAL BANK OF SCOTLAND,4000249362,372.53,Payment of electronic procurement card (ePCS) invoice from September 2016. Details of ePCS spend over 500 can be found at https://www.gov.uk/government/collections/dfe-government-procurement-card-gpc-over-500.
Department for Education,DEPARTMENT FOR EDUCATION,07/10/2016,Print and Print Management,Information Technology Group,ROYAL BANK OF SCOTLAND,4000249362,398.52,Payment of electronic procurement card (ePCS) invoice from September 2016. Details of ePCS spend over 500 can be found at https://www.gov.uk/government/collections/dfe-government-procurement-card-gpc-over-500.
Department for Education,DEPARTMENT FOR EDUCATION,07/10/2016,Programme costs,"Assessment, Curriculum and General Qualifications Group",IOP INSTITUTE OF PHYSICS,4000249375,220729.52,Funding to deliver policies (excluding consultancy) paid to third parties via a service delivery contract
Department for Education,DEPARTMENT FOR EDUCATION,07/10/2016,Programme costs,Children's Services Special Educational Needs Group,CONTACT A FAMILY,4000249384,149961.31,Funding to deliver policies (excluding consultancy) paid to third parties via a service delivery contract
Department for Education,NATIONAL COLLEGE FOR TEACHING AND LEADERSHIP AGENCY,07/10/2016,Professional Services Other,Operations Directorate,NABARRO LLP,4000249389,36223.72,"Fees / expenses of professionals, for example to implement advice or changes"
Department for Education,DEPARTMENT FOR EDUCATION,07/10/2016,Office Solutions,Information Technology Group,ROYAL BANK OF SCOTLAND,4000249362,399.68,Payment of electronic procurement card (ePCS) invoice from September 2016. Details of ePCS spend over 500 can be found at https://www.gov.uk/government/collections/dfe-government-procurement-card-gpc-over-500.
Department for Education,DEPARTMENT FOR EDUCATION,07/10/2016,Office Solutions,Communications Group,ROYAL BANK OF SCOTLAND,4000249362,423.80,Payment of electronic procurement card (ePCS) invoice from September 2016. Details of ePCS spend over 500 can be found at https://www.gov.uk/government/collections/dfe-government-procurement-card-gpc-over-500.
Department for Education,DEPARTMENT FOR EDUCATION,07/10/2016,Office Solutions,Information Technology Group,ROYAL BANK OF SCOTLAND,4000249362,426.90,Payment of electronic procurement card (ePCS) invoice from September 2016. Details of ePCS spend over 500 can be found at https://www.gov.uk/government/collections/dfe-government-procurement-card-gpc-over-500.
Department for Education,DEPARTMENT FOR EDUCATION,07/10/2016,Professional Services Consultancy and Contingent Labour,Strategic Analysis and Research Group,ROYAL BANK OF SCOTLAND,4000249362,500.81,Payment of electronic procurement card (ePCS) invoice from September 2016. Details of ePCS spend over 500 can be found at https://www.gov.uk/government/collections/dfe-government-procurement-card-gpc-over-500.
Department for Education,STANDARDS AND TESTING AGENCY,07/10/2016,Office Solutions,Test Development Division,ROYAL BANK OF SCOTLAND,4000249362,522.00,Payment of electronic procurement card (ePCS) invoice from September 2016. Details of ePCS spend over 500 can be found at https://www.gov.uk/government/collections/dfe-government-procurement-card-gpc-over-500.
Department for Education,DEPARTMENT FOR EDUCATION,07/10/2016,Print and Print Management,Information Technology Group,ROYAL BANK OF SCOTLAND,4000249362,613.54,Payment of electronic procurement card (ePCS) invoice from September 2016. Details of ePCS spend over 500 can be found at https://www.gov.uk/government/collections/dfe-government-procurement-card-gpc-over-500.
Department for Education,NATIONAL COLLEGE FOR TEACHING AND LEADERSHIP AGENCY,07/10/2016,Office Solutions,Operations Directorate,ROYAL BANK OF SCOTLAND,4000249362,982.04,Payment of electronic procurement card (ePCS) invoice from September 2016. Details of ePCS spend over 500 can be found at https://www.gov.uk/government/collections/dfe-government-procurement-card-gpc-over-500.
Department for Education,DEPARTMENT FOR EDUCATION,07/10/2016,Office Solutions,Information Technology Group,ROYAL BANK OF SCOTLAND,4000249362,1059.82,Payment of electronic procurement card (ePCS) invoice from September 2016. Details of ePCS spend over 500 can be found at https://www.gov.uk/government/collections/dfe-government-procurement-card-gpc-over-500.
Department for Education,DEPARTMENT FOR EDUCATION,07/10/2016,Travel,Information Technology Group,ROYAL BANK OF SCOTLAND,4000249362,1435.20,Payment of electronic procurement card (ePCS) invoice from September 2016. Details of ePCS spend over 500 can be found at https://www.gov.uk/government/collections/dfe-government-procurement-card-gpc-over-500.
Department for Education,STANDARDS AND TESTING AGENCY,07/10/2016,Travel,Standards and Testing Agency Admin,ROYAL BANK OF SCOTLAND,4000249362,1458.06,Payment of electronic procurement card (ePCS) invoice from September 2016. Details of ePCS spend over 500 can be found at https://www.gov.uk/government/collections/dfe-government-procurement-card-gpc-over-500.
Department for Education,DEPARTMENT FOR EDUCATION,07/10/2016,Facilities,Information Technology Group,ROYAL BANK OF SCOTLAND,4000249362,2880.00,Payment of electronic procurement card (ePCS) invoice from September 2016. Details of ePCS spend over 500 can be found at https://www.gov.uk/government/collections/dfe-government-procurement-card-gpc-over-500.
Department for Education,DEPARTMENT FOR EDUCATION,07/10/2016,Print and Print Management,Legal Advisers Office,ROYAL BANK OF SCOTLAND,4000249362,4770.90,Payment of electronic procurement card (ePCS) invoice from September 2016. Details of ePCS spend over 500 can be found at https://www.gov.uk/government/collections/dfe-government-procurement-card-gpc-over-500.
Department for Education,DEPARTMENT FOR EDUCATION,07/10/2016,Office Solutions,Information Technology Group,ROYAL BANK OF SCOTLAND,4000249362,10082.09,Payment of electronic procurement card (ePCS) invoice from September 2016. Details of ePCS spend over 500 can be found at https://www.gov.uk/government/collections/dfe-government-procurement-card-gpc-over-500.
Department for Education,DEPARTMENT FOR EDUCATION,10/10/2016,Professional Services Consultancy and Contingent Labour,Systems and Accountability Group,CADENCE PARTNERSHIP LLP,4000249422,150000.00,Costs related to temporary workers
Department for Education,DEPARTMENT FOR EDUCATION,10/10/2016,Professional Services Consultancy and Contingent Labour,Finance and Commercial Group,2020 DELIVERY LTD,4000249539,87958.80,"Advisory services including fees, travel and expenses"
Department for Education,DEPARTMENT FOR EDUCATION,10/10/2016,Facilities,Property Asset Management Group,CAPITA PROPERTY & INFRASTRUCTURE LTD,4000249540,38748.24,Property management
Department for Education,DEPARTMENT FOR EDUCATION,10/10/2016,Grants,Adoption and Children in Care Division,CORAM CAMBRIDGESHIRE ADOPTION LTD,4000249405,81000.00,Grants to local authorities / other establishments within aggregate external funding or aggregate exchequer grant
Department for Education,DEPARTMENT FOR EDUCATION,10/10/2016,Grants,Adoption and Children in Care Division,WAKEFIELD MDC,4000249409,63000.00,Grants to local authorities / other establishments within aggregate external funding or aggregate exchequer grant
Department for Education,DEPARTMENT FOR EDUCATION,10/10/2016,Grants,Adoption and Children in Care Division,CALDERDALE MBC,4000249410,43000.00,Grants to local authorities / other establishments within aggregate external funding or aggregate exchequer grant
Department for Education,DEPARTMENT FOR EDUCATION,10/10/2016,Grants,Adoption and Children in Care Division,CITY OF BRADFORD METROPOLITAN DISTRICT COUNCIL,4000249411,54000.00,Grants to local authorities / other establishments within aggregate external funding or aggregate exchequer grant
Department for Education,DEPARTMENT FOR EDUCATION,10/10/2016,Grants,Adoption and Children in Care Division,SALFORD CITY COUNCIL,4000249412,43000.00,Grants to local authorities / other establishments within aggregate external funding or aggregate exchequer grant
Department for Education,DEPARTMENT FOR EDUCATION,10/10/2016,Grants,Adoption and Children in Care Division,KNOWSLEY MBC,4000249413,60000.00,Grants to local authorities / other establishments within aggregate external funding or aggregate exchequer grant
Department for Education,DEPARTMENT FOR EDUCATION,10/10/2016,Grants,Adoption and Children in Care Division,WOLVERHAMPTON CITY COUNCIL,4000249415,27000.00,Grants to local authorities / other establishments within aggregate external funding or aggregate exchequer grant
Department for Education,DEPARTMENT FOR EDUCATION,10/10/2016,Grants,Adoption and Children in Care Division,THE ROYAL BOROUGH OF WINDSOR & MAIDENHEAD,4000249416,43000.00,Grants to local authorities / other establishments within aggregate external funding or aggregate exchequer grant
Department for Education,DEPARTMENT FOR EDUCATION,10/10/2016,Grants,Adoption and Children in Care Division,WILTSHIRE COUNCIL,4000249417,43000.00,Grants to local authorities / other establishments within aggregate external funding or aggregate exchequer grant
Department for Education,DEPARTMENT FOR EDUCATION,10/10/2016,Grants,Adoption and Children in Care Division,STOKE ON TRENT CITY COUNCIL,4000249418,27000.00,Grants to local authorities / other establishments within aggregate external funding or aggregate exchequer grant
Department for Education,DEPARTMENT FOR EDUCATION,10/10/2016,Grants,Adoption and Children in Care Division,DONCASTER CHILDRENS TRUST,4000249424,27000.00,Grants to local authorities / other establishments within aggregate external funding or aggregate exchequer grant
Department for Education,DEPARTMENT FOR EDUCATION,10/10/2016,Grants,Adoption and Children in Care Division,SANDWELL MBC,4000249425,27000.00,Grants to local authorities / other establishments within aggregate external funding or aggregate exchequer grant
Department for Education,DEPARTMENT FOR EDUCATION,10/10/2016,Grants,Adoption and Children in Care Division,DUDLEY MBC,4000249426,54000.00,Grants to local authorities / other establishments within aggregate external funding or aggregate exchequer grant
Department for Education,DEPARTMENT FOR EDUCATION,10/10/2016,Grants,Adoption and Children in Care Division,BIRMINGHAM CITY COUNCIL,4000249427,183000.00,Grants to local authorities / other establishments within aggregate external funding or aggregate exchequer grant
Department for Education,DEPARTMENT FOR EDUCATION,10/10/2016,Grants,Adoption and Children in Care Division,LONDON BOROUGH OF ENFIELD COUNCIL,4000249428,27000.00,Grants to local authorities / other establishments within aggregate external funding or aggregate exchequer grant
Department for Education,DEPARTMENT FOR EDUCATION,10/10/2016,Grants,Adoption and Children in Care Division,LONDON BOROUGH OF BROMLEY COUNCIL,4000249429,27000.00,Grants to local authorities / other establishments within aggregate external funding or aggregate exchequer grant
Department for Education,DEPARTMENT FOR EDUCATION,10/10/2016,Grants,Adoption and Children in Care Division,STAFFORDSHIRE COUNCIL,4000249430,86000.00,Grants to local authorities / other establishments within aggregate external funding or aggregate exchequer grant
Department for Education,DEPARTMENT FOR EDUCATION,10/10/2016,Grants,Adoption and Children in Care Division,PORTSMOUTH CITY COUNCIL,4000249431,87000.00,Grants to local authorities / other establishments within aggregate external funding or aggregate exchequer grant
Department for Education,DEPARTMENT FOR EDUCATION,10/10/2016,Grants,Adoption and Children in Care Division,BRIGHTON & HOVE CITY COUNCIL,4000249432,113000.00,Grants to local authorities / other establishments within aggregate external funding or aggregate exchequer grant
Department for Education,DEPARTMENT FOR EDUCATION,10/10/2016,Grants,Adoption and Children in Care Division,DARLINGTON BOROUGH COUNCIL,4000249433,43000.00,Grants to local authorities / other establishments within aggregate external funding or aggregate exchequer grant
Department for Education,DEPARTMENT FOR EDUCATION,10/10/2016,Programme costs,"Children's Services, Equalities and Communication Safeguarding Group",EARLY INTERVENTION FOUNDATION,4000249435,133332.00,Funding to deliver policies (excluding consultancy) paid to third parties via a service delivery contract
Department for Education,DEPARTMENT FOR EDUCATION,10/10/2016,Grants,Adoption and Children in Care Division,LONDON BOROUGH OF BARNET COUNCIL,4000249440,60000.00,Grants to local authorities / other establishments within aggregate external funding or aggregate exchequer grant
Department for Education,DEPARTMENT FOR EDUCATION,10/10/2016,Grants,Adoption and Children in Care Division,SHEFFIELD CITY COUNCIL,4000249441,27000.00,Grants to local authorities / other establishments within aggregate external funding or aggregate exchequer grant
Department for Education,DEPARTMENT FOR EDUCATION,10/10/2016,Grants,Adoption and Children in Care Division,SUNDERLAND CITY COUNCIL,4000249442,27000.00,Grants to local authorities / other establishments within aggregate external funding or aggregate exchequer grant
Department for Education,DEPARTMENT FOR EDUCATION,10/10/2016,Grants,Adoption and Children in Care Division,LEEDS CITY COUNCIL,4000249444,194000.00,Grants to local authorities / other establishments within aggregate external funding or aggregate exchequer grant
Department for Education,DEPARTMENT FOR EDUCATION,10/10/2016,Grants,Adoption and Children in Care Division,DORSET COUNTY COUNCIL,4000249445,43000.00,Grants to local authorities / other establishments within aggregate external funding or aggregate exchequer grant
Department for Education,DEPARTMENT FOR EDUCATION,10/10/2016,Grants,Adoption and Children in Care Division,LUTON BOROUGH COUNCIL,4000249446,27000.00,Grants to local authorities / other establishments within aggregate external funding or aggregate exchequer grant
Department for Education,DEPARTMENT FOR EDUCATION,10/10/2016,Grants,Adoption and Children in Care Division,BEDFORD BOROUGH COUNCIL,4000249447,43000.00,Grants to local authorities / other establishments within aggregate external funding or aggregate exchequer grant
Department for Education,DEPARTMENT FOR EDUCATION,10/10/2016,Grants,Adoption and Children in Care Division,NORTH YORKSHIRE COUNTY COUNCIL,4000249448,27000.00,Grants to local authorities / other establishments within aggregate external funding or aggregate exchequer grant
Department for Education,DEPARTMENT FOR EDUCATION,10/10/2016,Grants,Adoption and Children in Care Division,NORTH EAST LINCOLNSHIRE COUNCIL,4000249449,27000.00,Grants to local authorities / other establishments within aggregate external funding or aggregate exchequer grant
Department for Education,DEPARTMENT FOR EDUCATION,10/10/2016,Grants,Adoption and Children in Care Division,LONDON BOROUGH OF HACKNEY,4000249455,54000.00,Grants to local authorities / other establishments within aggregate external funding or aggregate exchequer grant
Department for Education,DEPARTMENT FOR EDUCATION,10/10/2016,Grants,Adoption and Children in Care Division,WALSALL MBC,4000249456,27000.00,Grants to local authorities / other establishments within aggregate external funding or aggregate exchequer grant
Department for Education,DEPARTMENT FOR EDUCATION,10/10/2016,Grants,Adoption and Children in Care Division,LONDON BOROUGH OF CAMDEN,4000249458,27000.00,Grants to local authorities / other establishments within aggregate external funding or aggregate exchequer grant
Department for Education,DEPARTMENT FOR EDUCATION,10/10/2016,Grants,Adoption and Children in Care Division,WARWICKSHIRE COUNTY COUNCIL,4000249459,81000.00,Grants to local authorities / other establishments within aggregate external funding or aggregate exchequer grant
Department for Education,DEPARTMENT FOR EDUCATION,10/10/2016,Grants,Adoption and Children in Care Division,SURREY COUNTY COUNCIL,4000249460,27000.00,Grants to local authorities / other establishments within aggregate external funding or aggregate exchequer grant
Department for Education,DEPARTMENT FOR EDUCATION,10/10/2016,Grants,Adoption and Children in Care Division,BOLTON MBC,4000249467,43000.00,Grants to local authorities / other establishments within aggregate external funding or aggregate exchequer grant
Department for Education,DEPARTMENT FOR EDUCATION,10/10/2016,Programme costs,Children's Services Special Educational Needs Group,NATIONAL CHILDRENS BUREAU,4000249486,47618.40,Funding to deliver policies (excluding consultancy) paid to third parties via a service delivery contract
Department for Education,DEPARTMENT FOR EDUCATION,10/10/2016,Grants,Adoption and Children in Care Division,SOMERSET COUNTY COUNCIL,4000249489,27000.00,Grants to local authorities / other establishments within aggregate external funding or aggregate exchequer grant
Department for Education,DEPARTMENT FOR EDUCATION,10/10/2016,Grants,Adoption and Children in Care Division,EAST SUSSEX COUNTY COUNCIL,4000249502,27000.00,Grants to local authorities / other establishments within aggregate external funding or aggregate exchequer grant
Department for Education,DEPARTMENT FOR EDUCATION,10/10/2016,Grants,Adoption and Children in Care Division,NORTHUMBERLAND COUNTY COUNCIL,4000249506,27000.00,Grants to local authorities / other establishments within aggregate external funding or aggregate exchequer grant
Department for Education,DEPARTMENT FOR EDUCATION,10/10/2016,Grants,Adoption and Children in Care Division,NORTHAMPTONSHIRE COUNTY COUNCIL,4000249507,43000.00,Grants to local authorities / other establishments within aggregate external funding or aggregate exchequer grant
Department for Education,DEPARTMENT FOR EDUCATION,10/10/2016,Grants,Adoption and Children in Care Division,ISLE OF WIGHT COUNCIL,4000249508,43000.00,Grants to local authorities / other establishments within aggregate external funding or aggregate exchequer grant
Department for Education,DEPARTMENT FOR EDUCATION,10/10/2016,Grants,Adoption and Children in Care Division,GLOUCESTERSHIRE COUNTY COUNCIL,4000249509,43000.00,Grants to local authorities / other establishments within aggregate external funding or aggregate exchequer grant
Department for Education,DEPARTMENT FOR EDUCATION,10/10/2016,Grants,Adoption and Children in Care Division,CUMBRIA COUNTY COUNCIL,4000249527,67300.00,Grants to local authorities / other establishments within aggregate external funding or aggregate exchequer grant
Department for Education,DEPARTMENT FOR EDUCATION,10/10/2016,Grants,Adoption and Children in Care Division,TELFORD & WREKIN COUNCIL,4000249528,27000.00,Grants to local authorities / other establishments within aggregate external funding or aggregate exchequer grant
Department for Education,DEPARTMENT FOR EDUCATION,10/10/2016,Grants,Adoption and Children in Care Division,NOTTINGHAM CITY COUNCIL,4000249529,27000.00,Grants to local authorities / other establishments within aggregate external funding or aggregate exchequer grant
Department for Education,DEPARTMENT FOR EDUCATION,10/10/2016,Grants,Adoption and Children in Care Division,LANCASHIRE COUNTY COUNCIL,4000249530,27000.00,Grants to local authorities / other establishments within aggregate external funding or aggregate exchequer grant
Department for Education,DEPARTMENT FOR EDUCATION,10/10/2016,Grants,Adoption and Children in Care Division,MEDWAY COUNCIL,4000249531,43000.00,Grants to local authorities / other establishments within aggregate external funding or aggregate exchequer grant
Department for Education,DEPARTMENT FOR EDUCATION,10/10/2016,Grants,Adoption and Children in Care Division,WORCESTERSHIRE COUNTY COUNCIL,4000249545,27000.00,Grants to local authorities / other establishments within aggregate external funding or aggregate exchequer grant
Department for Education,DEPARTMENT FOR EDUCATION,10/10/2016,Grants,Adoption and Children in Care Division,THURROCK COUNCIL,4000249546,54000.00,Grants to local authorities / other establishments within aggregate external funding or aggregate exchequer grant
Department for Education,DEPARTMENT FOR EDUCATION,10/10/2016,Grants,Adoption and Children in Care Division,ESSEX COUNTY COUNCIL,4000249547,27000.00,Grants to local authorities / other establishments within aggregate external funding or aggregate exchequer grant
Department for Education,DEPARTMENT FOR EDUCATION,10/10/2016,Grants,Adoption and Children in Care Division,PLYMOUTH CITY COUNCIL,4000249548,70000.00,Grants to local authorities / other establishments within aggregate external funding or aggregate exchequer grant
Department for Education,DEPARTMENT FOR EDUCATION,10/10/2016,Grants,Adoption and Children in Care Division,WARRINGTON BOROUGH COUNCIL,4000249549,86000.00,Grants to local authorities / other establishments within aggregate external funding or aggregate exchequer grant
Department for Education,DEPARTMENT FOR EDUCATION,10/10/2016,Facilities,Property Asset Management Group,HOME OFFICE,4000249473,3479465.50,Rent
Department for Education,DEPARTMENT FOR EDUCATION,10/10/2016,Professional Services Consultancy and Contingent Labour,Portfolio Management Board,METHODS PROFESSIONAL SERVICES LTD,4000249541,25352.70,Costs related to temporary workers
Department for Education,DEPARTMENT FOR EDUCATION,10/10/2016,Professional Services Consultancy and Contingent Labour,Information Technology Group,METHODS PROFESSIONAL SERVICES LTD,4000249541,17160.00,Costs related to temporary workers
Department for Education,DEPARTMENT FOR EDUCATION,10/10/2016,Facilities,Property Asset Management Group,INTERSERVE FACILITIES MANAGEMENT LTD,4000249451,29735.37,"Building maintenance and repair, including repainting, replacing flooring, etc."
Department for Education,DEPARTMENT FOR EDUCATION,10/10/2016,Facilities,Property Asset Management Group,METHODS PROFESSIONAL SERVICES LTD,4000249541,17388.00,Programme management for construction work
Department for Education,DEPARTMENT FOR EDUCATION,10/10/2016,ICT,Information Technology Group,LOCKHEED MARTIN,4000249420,66334.25,ICT Services
Department for Education,DEPARTMENT FOR EDUCATION,10/10/2016,Professional Services Other,Strategic Analysis and Research Group,RM EDUCATION,4000249493,56797.00,Research and evaluation activities
Department for Education,DEPARTMENT FOR EDUCATION,10/10/2016,Professional Services Consultancy and Contingent Labour,Information Technology Group,RUSSAM GMS LTD,4000249484,13972.61,Costs related to temporary workers
Department for Education,DEPARTMENT FOR EDUCATION,10/10/2016,Professional Services Consultancy and Contingent Labour,Portfolio Management Board,RUSSAM GMS LTD,4000249484,20977.20,Costs related to temporary workers
Department for Education,DEPARTMENT FOR EDUCATION,10/10/2016,ICT,Information Technology Group,TRUSTMARQUE SOLUTIONS LTD,4000249542,88908.00,ICT Software
Department for Education,DEPARTMENT FOR EDUCATION,11/10/2016,Grants,Academies Regional Delivery Group,WINSTON WAY PRIMARY SCHOOL,4000249550,25000.00,Grants to educational establishments or not for profit organisations including other businesses
Department for Education,DEPARTMENT FOR EDUCATION,11/10/2016,Grants,Academies Regional Delivery Group,THE CONSORTIUM ACADEMY,4000249551,45000.00,Grants to educational establishments or not for profit organisations including other businesses
Department for Education,DEPARTMENT FOR EDUCATION,11/10/2016,Grants,Academies Regional Delivery Group,ICKNIELD COMMUNITY COLLEGE,4000249552,25000.00,Grants to educational establishments or not for profit organisations including other businesses
Department for Education,DEPARTMENT FOR EDUCATION,11/10/2016,Grants,Academies Regional Delivery Group,WOOD GREEN SCHOOL,4000249553,25000.00,Grants to educational establishments or not for profit organisations including other businesses
Department for Education,DEPARTMENT FOR EDUCATION,11/10/2016,Grants,Academies Regional Delivery Group,CHALGROVE COMMUNITY PRIMARY SCHOOL,4000249554,25000.00,Grants to educational establishments or not for profit organisations including other businesses
Department for Education,DEPARTMENT FOR EDUCATION,11/10/2016,Grants,Academies Regional Delivery Group,HARPER GREEN SCHOOL,4000249557,25000.00,Grants to educational establishments or not for profit organisations including other businesses
Department for Education,DEPARTMENT FOR EDUCATION,11/10/2016,Grants,Academies Regional Delivery Group,CHANGE SCHOOLS PARTNERSHIP,4000249563,45000.00,Grants to educational establishments or not for profit organisations including other businesses
Department for Education,DEPARTMENT FOR EDUCATION,11/10/2016,Grants,Academies Regional Delivery Group,HANLEY CASTLE HIGH SCHOOL,4000249574,75000.00,Grants to educational establishments or not for profit organisations including other businesses
Department for Education,DEPARTMENT FOR EDUCATION,11/10/2016,Grants,Academies Regional Delivery Group,BATH & WELLS MULTI ACADEMY TRUST,4000249575,25000.00,Grants to educational establishments or not for profit organisations including other businesses
Department for Education,DEPARTMENT FOR EDUCATION,11/10/2016,Professional Services Consultancy and Contingent Labour,Information Technology Group,METHODS PROFESSIONAL SERVICES LTD,4000249562,13209.60,Costs related to temporary workers
Department for Education,DEPARTMENT FOR EDUCATION,11/10/2016,Professional Services Consultancy and Contingent Labour,Information Technology Group,METHODS PROFESSIONAL SERVICES LTD,4000249562,13627.20,Costs related to temporary workers
Department for Education,DEPARTMENT FOR EDUCATION,11/10/2016,Miscellaneous Expenditure,Finance and Commercial Group,N/A � Risk Protection Arrangement (RPA) member,005921-001104-RB-01,53133.71,Property claim paid out to an academy trust by Gallagher Bassett on behalf of the Department as part of the Department's Risk Protection Arrangement (RPA).
Department for Education,DEPARTMENT FOR EDUCATION,11/10/2016,Miscellaneous Expenditure,Finance and Commercial Group,N/A � Risk Protection Arrangement (RPA) member,005921-000598-RB-01,35960.50,Property claim paid out to an academy trust by Gallagher Bassett on behalf of the Department as part of the Department's Risk Protection Arrangement (RPA).
Department for Education,DEPARTMENT FOR EDUCATION,11/10/2016,Miscellaneous Expenditure,Finance and Commercial Group,N/A � Risk Protection Arrangement (RPA) member,005921-000857-LL-01,33097.34,Legal Expenses claim paid out to an academy trust by Gallagher Bassett on behalf of the Department as part of the Department's Risk Protection Arrangement (RPA).
Department for Education,DEPARTMENT FOR EDUCATION,11/10/2016,Miscellaneous Expenditure,Finance and Commercial Group,N/A � Risk Protection Arrangement (RPA) member,005921-000620-RB-01,190000.00,Property claim paid out to an academy trust by Gallagher Bassett on behalf of the Department as part of the Department's Risk Protection Arrangement (RPA).
Department for Education,DEPARTMENT FOR EDUCATION,12/10/2016,Funding to pay Teachers' Pensions,Teachers and Teaching Group,TPS GOVERNMENT BANKING SERVICE ACCOUNT,2100133,264268.72,Pension related payments to retired teachers where liability has transferred to SoS
Department for Education,DEPARTMENT FOR EDUCATION,12/10/2016,Funding to pay Teachers' Pensions,Teachers and Teaching Group,TPS GOVERNMENT BANKING SERVICE ACCOUNT,2100133,6063.77,Pension related payments to retired teachers where liability has transferred to SoS
Department for Education,DEPARTMENT FOR EDUCATION,12/10/2016,Funding to pay Teachers' Pensions,Teachers and Teaching Group,TPS GOVERNMENT BANKING SERVICE ACCOUNT,2100134,723902.02,Pension related payments to retired teachers where liability has transferred to SoS
Department for Education,DEPARTMENT FOR EDUCATION,12/10/2016,Grants,System Reform Group,EAST SUSSEX COUNTY COUNCIL,4000249613,40608.00,Grants to local authorities / other establishments within aggregate external funding or aggregate exchequer grant
Department for Education,NATIONAL COLLEGE FOR TEACHING AND LEADERSHIP AGENCY,12/10/2016,Programme costs,Operations Directorate,TEXUNA TECHNOLOGIES,4000249624,45000.00,Funding to deliver policies (excluding consultancy) paid to third parties via a service delivery contract
Department for Education,DEPARTMENT FOR EDUCATION,12/10/2016,Grants,System Reform Group,NORFOLK COUNTY COUNCIL,4000249631,58008.00,Grants to local authorities / other establishments within aggregate external funding or aggregate exchequer grant
Department for Education,DEPARTMENT FOR EDUCATION,12/10/2016,Grants,System Reform Group,SOMERSET COUNTY COUNCIL,4000249633,29842.00,Grants to local authorities / other establishments within aggregate external funding or aggregate exchequer grant
Department for Education,DEPARTMENT FOR EDUCATION,12/10/2016,Grants,System Reform Group,NORTHAMPTONSHIRE COUNTY COUNCIL,4000249646,29933.00,Grants to local authorities / other establishments within aggregate external funding or aggregate exchequer grant
Department for Education,DEPARTMENT FOR EDUCATION,12/10/2016,Grants,System Reform Group,LINCOLNSHIRE COUNTY COUNCIL,4000249647,55150.00,Grants to local authorities / other establishments within aggregate external funding or aggregate exchequer grant
Department for Education,DEPARTMENT FOR EDUCATION,12/10/2016,Grants,System Reform Group,GLOUCESTERSHIRE COUNTY COUNCIL,4000249659,35142.00,Grants to local authorities / other establishments within aggregate external funding or aggregate exchequer grant
Department for Education,DEPARTMENT FOR EDUCATION,12/10/2016,Grants,System Reform Group,CORNWALL COUNCIL,4000249661,42792.00,Grants to local authorities / other establishments within aggregate external funding or aggregate exchequer grant
Department for Education,DEPARTMENT FOR EDUCATION,12/10/2016,Professional Services Other,Legal Advisers Office,CABINET OFFICE,4000249675,50240.00,Legal services provided externally (excluding Treasury Solicitor) 
Department for Education,DEPARTMENT FOR EDUCATION,12/10/2016,Grants,System Reform Group,NOTTINGHAMSHIRE COUNTY COUNCIL,4000249678,32875.00,Grants to local authorities / other establishments within aggregate external funding or aggregate exchequer grant
Department for Education,DEPARTMENT FOR EDUCATION,12/10/2016,Grants,System Reform Group,LANCASHIRE COUNTY COUNCIL,4000249691,50442.00,Grants to local authorities / other establishments within aggregate external funding or aggregate exchequer grant
Department for Education,DEPARTMENT FOR EDUCATION,12/10/2016,Grants,System Reform Group,KENT COUNTY COUNCIL,4000249693,104167.00,Grants to local authorities / other establishments within aggregate external funding or aggregate exchequer grant
Department for Education,DEPARTMENT FOR EDUCATION,12/10/2016,Grants,System Reform Group,WORCESTERSHIRE COUNTY COUNCIL,4000249704,27075.00,Grants to local authorities / other establishments within aggregate external funding or aggregate exchequer grant
Department for Education,DEPARTMENT FOR EDUCATION,12/10/2016,Grants,System Reform Group,ESSEX COUNTY COUNCIL,4000249708,50025.00,Grants to local authorities / other establishments within aggregate external funding or aggregate exchequer grant
Department for Education,DEPARTMENT FOR EDUCATION,12/10/2016,Grants,System Reform Group,SUFFOLK COUNTY COUNCIL,4000249715,42375.00,Grants to local authorities / other establishments within aggregate external funding or aggregate exchequer grant
Department for Education,DEPARTMENT FOR EDUCATION,12/10/2016,Grants,System Reform Group,DEVON COUNTY COUNCIL,4000249719,40775.00,Grants to local authorities / other establishments within aggregate external funding or aggregate exchequer grant
Department for Education,DEPARTMENT FOR EDUCATION,12/10/2016,Grants,System Reform Group,CAMBRIDGESHIRE COUNTY COUNCIL,4000249728,38842.00,Grants to local authorities / other establishments within aggregate external funding or aggregate exchequer grant
Department for Education,DEPARTMENT FOR EDUCATION,12/10/2016,Grants,System Reform Group,LEICESTERSHIRE COUNTY COUNCIL,4000249767,29592.00,Grants to local authorities / other establishments within aggregate external funding or aggregate exchequer grant
Department for Education,DEPARTMENT FOR EDUCATION,12/10/2016,Grants,System Reform Group,HAMPSHIRE COUNTY COUNCIL,4000249781,33458.00,Grants to local authorities / other establishments within aggregate external funding or aggregate exchequer grant
Department for Education,DEPARTMENT FOR EDUCATION,12/10/2016,Grants,System Reform Group,WEST SUSSEX COUNTY COUNCIL,4000249783,32367.00,Grants to local authorities / other establishments within aggregate external funding or aggregate exchequer grant
Department for Education,DEPARTMENT FOR EDUCATION,12/10/2016,Grants,"Children's Services, Equalities and Communication Safeguarding Group",DONCASTER CHILDRENS TRUST,4000249786,610775.00,Grants to educational establishments or not for profit organisations including other businesses
Department for Education,DEPARTMENT FOR EDUCATION,12/10/2016,Grants,System Reform Group,DURHAM COUNTY COUNCIL,4000249793,81800.00,Grants to local authorities / other establishments within aggregate external funding or aggregate exchequer grant
Department for Education,DEPARTMENT FOR EDUCATION,12/10/2016,Grants,System Reform Group,DORSET COUNTY COUNCIL,4000249796,31783.00,Grants to local authorities / other establishments within aggregate external funding or aggregate exchequer grant
Department for Education,DEPARTMENT FOR EDUCATION,12/10/2016,Grants,System Reform Group,DERBYSHIRE COUNTY COUNCIL,4000249807,66250.00,Grants to local authorities / other establishments within aggregate external funding or aggregate exchequer grant
Department for Education,DEPARTMENT FOR EDUCATION,12/10/2016,Grants,System Reform Group,NORTH YORKSHIRE COUNTY COUNCIL,4000249824,26233.00,Grants to local authorities / other establishments within aggregate external funding or aggregate exchequer grant
Department for Education,DEPARTMENT FOR EDUCATION,12/10/2016,Professional Services Consultancy and Contingent Labour,Information Technology Group,METHODS PROFESSIONAL SERVICES LTD,4000249770,30016.80,Costs related to temporary workers
Department for Education,STANDARDS AND TESTING AGENCY,13/10/2016,Professional Services Other,Test Development Division,AUSTRALIAN COUNCIL FOR EDUCATION RESEARCH,3100021,70654.00,"Fees / expenses of professionals, for example to implement advice or changes"
Department for Education,STANDARDS AND TESTING AGENCY,13/10/2016,Professional Services Other,Test Development Division,AUSTRALIAN COUNCIL FOR EDUCATION RESEARCH,3100022,26224.50,"Fees / expenses of professionals, for example to implement advice or changes"
Department for Education,DEPARTMENT FOR EDUCATION,13/10/2016,Communications,Ministerial and Public Communications Group,PROLOG,4000249856,85879.33,Digital media and web production
Department for Education,DEPARTMENT FOR EDUCATION,13/10/2016,Facilities,International Education Group,DTZ DEBENHAM TIE LEUNG,4000249909,80479.49,"Building maintenance and repair, including repainting, replacing flooring, etc."
Department for Education,DEPARTMENT FOR EDUCATION,13/10/2016,Professional Services Other,Property Asset Management Group,GVA GRIMLEY LTD,4000250027,4044.00,"Fees / expenses of professionals, for example to implement advice or changes"
Department for Education,DEPARTMENT FOR EDUCATION,13/10/2016,Professional Services Other,Property Asset Management Group,GVA GRIMLEY LTD,4000250027,113818.40,"Fees / expenses of professionals, for example to implement advice or changes"
Department for Education,DEPARTMENT FOR EDUCATION,13/10/2016,Professional Services Consultancy and Contingent Labour,Information Technology Group,CADENCE PARTNERSHIP LLP,4000249952,16194.00,Costs related to temporary workers
Department for Education,DEPARTMENT FOR EDUCATION,13/10/2016,Professional Services Other,Property Asset Management Group,GVA GRIMLEY LTD,4000250027,576.00,"Fees / expenses of professionals, for example to implement advice or changes"
Department for Education,DEPARTMENT FOR EDUCATION,13/10/2016,Professional Services Consultancy and Contingent Labour,Systems and Accountability Group,CADENCE PARTNERSHIP LLP,4000249952,13875.00,Costs related to temporary workers
Department for Education,DEPARTMENT FOR EDUCATION,13/10/2016,Facilities,Property Asset Management Group,GVA GRIMLEY LTD DCLG,4000249925,42541.06,"Rent. From 2016/17 financial year DCLG and DECC will use the DfE's finance system, reflecting the shared services arrangement for property asset management that already exists across the three departments. DfE will recharge DCLG and DECC on a quarterly basis."
Department for Education,NATIONAL COLLEGE FOR TEACHING AND LEADERSHIP AGENCY,13/10/2016,Grants,Delivery Directorate,HEARTLANDS ACADEMY,4000249831,16000.00,Grants to educational establishments or not for profit organisations including other businesses
Department for Education,NATIONAL COLLEGE FOR TEACHING AND LEADERSHIP AGENCY,13/10/2016,Grants,Delivery Directorate,HEARTLANDS ACADEMY,4000249831,50000.00,Grants to educational establishments or not for profit organisations including other businesses
Department for Education,NATIONAL COLLEGE FOR TEACHING AND LEADERSHIP AGENCY,13/10/2016,Grants,Delivery Directorate,HARTON TECHNOLOGY COLLEGE,4000249836,12925.00,Grants to educational establishments or not for profit organisations including other businesses
Department for Education,NATIONAL COLLEGE FOR TEACHING AND LEADERSHIP AGENCY,13/10/2016,Grants,Delivery Directorate,HARTON TECHNOLOGY COLLEGE,4000249836,40000.00,Grants to educational establishments or not for profit organisations including other businesses
Department for Education,NATIONAL COLLEGE FOR TEACHING AND LEADERSHIP AGENCY,13/10/2016,Grants,Delivery Directorate,HARTON TECHNOLOGY COLLEGE,4000249836,6000.00,Grants to educational establishments or not for profit organisations including other businesses
Department for Education,NATIONAL COLLEGE FOR TEACHING AND LEADERSHIP AGENCY,13/10/2016,Grants,Delivery Directorate,THE VALE ACADEMY,4000249838,40000.00,Grants to educational establishments or not for profit organisations including other businesses
Department for Education,NATIONAL COLLEGE FOR TEACHING AND LEADERSHIP AGENCY,13/10/2016,Grants,Delivery Directorate,THE VALE ACADEMY,4000249838,6000.00,Grants to educational establishments or not for profit organisations including other businesses
Department for Education,DEPARTMENT FOR EDUCATION,13/10/2016,Grants,Academies Regional Delivery Group,MIDDLETON PRIMARY SCHOOL,4000249845,25000.00,Grants to educational establishments or not for profit organisations including other businesses
Department for Education,DEPARTMENT FOR EDUCATION,13/10/2016,Grants,Academies Regional Delivery Group,RIVERSIDE PRIMARY SCHOOL,4000249857,25000.00,Grants to educational establishments or not for profit organisations including other businesses
Department for Education,DEPARTMENT FOR EDUCATION,13/10/2016,Grants,Academies Regional Delivery Group,YOXFORD PRIMARY SCHOOL,4000249858,25000.00,Grants to educational establishments or not for profit organisations including other businesses
Department for Education,DEPARTMENT FOR EDUCATION,13/10/2016,Grants,Academies Regional Delivery Group,THE TWO COUNTIES TRUST,4000249859,80000.00,Grants to educational establishments or not for profit organisations including other businesses
Department for Education,DEPARTMENT FOR EDUCATION,13/10/2016,Grants,Academies Regional Delivery Group,ST CATHERINES COFE PRIMARY SCHOOL,4000249860,25000.00,Grants to educational establishments or not for profit organisations including other businesses
Department for Education,DEPARTMENT FOR EDUCATION,13/10/2016,Grants,Academies Regional Delivery Group,THE WARWICK SCHOOL,4000249862,25000.00,Grants to educational establishments or not for profit organisations including other businesses
Department for Education,DEPARTMENT FOR EDUCATION,13/10/2016,Grants,Free School Group,DIOCESE OF ELY MULTI ACADEMY TRUST,4000249864,30000.00,Grants to educational establishments or not for profit organisations including other businesses
Department for Education,NATIONAL COLLEGE FOR TEACHING AND LEADERSHIP AGENCY,13/10/2016,Grants,Delivery Directorate,WOODLAND SCHOOL PARTNERSHIP,4000249867,38750.00,Grants to educational establishments or not for profit organisations including other businesses
Department for Education,NATIONAL COLLEGE FOR TEACHING AND LEADERSHIP AGENCY,13/10/2016,Grants,Delivery Directorate,WOODLAND SCHOOL PARTNERSHIP,4000249867,6000.00,Grants to educational establishments or not for profit organisations including other businesses
Department for Education,NATIONAL COLLEGE FOR TEACHING AND LEADERSHIP AGENCY,13/10/2016,Grants,Delivery Directorate,BACKWELL SCHOOL,4000249870,6200.00,Grants to educational establishments or not for profit organisations including other businesses
Department for Education,NATIONAL COLLEGE FOR TEACHING AND LEADERSHIP AGENCY,13/10/2016,Grants,Delivery Directorate,BACKWELL SCHOOL,4000249870,40000.00,Grants to educational establishments or not for profit organisations including other businesses
Department for Education,NATIONAL COLLEGE FOR TEACHING AND LEADERSHIP AGENCY,13/10/2016,Grants,Delivery Directorate,SILVERDALE SCHOOL,4000249873,1500.00,Grants to educational establishments or not for profit organisations including other businesses
Department for Education,NATIONAL COLLEGE FOR TEACHING AND LEADERSHIP AGENCY,13/10/2016,Grants,Delivery Directorate,SILVERDALE SCHOOL,4000249873,40000.00,Grants to educational establishments or not for profit organisations including other businesses
Department for Education,NATIONAL COLLEGE FOR TEACHING AND LEADERSHIP AGENCY,13/10/2016,Grants,Delivery Directorate,ROWAN PARK SCHOOL,4000249874,50000.00,Grants to educational establishments or not for profit organisations including other businesses
Department for Education,DEPARTMENT FOR EDUCATION,13/10/2016,Grants,Free School Group,RIGHTFORSUCCESS TRUST,4000249875,30000.00,Grants to educational establishments or not for profit organisations including other businesses
Department for Education,DEPARTMENT FOR EDUCATION,13/10/2016,Grants,Academies Regional Delivery Group,STOCKTON PRIMARY SCHOOL,4000249876,25000.00,Grants to educational establishments or not for profit organisations including other businesses
Department for Education,DEPARTMENT FOR EDUCATION,13/10/2016,Programme costs,Teachers and Teaching Group,CAPITA LIFE & PENSIONS SERVICES LTD,4000249883,138021.79,Contract payment to deliver the administration of the Teachers' Pension Scheme
Department for Education,NATIONAL COLLEGE FOR TEACHING AND LEADERSHIP AGENCY,13/10/2016,Grants,Delivery Directorate,GADDESBY PRIMARY SCHOOL,4000249891,40000.00,Grants to educational establishments or not for profit organisations including other businesses
Department for Education,NATIONAL COLLEGE FOR TEACHING AND LEADERSHIP AGENCY,13/10/2016,Grants,Delivery Directorate,GADDESBY PRIMARY SCHOOL,4000249891,6000.00,Grants to educational establishments or not for profit organisations including other businesses
Department for Education,NATIONAL COLLEGE FOR TEACHING AND LEADERSHIP AGENCY,13/10/2016,Grants,Delivery Directorate,WINGATE INFANTS SCHOOL,4000249893,40000.00,Grants to educational establishments or not for profit organisations including other businesses
Department for Education,NATIONAL COLLEGE FOR TEACHING AND LEADERSHIP AGENCY,13/10/2016,Grants,Delivery Directorate,WINGATE INFANTS SCHOOL,4000249893,6000.00,Grants to educational establishments or not for profit organisations including other businesses
Department for Education,NATIONAL COLLEGE FOR TEACHING AND LEADERSHIP AGENCY,13/10/2016,Grants,Delivery Directorate,ST ANTHONYS ROMAN CATHOLIC PRIMARY SCHOOL,4000249894,50000.00,Grants to educational establishments or not for profit organisations including other businesses
Department for Education,NATIONAL COLLEGE FOR TEACHING AND LEADERSHIP AGENCY,13/10/2016,Grants,Delivery Directorate,TOR VIEW SCHOOL TS ACCOUNT,4000249897,40000.00,Grants to educational establishments or not for profit organisations including other businesses
Department for Education,NATIONAL COLLEGE FOR TEACHING AND LEADERSHIP AGENCY,13/10/2016,Grants,Delivery Directorate,TOR VIEW SCHOOL TS ACCOUNT,4000249897,6000.00,Grants to educational establishments or not for profit organisations including other businesses
Department for Education,NATIONAL COLLEGE FOR TEACHING AND LEADERSHIP AGENCY,13/10/2016,Grants,Delivery Directorate,HEARTS ACADEMY TRUST,4000249898,40000.00,Grants to educational establishments or not for profit organisations including other businesses
Department for Education,NATIONAL COLLEGE FOR TEACHING AND LEADERSHIP AGENCY,13/10/2016,Grants,Delivery Directorate,HEARTS ACADEMY TRUST,4000249898,6000.00,Grants to educational establishments or not for profit organisations including other businesses
Department for Education,NATIONAL COLLEGE FOR TEACHING AND LEADERSHIP AGENCY,13/10/2016,Grants,Delivery Directorate,THE CRYPT SCHOOL TS ACCOUNT,4000249899,34585.00,Grants to educational establishments or not for profit organisations including other businesses
Department for Education,NATIONAL COLLEGE FOR TEACHING AND LEADERSHIP AGENCY,13/10/2016,Grants,Delivery Directorate,THE CRYPT SCHOOL TS ACCOUNT,4000249899,902.00,Grants to educational establishments or not for profit organisations including other businesses
Department for Education,NATIONAL COLLEGE FOR TEACHING AND LEADERSHIP AGENCY,13/10/2016,Grants,Delivery Directorate,WALBOTTLE VILLAGE PRIMARY BCAP ACC,4000249901,40000.00,Grants to educational establishments or not for profit organisations including other businesses
Department for Education,NATIONAL COLLEGE FOR TEACHING AND LEADERSHIP AGENCY,13/10/2016,Grants,Delivery Directorate,WALBOTTLE VILLAGE PRIMARY BCAP ACC,4000249901,6000.00,Grants to educational establishments or not for profit organisations including other businesses
Department for Education,DEPARTMENT FOR EDUCATION,13/10/2016,Grants,Academies Regional Delivery Group,THE LAURUS TRUST,4000249912,25000.00,Grants to educational establishments or not for profit organisations including other businesses
Department for Education,NATIONAL COLLEGE FOR TEACHING AND LEADERSHIP AGENCY,13/10/2016,Grants,Delivery Directorate,CHIPPING VIEW PRIMARY ACADEMY,4000249914,40000.00,Grants to educational establishments or not for profit organisations including other businesses
Department for Education,NATIONAL COLLEGE FOR TEACHING AND LEADERSHIP AGENCY,13/10/2016,Grants,Delivery Directorate,CHIPPING VIEW PRIMARY ACADEMY,4000249914,2000.00,Grants to educational establishments or not for profit organisations including other businesses
Department for Education,DEPARTMENT FOR EDUCATION,13/10/2016,Grants,Academies Regional Delivery Group,ACADEMY TRANSFORMATION TRUST,4000249924,70000.00,Grants to educational establishments or not for profit organisations including other businesses
Department for Education,DEPARTMENT FOR EDUCATION,13/10/2016,Grants,Academies Regional Delivery Group,NORTHERN HOUSE SCHOOL,4000249931,90000.00,Grants to educational establishments or not for profit organisations including other businesses
Department for Education,NATIONAL COLLEGE FOR TEACHING AND LEADERSHIP AGENCY,13/10/2016,Grants,Delivery Directorate,BONNER PRIMARY SCHOOL,4000249932,40000.00,Grants to educational establishments or not for profit organisations including other businesses
Department for Education,DEPARTMENT FOR EDUCATION,13/10/2016,Grants,Academies Regional Delivery Group,CASTLE PHOENIX TRUST,4000249938,80000.00,Grants to educational establishments or not for profit organisations including other businesses
Department for Education,NATIONAL COLLEGE FOR TEACHING AND LEADERSHIP AGENCY,13/10/2016,Grants,Delivery Directorate,NEWPORT COMMUNITY SCHOOL,4000249943,40000.00,Grants to educational establishments or not for profit organisations including other businesses
Department for Education,NATIONAL COLLEGE FOR TEACHING AND LEADERSHIP AGENCY,13/10/2016,Grants,Delivery Directorate,NEWPORT COMMUNITY SCHOOL,4000249943,6000.00,Grants to educational establishments or not for profit organisations including other businesses
Department for Education,NATIONAL COLLEGE FOR TEACHING AND LEADERSHIP AGENCY,13/10/2016,Grants,Delivery Directorate,GLENTHORNE HIGH SCHOOL,4000249944,40000.00,Grants to educational establishments or not for profit organisations including other businesses
Department for Education,NATIONAL COLLEGE FOR TEACHING AND LEADERSHIP AGENCY,13/10/2016,Grants,Delivery Directorate,GLENTHORNE HIGH SCHOOL,4000249944,6000.00,Grants to educational establishments or not for profit organisations including other businesses
Department for Education,NATIONAL COLLEGE FOR TEACHING AND LEADERSHIP AGENCY,13/10/2016,Grants,Delivery Directorate,THE ARTHUR TERRY SCHOOL SCITT,4000249947,40000.00,Grants to educational establishments or not for profit organisations including other businesses
Department for Education,NATIONAL COLLEGE FOR TEACHING AND LEADERSHIP AGENCY,13/10/2016,Grants,Delivery Directorate,THE ARTHUR TERRY SCHOOL SCITT,4000249947,6000.00,Grants to educational establishments or not for profit organisations including other businesses
Department for Education,NATIONAL COLLEGE FOR TEACHING AND LEADERSHIP AGENCY,13/10/2016,Grants,Delivery Directorate,SPRINGFILED JUNIOR SHCOOL,4000249949,50000.00,Grants to educational establishments or not for profit organisations including other businesses
Department for Education,NATIONAL COLLEGE FOR TEACHING AND LEADERSHIP AGENCY,13/10/2016,Grants,Delivery Directorate,SPRINGFILED JUNIOR SHCOOL,4000249949,6000.00,Grants to educational establishments or not for profit organisations including other businesses
Department for Education,NATIONAL COLLEGE FOR TEACHING AND LEADERSHIP AGENCY,13/10/2016,Grants,Delivery Directorate,SPONNE SCHOOL,4000249954,9800.00,Grants to educational establishments or not for profit organisations including other businesses
Department for Education,NATIONAL COLLEGE FOR TEACHING AND LEADERSHIP AGENCY,13/10/2016,Grants,Delivery Directorate,SPONNE SCHOOL,4000249954,32790.00,Grants to educational establishments or not for profit organisations including other businesses
Department for Education,NATIONAL COLLEGE FOR TEACHING AND LEADERSHIP AGENCY,13/10/2016,Grants,Delivery Directorate,SPONNE SCHOOL,4000249954,279.00,Grants to educational establishments or not for profit organisations including other businesses
Department for Education,NATIONAL COLLEGE FOR TEACHING AND LEADERSHIP AGENCY,13/10/2016,Grants,Delivery Directorate,SPONNE SCHOOL,4000249954,6000.00,Grants to educational establishments or not for profit organisations including other businesses
Department for Education,DEPARTMENT FOR EDUCATION,13/10/2016,Grants,Academies Regional Delivery Group,ARCHBISHOP HOLGATES SCHOOL,4000249955,70000.00,Grants to educational establishments or not for profit organisations including other businesses
Department for Education,DEPARTMENT FOR EDUCATION,13/10/2016,Grants,Academies Regional Delivery Group,BENNETT MEMORIAL DIOCESAN SCHOOL,4000249956,25000.00,Grants to educational establishments or not for profit organisations including other businesses
Department for Education,NATIONAL COLLEGE FOR TEACHING AND LEADERSHIP AGENCY,13/10/2016,Grants,Delivery Directorate,BENNETT MEMORIAL DIOCESAN SCHOOL,4000249956,6000.00,Grants to educational establishments or not for profit organisations including other businesses
Department for Education,NATIONAL COLLEGE FOR TEACHING AND LEADERSHIP AGENCY,13/10/2016,Grants,Delivery Directorate,ST MARKS SCHOOL,4000249959,16852.00,Grants to educational establishments or not for profit organisations including other businesses
Department for Education,NATIONAL COLLEGE FOR TEACHING AND LEADERSHIP AGENCY,13/10/2016,Grants,Delivery Directorate,ST MARKS SCHOOL,4000249959,9000.00,Grants to educational establishments or not for profit organisations including other businesses
Department for Education,NATIONAL COLLEGE FOR TEACHING AND LEADERSHIP AGENCY,13/10/2016,Grants,Delivery Directorate,ST FRANCIS XAVIER CATHOLIC PRIMARY SCHOOL,4000249963,37251.00,Grants to educational establishments or not for profit organisations including other businesses
Department for Education,NATIONAL COLLEGE FOR TEACHING AND LEADERSHIP AGENCY,13/10/2016,Grants,Delivery Directorate,ST FRANCIS XAVIER CATHOLIC PRIMARY SCHOOL,4000249963,6000.00,Grants to educational establishments or not for profit organisations including other businesses
Department for Education,DEPARTMENT FOR EDUCATION,13/10/2016,Grants,"Children's Services, Equalities and Communication Safeguarding Group",SOUTH LONDON & MAUDSLEY NHS FOUNDATION TRUST,4000249964,866534.27,Grants to educational establishments or not for profit organisations including other businesses
Department for Education,NATIONAL COLLEGE FOR TEACHING AND LEADERSHIP AGENCY,13/10/2016,Grants,Delivery Directorate,ST JOHN BOSCO ARTS COLLEGE,4000249968,40000.00,Grants to educational establishments or not for profit organisations including other businesses
Department for Education,DEPARTMENT FOR EDUCATION,13/10/2016,Grants,Academies Regional Delivery Group,LEARNING IN HARMONY TRUST,4000249973,25000.00,Grants to educational establishments or not for profit organisations including other businesses
Department for Education,NATIONAL COLLEGE FOR TEACHING AND LEADERSHIP AGENCY,13/10/2016,Grants,Delivery Directorate,PATES GRAMMAR SCHOOL,4000249979,40000.00,Grants to educational establishments or not for profit organisations including other businesses
Department for Education,NATIONAL COLLEGE FOR TEACHING AND LEADERSHIP AGENCY,13/10/2016,Grants,Delivery Directorate,PATES GRAMMAR SCHOOL,4000249979,9000.00,Grants to educational establishments or not for profit organisations including other businesses
Department for Education,STANDARDS AND TESTING AGENCY,13/10/2016,Programme costs,Test Development Division,NFER,4000249982,517618.90,Funding to deliver policies (excluding consultancy) paid to third parties via a service delivery contract
Department for Education,NATIONAL COLLEGE FOR TEACHING AND LEADERSHIP AGENCY,13/10/2016,Grants,Delivery Directorate,EPINAY BUSINESS AND ENTERPRISE SCHOOL,4000249984,40000.00,Grants to educational establishments or not for profit organisations including other businesses
Department for Education,NATIONAL COLLEGE FOR TEACHING AND LEADERSHIP AGENCY,13/10/2016,Grants,Delivery Directorate,EPINAY BUSINESS AND ENTERPRISE SCHOOL,4000249984,6000.00,Grants to educational establishments or not for profit organisations including other businesses
Department for Education,NATIONAL COLLEGE FOR TEACHING AND LEADERSHIP AGENCY,13/10/2016,Grants,Delivery Directorate,SWAVESEY VILLAGE COLLEGE,4000249986,40000.00,Grants to educational establishments or not for profit organisations including other businesses
Department for Education,NATIONAL COLLEGE FOR TEACHING AND LEADERSHIP AGENCY,13/10/2016,Grants,Delivery Directorate,RYECROFT PRIMARY ACADEMY,4000249993,40000.00,Grants to educational establishments or not for profit organisations including other businesses
Department for Education,NATIONAL COLLEGE FOR TEACHING AND LEADERSHIP AGENCY,13/10/2016,Grants,Delivery Directorate,ST CLARE'S RC PRIMARY SCHOOL,4000249994,40000.00,Grants to educational establishments or not for profit organisations including other businesses
Department for Education,NATIONAL COLLEGE FOR TEACHING AND LEADERSHIP AGENCY,13/10/2016,Grants,Delivery Directorate,BEDENWELL INFANT & NURSERY SCHOOL,4000249998,36850.00,Grants to educational establishments or not for profit organisations including other businesses
Department for Education,NATIONAL COLLEGE FOR TEACHING AND LEADERSHIP AGENCY,13/10/2016,Grants,Delivery Directorate,BEDENWELL INFANT & NURSERY SCHOOL,4000249998,6000.00,Grants to educational establishments or not for profit organisations including other businesses
Department for Education,NATIONAL COLLEGE FOR TEACHING AND LEADERSHIP AGENCY,13/10/2016,Grants,Delivery Directorate,MIDDLEFIELD COMMUNITY PRIMARY SCHOOL,4000249999,50000.00,Grants to educational establishments or not for profit organisations including other businesses
Department for Education,NATIONAL COLLEGE FOR TEACHING AND LEADERSHIP AGENCY,13/10/2016,Grants,Delivery Directorate,MIDDLEFIELD COMMUNITY PRIMARY SCHOOL,4000249999,6000.00,Grants to educational establishments or not for profit organisations including other businesses
Department for Education,NATIONAL COLLEGE FOR TEACHING AND LEADERSHIP AGENCY,13/10/2016,Grants,Delivery Directorate,JOHN JAMIESON SCHOOL,4000250001,30930.00,Grants to educational establishments or not for profit organisations including other businesses
Department for Education,NATIONAL COLLEGE FOR TEACHING AND LEADERSHIP AGENCY,13/10/2016,Grants,Delivery Directorate,JOHN JAMIESON SCHOOL,4000250001,6000.00,Grants to educational establishments or not for profit organisations including other businesses
Department for Education,NATIONAL COLLEGE FOR TEACHING AND LEADERSHIP AGENCY,13/10/2016,Grants,Delivery Directorate,ST MARYS CATHOLIC PRIMARY SCHOOL,4000250004,40000.00,Grants to educational establishments or not for profit organisations including other businesses
Department for Education,NATIONAL COLLEGE FOR TEACHING AND LEADERSHIP AGENCY,13/10/2016,Grants,Delivery Directorate,THE MORLEY ACADEMY,4000250007,40000.00,Grants to educational establishments or not for profit organisations including other businesses
Department for Education,NATIONAL COLLEGE FOR TEACHING AND LEADERSHIP AGENCY,13/10/2016,Grants,Delivery Directorate,THE MORLEY ACADEMY,4000250007,2000.00,Grants to educational establishments or not for profit organisations including other businesses
Department for Education,NATIONAL COLLEGE FOR TEACHING AND LEADERSHIP AGENCY,13/10/2016,Grants,Delivery Directorate,THE MORLEY ACADEMY,4000250007,6000.00,Grants to educational establishments or not for profit organisations including other businesses
Department for Education,NATIONAL COLLEGE FOR TEACHING AND LEADERSHIP AGENCY,13/10/2016,Grants,Delivery Directorate,EATON HALL SPECIALIST ACADEMY,4000250008,23917.00,Grants to educational establishments or not for profit organisations including other businesses
Department for Education,NATIONAL COLLEGE FOR TEACHING AND LEADERSHIP AGENCY,13/10/2016,Grants,Delivery Directorate,EATON HALL SPECIALIST ACADEMY,4000250008,6000.00,Grants to educational establishments or not for profit organisations including other businesses
Department for Education,NATIONAL COLLEGE FOR TEACHING AND LEADERSHIP AGENCY,13/10/2016,Grants,Delivery Directorate,HOLYHEAD SCHOOL,4000250010,40000.00,Grants to educational establishments or not for profit organisations including other businesses
Department for Education,NATIONAL COLLEGE FOR TEACHING AND LEADERSHIP AGENCY,13/10/2016,Grants,Delivery Directorate,HOLYHEAD SCHOOL,4000250010,6000.00,Grants to educational establishments or not for profit organisations including other businesses
Department for Education,NATIONAL COLLEGE FOR TEACHING AND LEADERSHIP AGENCY,13/10/2016,Grants,Delivery Directorate,THE STOURPORT HIGH SCHOOL & 6TH FORM CENTRE,4000250011,9000.00,Grants to educational establishments or not for profit organisations including other businesses
Department for Education,NATIONAL COLLEGE FOR TEACHING AND LEADERSHIP AGENCY,13/10/2016,Grants,Delivery Directorate,THE STOURPORT HIGH SCHOOL & 6TH FORM CENTRE,4000250011,40000.00,Grants to educational establishments or not for profit organisations including other businesses
Department for Education,NATIONAL COLLEGE FOR TEACHING AND LEADERSHIP AGENCY,13/10/2016,Grants,Delivery Directorate,THE STOURPORT HIGH SCHOOL & 6TH FORM CENTRE,4000250011,6000.00,Grants to educational establishments or not for profit organisations including other businesses
Department for Education,NATIONAL COLLEGE FOR TEACHING AND LEADERSHIP AGENCY,13/10/2016,Grants,Delivery Directorate,ST ANTHONYS GIRLS SCHOOL,4000250012,40000.00,Grants to educational establishments or not for profit organisations including other businesses
Department for Education,NATIONAL COLLEGE FOR TEACHING AND LEADERSHIP AGENCY,13/10/2016,Grants,Delivery Directorate,ST ANTHONYS GIRLS SCHOOL,4000250012,6000.00,Grants to educational establishments or not for profit organisations including other businesses
Department for Education,NATIONAL COLLEGE FOR TEACHING AND LEADERSHIP AGENCY,13/10/2016,Grants,Delivery Directorate,COLDFALL PRIMARY SCHOOL,4000250013,50000.00,Grants to educational establishments or not for profit organisations including other businesses
Department for Education,NATIONAL COLLEGE FOR TEACHING AND LEADERSHIP AGENCY,13/10/2016,Grants,Delivery Directorate,COLDFALL PRIMARY SCHOOL,4000250013,6000.00,Grants to educational establishments or not for profit organisations including other businesses
Department for Education,NATIONAL COLLEGE FOR TEACHING AND LEADERSHIP AGENCY,13/10/2016,Grants,Delivery Directorate,REDHILL SCHOOL & SPECIALIST LANGUAGE COLLEGE,4000250016,40000.00,Grants to educational establishments or not for profit organisations including other businesses
Department for Education,NATIONAL COLLEGE FOR TEACHING AND LEADERSHIP AGENCY,13/10/2016,Grants,Delivery Directorate,REDHILL SCHOOL & SPECIALIST LANGUAGE COLLEGE,4000250016,6000.00,Grants to educational establishments or not for profit organisations including other businesses
Department for Education,NATIONAL COLLEGE FOR TEACHING AND LEADERSHIP AGENCY,13/10/2016,Grants,Delivery Directorate,THE PHOENIX SCHOOL,4000250018,40000.00,Grants to educational establishments or not for profit organisations including other businesses
Department for Education,NATIONAL COLLEGE FOR TEACHING AND LEADERSHIP AGENCY,13/10/2016,Grants,Delivery Directorate,THE PHOENIX SCHOOL,4000250018,6000.00,Grants to educational establishments or not for profit organisations including other businesses
Department for Education,NATIONAL COLLEGE FOR TEACHING AND LEADERSHIP AGENCY,13/10/2016,Grants,Delivery Directorate,BENTLEY HIGH STREET PRIMARY SCHOOL,4000250019,40000.00,Grants to educational establishments or not for profit organisations including other businesses
Department for Education,NATIONAL COLLEGE FOR TEACHING AND LEADERSHIP AGENCY,13/10/2016,Grants,Delivery Directorate,CORSHAM PRIMARY SCHOOL,4000250024,40000.00,Grants to educational establishments or not for profit organisations including other businesses
Department for Education,NATIONAL COLLEGE FOR TEACHING AND LEADERSHIP AGENCY,13/10/2016,Grants,Delivery Directorate,CORSHAM PRIMARY SCHOOL,4000250024,6000.00,Grants to educational establishments or not for profit organisations including other businesses
Department for Education,DEPARTMENT FOR EDUCATION,13/10/2016,Facilities,Property Asset Management Group,INTERSERVE FACILITIES MANAGEMENT LTD,4000250003,422978.27,Property management
Department for Education,DEPARTMENT FOR EDUCATION,13/10/2016,Facilities,Property Asset Management Group,INTERSERVE FACILITIES MANAGEMENT LTD,4000250003,295289.05,Property management
Department for Education,DEPARTMENT FOR EDUCATION,13/10/2016,Programme costs,Children's Services Special Educational Needs Group,NATIONAL AUTISTIC SOCIETY,4000250032,62500.00,Funding to deliver policies (excluding consultancy) paid to third parties via a service delivery contract
Department for Education,DEPARTMENT FOR EDUCATION,13/10/2016,Grants,Academies Regional Delivery Group,WAKEFIELD DIOCESAN ACADEMIES TRUST,4000250034,25000.00,Grants to educational establishments or not for profit organisations including other businesses
Department for Education,DEPARTMENT FOR EDUCATION,13/10/2016,Facilities,Property Asset Management Group,METHODS PROFESSIONAL SERVICES LTD,4000249910,16506.00,Programme management for construction work
Department for Education,DEPARTMENT FOR EDUCATION,13/10/2016,Professional Services Other,Strategic Analysis and Research Group,EDUCATION DEVELOPMENT TRUST,4000249939,30000.00,Research and evaluation activities
Department for Education,DEPARTMENT FOR EDUCATION,13/10/2016,Professional Services Consultancy and Contingent Labour,Information Technology Group,METHODS PROFESSIONAL SERVICES LTD,4000249910,32736.00,Costs related to temporary workers
Department for Education,DEPARTMENT FOR EDUCATION,13/10/2016,Professional Services Consultancy and Contingent Labour,Information Technology Group,PRO CEDURE LTD,4000249962,34560.00,Costs related to temporary workers
Department for Education,DEPARTMENT FOR EDUCATION,13/10/2016,Miscellaneous Expenditure,Finance and Commercial Group,N/A � Risk Protection Arrangement (RPA) member,005921-000551-RB-01,69802.97,Property claim paid out to an academy trust by Gallagher Bassett on behalf of the Department as part of the Department's Risk Protection Arrangement (RPA).
Department for Education,DEPARTMENT FOR EDUCATION,14/10/2016,Professional Services Other,Finance and Commercial Group,SHARED SERVICES CONNECTED LTD,4000250063,151046.57,Shared corporate accounting services
Department for Education,NATIONAL COLLEGE FOR TEACHING AND LEADERSHIP AGENCY,14/10/2016,Grants,Delivery Directorate,CASTLE HILL SCHOOL,4000250037,40000.00,Grants to educational establishments or not for profit organisations including other businesses
Department for Education,NATIONAL COLLEGE FOR TEACHING AND LEADERSHIP AGENCY,14/10/2016,Office Solutions,Operations Directorate,PROLOG,4000250057,3677.08,Post and courier services
Department for Education,NATIONAL COLLEGE FOR TEACHING AND LEADERSHIP AGENCY,14/10/2016,Grants,Delivery Directorate,THE COMPTON SCHOOL TS ACC,4000250066,149875.00,Grants to educational establishments or not for profit organisations including other businesses
Department for Education,DEPARTMENT FOR EDUCATION,14/10/2016,Programme costs,Teachers and Teaching Group,CAPITA LIFE & PENSIONS SERVICES LTD,4000250072,1012281.65,Contract payment to deliver the administration of the Teachers' Pension Scheme
Department for Education,NATIONAL COLLEGE FOR TEACHING AND LEADERSHIP AGENCY,14/10/2016,Grants,Delivery Directorate,ST JOHN VIANNEY SCHOOL,4000250078,113350.00,Grants to educational establishments or not for profit organisations including other businesses
Department for Education,NATIONAL COLLEGE FOR TEACHING AND LEADERSHIP AGENCY,14/10/2016,Grants,Delivery Directorate,THE ARTHUR TERRY SCHOOL SCITT,4000250079,132100.00,Grants to educational establishments or not for profit organisations including other businesses
Department for Education,DEPARTMENT FOR EDUCATION,14/10/2016,Grants,Adoption and Children in Care Division,NOTTINGHAMSHIRE COUNTY COUNCIL,4000250080,113000.00,Grants to local authorities / other establishments within aggregate external funding or aggregate exchequer grant
Department for Education,DEPARTMENT FOR EDUCATION,14/10/2016,Grants,Adoption and Children in Care Division,HARTLEPOOL BOROUGH COUNCIL,4000250081,56652.00,Grants to local authorities / other establishments within aggregate external funding or aggregate exchequer grant
Department for Education,DEPARTMENT FOR EDUCATION,14/10/2016,Professional Services Other,"Children's Services, Equalities and Communication Directorate Support",GOVERNMENT LEGAL DEPARTMENT,4000250082,176.70,Legal services provided by Treasury Solicitor 
Department for Education,DEPARTMENT FOR EDUCATION,14/10/2016,Professional Services Consultancy and Contingent Labour,Children in Care Division,GOVERNMENT LEGAL DEPARTMENT,4000250082,2362.20,Legal advisory services from the Government Legal Department including the provision of external specialist advice and opinion
Department for Education,DEPARTMENT FOR EDUCATION,14/10/2016,Professional Services Other,Government Equalities Office,GOVERNMENT LEGAL DEPARTMENT,4000250082,23106.05,Legal services provided by Treasury Solicitor 
Department for Education,DEPARTMENT FOR EDUCATION,14/10/2016,Professional Services Other,Academies Regional Delivery Group,GOVERNMENT LEGAL DEPARTMENT,4000250082,176.70,Legal services provided by Treasury Solicitor 
Department for Education,NATIONAL COLLEGE FOR TEACHING AND LEADERSHIP AGENCY,14/10/2016,Professional Services Other,Operations Directorate,GOVERNMENT LEGAL DEPARTMENT,4000250082,1552.50,Legal services provided by Treasury Solicitor 
Department for Education,NATIONAL COLLEGE FOR TEACHING AND LEADERSHIP AGENCY,14/10/2016,Professional Services Other,Operations Directorate,NABARRO LLP,4000250094,51960.42,"Fees / expenses of professionals, for example to implement advice or changes"
Department for Education,NATIONAL COLLEGE FOR TEACHING AND LEADERSHIP AGENCY,14/10/2016,Grants,Delivery Directorate,HISTON & IMPRINGTON JUNIOR SCHOOL,4000250096,170100.00,Grants to educational establishments or not for profit organisations including other businesses
Department for Education,NATIONAL COLLEGE FOR TEACHING AND LEADERSHIP AGENCY,14/10/2016,Grants,Delivery Directorate,CHORLTON PARK PRIMARY SCHOOL,4000250097,200100.00,Grants to educational establishments or not for profit organisations including other businesses
Department for Education,STANDARDS AND TESTING AGENCY,14/10/2016,Programme costs,Test Support Division,ASSESSMENT & QUALIFICATIONS ALLIANCE,4000250107,9691.25,Funding to deliver policies (excluding consultancy) paid to third parties via a service delivery contract
Department for Education,STANDARDS AND TESTING AGENCY,14/10/2016,Programme costs,Test Operations Division,ASSESSMENT & QUALIFICATIONS ALLIANCE,4000250107,27112.57,Funding to deliver policies (excluding consultancy) paid to third parties via a service delivery contract
Department for Education,NATIONAL COLLEGE FOR TEACHING AND LEADERSHIP AGENCY,14/10/2016,Grants,Delivery Directorate,POUND HILL INFANT SCHOOL,4000250112,189530.00,Grants to educational establishments or not for profit organisations including other businesses
Department for Education,DEPARTMENT FOR EDUCATION,14/10/2016,ICT,Systems and Accountability Group,PROLOG,4000250057,42528.54,ICT Services
Department for Education,DEPARTMENT FOR EDUCATION,14/10/2016,ICT,Systems and Accountability Group,PROLOG,4000250057,91901.41,ICT Services
Department for Education,DEPARTMENT FOR EDUCATION,14/10/2016,Personnel Related,Strategy and Delivery Group,NATIONAL AUDIT OFFICE,4000250100,37172.20,Payments made to other government departments or organisations for staff seconded to DfE
Department for Education,DEPARTMENT FOR EDUCATION,17/10/2016,Miscellaneous Expenditure,Finance and Commercial Group,GALLAGHER BASSETT INTERNL LTD - DFE RPA FUNDING,1100321,2492051.55,"Payment to fund the department's client's deposit account controlled by Gallagher Bassett International Limited, on the department's behalf. The funds are provided and owned by the Department for Education to meet claims in respect of academy trusts that have joined the department's Risk Protection Arrangement (RPA). Payments for claims over 25,000 are included in this dataset. At no point are the funds owned by Gallagher Bassett International Limited."
Department for Education,NATIONAL COLLEGE FOR TEACHING AND LEADERSHIP AGENCY,17/10/2016,Grants,Delivery Directorate,UNIVERSITY OF READING,4000250185,25399.00,Grants to educational establishments or not for profit organisations including other businesses
Department for Education,DEPARTMENT FOR EDUCATION,17/10/2016,ICT,Systems and Accountability Group,PROLOG,4000250156,73722.41,ICT Services
Department for Education,DEPARTMENT FOR EDUCATION,18/10/2016,Facilities,Property Asset Management Group,AMEY,4000250236,9467.26,Property management
Department for Education,DEPARTMENT FOR EDUCATION,18/10/2016,Facilities,Property Asset Management Group,AMEY,4000250236,16899.54,Property management
Department for Education,DEPARTMENT FOR EDUCATION,18/10/2016,ICT,Information Technology Group,CAPGEMINI UK PLC,4000250248,33764.57,ICT Software
Department for Education,DEPARTMENT FOR EDUCATION,18/10/2016,Facilities,Property Asset Management Group,BAM CONSTRUCTION LTD,4000250240,1674616.80,Programme management for construction work
Department for Education,DEPARTMENT FOR EDUCATION,18/10/2016,ICT,Finance and Commercial Group,SHARED SERVICES CONNECTED LTD,4000250278,34805.70,ICT Software
Department for Education,DEPARTMENT FOR EDUCATION,18/10/2016,Grants,Teachers and Teaching Group,COLLEGE OF TEACHING LTD,4000250203,124538.83,Grants to educational establishments or not for profit organisations including other businesses
Department for Education,DEPARTMENT FOR EDUCATION,18/10/2016,Facilities,Property Asset Management Group,INTERSERVE FACILITIES MANAGEMENT LTD,4000250254,27581.48,Property management
Department for Education,DEPARTMENT FOR EDUCATION,18/10/2016,Facilities,Property Asset Management Group,MACE LTD,4000250252,117236.40,Programme management for construction work
Department for Education,DEPARTMENT FOR EDUCATION,18/10/2016,Professional Services Other,Property Asset Management Group,METHODS PROFESSIONAL SERVICES LTD,4000250217,15600.00,"Fees / expenses of professionals, for example to implement advice or changes"
Department for Education,DEPARTMENT FOR EDUCATION,18/10/2016,Grants,Government Equalities Office,METRO CHARITY,4000250242,99404.00,Grants to educational establishments or not for profit organisations including other businesses
Department for Education,DEPARTMENT FOR EDUCATION,18/10/2016,Professional Services Other,Property Asset Management Group,METHODS PROFESSIONAL SERVICES LTD,4000250217,17360.40,"Fees / expenses of professionals, for example to implement advice or changes"
Department for Education,NATIONAL COLLEGE FOR TEACHING AND LEADERSHIP AGENCY,18/10/2016,Grants,Operations Directorate,SILVERDALE SCHOOL,4000250269,25000.00,Dedicated Schools Grant
Department for Education,DEPARTMENT FOR EDUCATION,18/10/2016,Grants,Adoption and Children in Care Division,ARC ADOPTION NORTH EAST LTD,4000250276,45312.17,Grants to educational establishments or not for profit organisations including other businesses
Department for Education,DEPARTMENT FOR EDUCATION,18/10/2016,ICT,Systems and Accountability Group,METHODS PROFESSIONAL SERVICES LTD,4000250217,11520.00,ICT Services
Department for Education,DEPARTMENT FOR EDUCATION,18/10/2016,Programme costs,"Assessment, Curriculum and General Qualifications Group",MATHEMATICS IN EDUCATION & INDUSTRY,4000250321,427000.00,Funding to deliver policies (excluding consultancy) paid to third parties via a service delivery contract
Department for Education,DEPARTMENT FOR EDUCATION,18/10/2016,Professional Services Other,Strategic Analysis and Research Group,NATIONAL CENTRE FOR SOCIAL RESEARCH,4000250249,29870.00,Research and evaluation activities
Department for Education,DEPARTMENT FOR EDUCATION,18/10/2016,Professional Services Consultancy and Contingent Labour,Systems and Accountability Group,METHODS PROFESSIONAL SERVICES LTD,4000250217,27252.00,Costs related to temporary workers
Department for Education,NATIONAL COLLEGE FOR TEACHING AND LEADERSHIP AGENCY,19/10/2016,Communications,Operations Directorate,CARAT,4000250368,57845.40,Marketing services
Department for Education,DEPARTMENT FOR EDUCATION,19/10/2016,Travel,Finance and Commercial Group,REDFERN TRAVEL LTD,4000250342,461704.96,"Staff business travel including air, coach, ferry, rail, taxi and car hire"
Department for Education,NATIONAL COLLEGE FOR TEACHING AND LEADERSHIP AGENCY,19/10/2016,Communications,Operations Directorate,CARAT,4000250368,637.37,Marketing services
Department for Education,DEPARTMENT FOR EDUCATION,19/10/2016,Programme costs,Children's Services Special Educational Needs Group,I CAN,4000250348,162489.00,Funding to deliver policies (excluding consultancy) paid to third parties via a service delivery contract
Department for Education,DEPARTMENT FOR EDUCATION,19/10/2016,Grants,Adoption and Children in Care Division,THE SHARE FOUNDATION 3RD PARTY TRUST,4000250351,50600.00,Grants to educational establishments or not for profit organisations including other businesses
Department for Education,DEPARTMENT FOR EDUCATION,19/10/2016,Grants,"Children's Services, Equalities and Communication Safeguarding Group",DONCASTER CHILDRENS TRUST,4000250358,213722.15,Grants to educational establishments or not for profit organisations including other businesses
Department for Education,DEPARTMENT FOR EDUCATION,19/10/2016,Grants,Academies Regional Delivery Group,BRIDGNORTH AREA SCHOOLS TRUST,4000250362,70000.00,Grants to educational establishments or not for profit organisations including other businesses
Department for Education,DEPARTMENT FOR EDUCATION,19/10/2016,Grants,Academies Regional Delivery Group,ASLACTON PRIMARY SCHOOL,4000250363,25000.00,Grants to educational establishments or not for profit organisations including other businesses
Department for Education,DEPARTMENT FOR EDUCATION,19/10/2016,Grants,Academies Regional Delivery Group,BERLESUNDA ACADEMY TRUST,4000250364,45000.00,Grants to educational establishments or not for profit organisations including other businesses
Department for Education,NATIONAL COLLEGE FOR TEACHING AND LEADERSHIP AGENCY,19/10/2016,Communications,Delivery Directorate,CARAT,4000250368,2053.46,Marketing services
Department for Education,DEPARTMENT FOR EDUCATION,19/10/2016,Grants,"Children's Services, Equalities and Communication Safeguarding Group",CORAM CLC,4000250369,25504.08,Grants to educational establishments or not for profit organisations including other businesses
Department for Education,DEPARTMENT FOR EDUCATION,19/10/2016,Grants,Academies Regional Delivery Group,THE WHITE HORSE FEDERATION,4000250381,25000.00,Grants to educational establishments or not for profit organisations including other businesses
Department for Education,DEPARTMENT FOR EDUCATION,19/10/2016,Grants,Academies Regional Delivery Group,PRIMARY FIRST TRUST,4000250382,49951.00,Grants to educational establishments or not for profit organisations including other businesses
Department for Education,DEPARTMENT FOR EDUCATION,19/10/2016,Programme costs,Children's Services Special Educational Needs Group,THE LONDON LEADERSHIP STRATEGY,4000250391,216145.80,Funding to deliver policies (excluding consultancy) paid to third parties via a service delivery contract
Department for Education,DEPARTMENT FOR EDUCATION,19/10/2016,Grants,Academies Regional Delivery Group,DIOCESE OF ELY MULTI ACADEMY TRUST,4000250393,140000.00,Grants to educational establishments or not for profit organisations including other businesses
Department for Education,DEPARTMENT FOR EDUCATION,19/10/2016,Grants,Academies Regional Delivery Group,DIOCESE OF ELY MULTI ACADEMY TRUST,4000250393,50000.00,Grants to educational establishments or not for profit organisations including other businesses
Department for Education,DEPARTMENT FOR EDUCATION,19/10/2016,Grants,Academies Regional Delivery Group,THE GOOD SHEPHERD TRUST,4000250395,25000.00,Grants to educational establishments or not for profit organisations including other businesses
Department for Education,DEPARTMENT FOR EDUCATION,19/10/2016,Grants,Adoption and Children in Care Division,AFTER ADOPTION,4000250404,28977.71,Grants to educational establishments or not for profit organisations including other businesses
Department for Education,DEPARTMENT FOR EDUCATION,19/10/2016,Professional Services Consultancy and Contingent Labour,Information Technology Group,TRUSTMARQUE SOLUTIONS LTD,4000250406,74985.83,"Fees / expenses of professionals such as auditors, accountants, lawyers, etc. engaged to provide advice or opinion on how to affect something"
Department for Education,DEPARTMENT FOR EDUCATION,19/10/2016,Programme costs,Children's Services Special Educational Needs Group,ACHIEVEMENT FOR ALL 3AS LTD,4000250415,39755.00,Funding to deliver policies (excluding consultancy) paid to third parties via a service delivery contract
Department for Education,NATIONAL COLLEGE FOR TEACHING AND LEADERSHIP AGENCY,20/10/2016,Grants,Delivery Directorate,KESGRAVE HIGH SCHOOL TS ACCOUNT,4000250478,34800.00,Grants to educational establishments or not for profit organisations including other businesses
Department for Education,NATIONAL COLLEGE FOR TEACHING AND LEADERSHIP AGENCY,20/10/2016,Grants,Delivery Directorate,TBAP TRUST,4000250481,40000.00,Grants to educational establishments or not for profit organisations including other businesses
Department for Education,NATIONAL COLLEGE FOR TEACHING AND LEADERSHIP AGENCY,20/10/2016,Grants,Delivery Directorate,TBAP TRUST,4000250481,6000.00,Grants to educational establishments or not for profit organisations including other businesses
Department for Education,NATIONAL COLLEGE FOR TEACHING AND LEADERSHIP AGENCY,20/10/2016,Grants,Delivery Directorate,UPLANDS PRIMARY SCHOOL,4000250482,40000.00,Grants to educational establishments or not for profit organisations including other businesses
Department for Education,NATIONAL COLLEGE FOR TEACHING AND LEADERSHIP AGENCY,20/10/2016,Grants,Delivery Directorate,SOUTHFIELDS ACADEMY TS ACCOUNT,4000250483,37219.00,Grants to educational establishments or not for profit organisations including other businesses
Department for Education,NATIONAL COLLEGE FOR TEACHING AND LEADERSHIP AGENCY,20/10/2016,Grants,Delivery Directorate,SOUTHFIELDS ACADEMY TS ACCOUNT,4000250483,6000.00,Grants to educational establishments or not for profit organisations including other businesses
Department for Education,NATIONAL COLLEGE FOR TEACHING AND LEADERSHIP AGENCY,20/10/2016,Grants,Delivery Directorate,RIPLEY ST THOMAS CE HIGH SCHOOL TS ACCOUNT,4000250484,36175.00,Grants to educational establishments or not for profit organisations including other businesses
Department for Education,NATIONAL COLLEGE FOR TEACHING AND LEADERSHIP AGENCY,20/10/2016,Grants,Delivery Directorate,RIPLEY ST THOMAS CE HIGH SCHOOL TS ACCOUNT,4000250484,977.00,Grants to educational establishments or not for profit organisations including other businesses
Department for Education,NATIONAL COLLEGE FOR TEACHING AND LEADERSHIP AGENCY,20/10/2016,Grants,Delivery Directorate,RIPLEY ST THOMAS CE HIGH SCHOOL TS ACCOUNT,4000250484,6000.00,Grants to educational establishments or not for profit organisations including other businesses
Department for Education,NATIONAL COLLEGE FOR TEACHING AND LEADERSHIP AGENCY,20/10/2016,Grants,Delivery Directorate,CHURCHFIELD PRIMARY SCHOOL,4000250485,40000.00,Grants to educational establishments or not for profit organisations including other businesses
Department for Education,NATIONAL COLLEGE FOR TEACHING AND LEADERSHIP AGENCY,20/10/2016,Grants,Delivery Directorate,CHURCHFIELD PRIMARY SCHOOL,4000250485,6000.00,Grants to educational establishments or not for profit organisations including other businesses
Department for Education,NATIONAL COLLEGE FOR TEACHING AND LEADERSHIP AGENCY,20/10/2016,Grants,Delivery Directorate,DILKES ACADEMY TS ACCOUNT,4000250487,40000.00,Grants to educational establishments or not for profit organisations including other businesses
Department for Education,NATIONAL COLLEGE FOR TEACHING AND LEADERSHIP AGENCY,20/10/2016,Grants,Delivery Directorate,HARTSHOLME ACADEMY TS ACCOUNT,4000250488,40000.00,Grants to educational establishments or not for profit organisations including other businesses
Department for Education,NATIONAL COLLEGE FOR TEACHING AND LEADERSHIP AGENCY,20/10/2016,Grants,Delivery Directorate,HARTSHOLME ACADEMY TS ACCOUNT,4000250488,2000.00,Grants to educational establishments or not for profit organisations including other businesses
Department for Education,NATIONAL COLLEGE FOR TEACHING AND LEADERSHIP AGENCY,20/10/2016,Grants,Delivery Directorate,HARTSHOLME ACADEMY TS ACCOUNT,4000250488,6000.00,Grants to educational establishments or not for profit organisations including other businesses
Department for Education,NATIONAL COLLEGE FOR TEACHING AND LEADERSHIP AGENCY,20/10/2016,Grants,Delivery Directorate,CALUDON CASTLE SCHOOL TS ACCOUNT,4000250489,26375.00,Grants to educational establishments or not for profit organisations including other businesses
Department for Education,NATIONAL COLLEGE FOR TEACHING AND LEADERSHIP AGENCY,20/10/2016,Grants,Delivery Directorate,CALUDON CASTLE SCHOOL TS ACCOUNT,4000250489,6000.00,Grants to educational establishments or not for profit organisations including other businesses
Department for Education,NATIONAL COLLEGE FOR TEACHING AND LEADERSHIP AGENCY,20/10/2016,Grants,Delivery Directorate,DYKE HOUSE SPORTS & TECHNOLOGY COLLEGE,4000250497,31000.00,Grants to educational establishments or not for profit organisations including other businesses
Department for Education,NATIONAL COLLEGE FOR TEACHING AND LEADERSHIP AGENCY,20/10/2016,Grants,Delivery Directorate,DYKE HOUSE SPORTS & TECHNOLOGY COLLEGE,4000250497,50000.00,Grants to educational establishments or not for profit organisations including other businesses
Department for Education,NATIONAL COLLEGE FOR TEACHING AND LEADERSHIP AGENCY,20/10/2016,Grants,Delivery Directorate,DYKE HOUSE SPORTS & TECHNOLOGY COLLEGE,4000250497,6000.00,Grants to educational establishments or not for profit organisations including other businesses
Department for Education,NATIONAL COLLEGE FOR TEACHING AND LEADERSHIP AGENCY,20/10/2016,Grants,Delivery Directorate,ST MARYS CATHOLIC PRIMARY SCHOOL,4000250499,40000.00,Grants to educational establishments or not for profit organisations including other businesses
Department for Education,NATIONAL COLLEGE FOR TEACHING AND LEADERSHIP AGENCY,20/10/2016,Grants,Delivery Directorate,ST MARYS CATHOLIC PRIMARY SCHOOL,4000250499,6000.00,Grants to educational establishments or not for profit organisations including other businesses
Department for Education,NATIONAL COLLEGE FOR TEACHING AND LEADERSHIP AGENCY,20/10/2016,Grants,Delivery Directorate,THE PRIORY FEDERATION OF ACADEMIES TRUST,4000250513,27370.00,Grants to educational establishments or not for profit organisations including other businesses
Department for Education,NATIONAL COLLEGE FOR TEACHING AND LEADERSHIP AGENCY,20/10/2016,Grants,Delivery Directorate,THE PRIORY FEDERATION OF ACADEMIES TRUST,4000250513,40000.00,Grants to educational establishments or not for profit organisations including other businesses
Department for Education,NATIONAL COLLEGE FOR TEACHING AND LEADERSHIP AGENCY,20/10/2016,Grants,Delivery Directorate,THE PRIORY FEDERATION OF ACADEMIES TRUST,4000250513,6000.00,Grants to educational establishments or not for profit organisations including other businesses
Department for Education,NATIONAL COLLEGE FOR TEACHING AND LEADERSHIP AGENCY,20/10/2016,Grants,Delivery Directorate,RYDERS HAYES COMMUNITY SCHOOL,4000250516,40000.00,Grants to educational establishments or not for profit organisations including other businesses
Department for Education,NATIONAL COLLEGE FOR TEACHING AND LEADERSHIP AGENCY,20/10/2016,Grants,Delivery Directorate,PLANTSBROOK SCHOOL,4000250517,40000.00,Grants to educational establishments or not for profit organisations including other businesses
Department for Education,NATIONAL COLLEGE FOR TEACHING AND LEADERSHIP AGENCY,20/10/2016,Grants,Delivery Directorate,PLANTSBROOK SCHOOL,4000250517,1782.00,Grants to educational establishments or not for profit organisations including other businesses
Department for Education,NATIONAL COLLEGE FOR TEACHING AND LEADERSHIP AGENCY,20/10/2016,Grants,Delivery Directorate,PLANTSBROOK SCHOOL,4000250517,6000.00,Grants to educational establishments or not for profit organisations including other businesses
Department for Education,NATIONAL COLLEGE FOR TEACHING AND LEADERSHIP AGENCY,20/10/2016,Grants,Delivery Directorate,HOLY FAMILY CATHOLIC PRIMARY SCHOOL,4000250521,50000.00,Grants to educational establishments or not for profit organisations including other businesses
Department for Education,NATIONAL COLLEGE FOR TEACHING AND LEADERSHIP AGENCY,20/10/2016,Grants,Delivery Directorate,HOLY FAMILY CATHOLIC PRIMARY SCHOOL,4000250521,6000.00,Grants to educational establishments or not for profit organisations including other businesses
Department for Education,NATIONAL COLLEGE FOR TEACHING AND LEADERSHIP AGENCY,20/10/2016,Grants,Delivery Directorate,LINCROFT MIDDLE SCHOOL,4000250525,40000.00,Grants to educational establishments or not for profit organisations including other businesses
Department for Education,NATIONAL COLLEGE FOR TEACHING AND LEADERSHIP AGENCY,20/10/2016,Grants,Delivery Directorate,PICKHURST INFANT SCHOOL,4000250528,40000.00,Grants to educational establishments or not for profit organisations including other businesses
Department for Education,NATIONAL COLLEGE FOR TEACHING AND LEADERSHIP AGENCY,20/10/2016,Grants,Delivery Directorate,PICKHURST INFANT SCHOOL,4000250528,6000.00,Grants to educational establishments or not for profit organisations including other businesses
Department for Education,NATIONAL COLLEGE FOR TEACHING AND LEADERSHIP AGENCY,20/10/2016,Grants,Delivery Directorate,THE COLNE COMMUNITY SCHOOL & COLLEGE,4000250529,15000.00,Grants to educational establishments or not for profit organisations including other businesses
Department for Education,NATIONAL COLLEGE FOR TEACHING AND LEADERSHIP AGENCY,20/10/2016,Grants,Delivery Directorate,THE COLNE COMMUNITY SCHOOL & COLLEGE,4000250529,40000.00,Grants to educational establishments or not for profit organisations including other businesses
Department for Education,NATIONAL COLLEGE FOR TEACHING AND LEADERSHIP AGENCY,20/10/2016,Grants,Delivery Directorate,THE COLNE COMMUNITY SCHOOL & COLLEGE,4000250529,6000.00,Grants to educational establishments or not for profit organisations including other businesses
Department for Education,NATIONAL COLLEGE FOR TEACHING AND LEADERSHIP AGENCY,20/10/2016,Grants,Delivery Directorate,ST JOSEPH NURSERY,4000250530,40000.00,Grants to educational establishments or not for profit organisations including other businesses
Department for Education,NATIONAL COLLEGE FOR TEACHING AND LEADERSHIP AGENCY,20/10/2016,Grants,Delivery Directorate,ST JOSEPH NURSERY,4000250530,6000.00,Grants to educational establishments or not for profit organisations including other businesses
Department for Education,NATIONAL COLLEGE FOR TEACHING AND LEADERSHIP AGENCY,20/10/2016,Grants,Delivery Directorate,ST JOHN THE BAPTIST SCHOOL,4000250531,21200.00,Grants to educational establishments or not for profit organisations including other businesses
Department for Education,NATIONAL COLLEGE FOR TEACHING AND LEADERSHIP AGENCY,20/10/2016,Grants,Delivery Directorate,ST JOHN THE BAPTIST SCHOOL,4000250531,40000.00,Grants to educational establishments or not for profit organisations including other businesses
Department for Education,NATIONAL COLLEGE FOR TEACHING AND LEADERSHIP AGENCY,20/10/2016,Grants,Delivery Directorate,ST JOHN THE BAPTIST SCHOOL,4000250531,6000.00,Grants to educational establishments or not for profit organisations including other businesses
Department for Education,NATIONAL COLLEGE FOR TEACHING AND LEADERSHIP AGENCY,20/10/2016,Grants,Delivery Directorate,THORPE ST ANDREW SCHOOL,4000250551,13000.00,Grants to educational establishments or not for profit organisations including other businesses
Department for Education,NATIONAL COLLEGE FOR TEACHING AND LEADERSHIP AGENCY,20/10/2016,Grants,Delivery Directorate,THORPE ST ANDREW SCHOOL,4000250551,40000.00,Grants to educational establishments or not for profit organisations including other businesses
Department for Education,NATIONAL COLLEGE FOR TEACHING AND LEADERSHIP AGENCY,20/10/2016,Grants,Delivery Directorate,CARDINAL HUME CATHOLIC SCHOOL,4000250552,40000.00,Grants to educational establishments or not for profit organisations including other businesses
Department for Education,NATIONAL COLLEGE FOR TEACHING AND LEADERSHIP AGENCY,20/10/2016,Grants,Delivery Directorate,CARDINAL HUME CATHOLIC SCHOOL,4000250552,6000.00,Grants to educational establishments or not for profit organisations including other businesses
Department for Education,NATIONAL COLLEGE FOR TEACHING AND LEADERSHIP AGENCY,20/10/2016,Grants,Delivery Directorate,HIGHVIEW SCHOOL,4000250554,50000.00,Grants to educational establishments or not for profit organisations including other businesses
Department for Education,NATIONAL COLLEGE FOR TEACHING AND LEADERSHIP AGENCY,20/10/2016,Grants,Delivery Directorate,HIGHVIEW SCHOOL,4000250554,6000.00,Grants to educational establishments or not for profit organisations including other businesses
Department for Education,NATIONAL COLLEGE FOR TEACHING AND LEADERSHIP AGENCY,20/10/2016,Grants,Delivery Directorate,PORTSWOOD PRIMARY SCHOOL TS ACCOUNT,4000250555,40000.00,Grants to educational establishments or not for profit organisations including other businesses
Department for Education,NATIONAL COLLEGE FOR TEACHING AND LEADERSHIP AGENCY,20/10/2016,Grants,Delivery Directorate,PORTSWOOD PRIMARY SCHOOL TS ACCOUNT,4000250555,6000.00,Grants to educational establishments or not for profit organisations including other businesses
Department for Education,NATIONAL COLLEGE FOR TEACHING AND LEADERSHIP AGENCY,20/10/2016,Grants,Delivery Directorate,HAREFIELD SCITT,4000250562,40000.00,Grants to educational establishments or not for profit organisations including other businesses
Department for Education,NATIONAL COLLEGE FOR TEACHING AND LEADERSHIP AGENCY,20/10/2016,Grants,Delivery Directorate,HAREFIELD SCITT,4000250562,6000.00,Grants to educational establishments or not for profit organisations including other businesses
Department for Education,NATIONAL COLLEGE FOR TEACHING AND LEADERSHIP AGENCY,20/10/2016,Grants,Delivery Directorate,BOHUNT SCHOOL,4000250563,39875.00,Grants to educational establishments or not for profit organisations including other businesses
Department for Education,NATIONAL COLLEGE FOR TEACHING AND LEADERSHIP AGENCY,20/10/2016,Grants,Delivery Directorate,BOHUNT SCHOOL,4000250563,6000.00,Grants to educational establishments or not for profit organisations including other businesses
Department for Education,NATIONAL COLLEGE FOR TEACHING AND LEADERSHIP AGENCY,20/10/2016,Grants,Delivery Directorate,PRINCE HENRYS HIGH SCHOOL,4000250568,40000.00,Grants to educational establishments or not for profit organisations including other businesses
Department for Education,NATIONAL COLLEGE FOR TEACHING AND LEADERSHIP AGENCY,20/10/2016,Grants,Delivery Directorate,PRINCE HENRYS HIGH SCHOOL,4000250568,9000.00,Grants to educational establishments or not for profit organisations including other businesses
Department for Education,NATIONAL COLLEGE FOR TEACHING AND LEADERSHIP AGENCY,20/10/2016,Grants,Delivery Directorate,ST MARYS CE PRIMARY SCHOOL B20,4000250571,40000.00,Grants to educational establishments or not for profit organisations including other businesses
Department for Education,NATIONAL COLLEGE FOR TEACHING AND LEADERSHIP AGENCY,20/10/2016,Grants,Delivery Directorate,ST MARYS CE PRIMARY SCHOOL B20,4000250571,6000.00,Grants to educational establishments or not for profit organisations including other businesses
Department for Education,DEPARTMENT FOR EDUCATION,20/10/2016,Programme costs,"Assessment, Curriculum and General Qualifications Group",HOPSCOTCH CONSULTING LTD,4000250574,26568.18,Funding to deliver policies (excluding consultancy) paid to third parties via a service delivery contract
Department for Education,DEPARTMENT FOR EDUCATION,20/10/2016,Programme costs,"Assessment, Curriculum and General Qualifications Group",TRIBAL EDUCATION LIMITED,4000250581,167114.40,Funding to deliver policies (excluding consultancy) paid to third parties via a service delivery contract
Department for Education,NATIONAL COLLEGE FOR TEACHING AND LEADERSHIP AGENCY,20/10/2016,Grants,Delivery Directorate,ST ANDREWS CE PRIMARY SCHOOL,4000250583,50000.00,Grants to educational establishments or not for profit organisations including other businesses
Department for Education,NATIONAL COLLEGE FOR TEACHING AND LEADERSHIP AGENCY,20/10/2016,Grants,Delivery Directorate,ST ANDREWS CE PRIMARY SCHOOL,4000250583,6000.00,Grants to educational establishments or not for profit organisations including other businesses
Department for Education,DEPARTMENT FOR EDUCATION,20/10/2016,Professional Services Other,Children in Care Division,GOVERNMENT LEGAL DEPARTMENT,4000250584,4476.00,Legal services provided by Treasury Solicitor 
Department for Education,DEPARTMENT FOR EDUCATION,20/10/2016,Professional Services Other,"Independent Education, Safeguarding in Schools and Counter Extremism Group",GOVERNMENT LEGAL DEPARTMENT,4000250584,3332.00,Legal services provided by Treasury Solicitor 
Department for Education,DEPARTMENT FOR EDUCATION,20/10/2016,Professional Services Consultancy and Contingent Labour,Legal Advisers Office,GOVERNMENT LEGAL DEPARTMENT,4000250584,950161.00,Legal advisory services from the Government Legal Department including the provision of external specialist advice and opinion
Department for Education,NATIONAL COLLEGE FOR TEACHING AND LEADERSHIP AGENCY,20/10/2016,Grants,Delivery Directorate,FAIRLAWN PRIMARY SCHOOL,4000250587,40000.00,Grants to educational establishments or not for profit organisations including other businesses
Department for Education,NATIONAL COLLEGE FOR TEACHING AND LEADERSHIP AGENCY,20/10/2016,Grants,Delivery Directorate,BECKFOOT SCHOOL,4000250588,50000.00,Grants to educational establishments or not for profit organisations including other businesses
Department for Education,NATIONAL COLLEGE FOR TEACHING AND LEADERSHIP AGENCY,20/10/2016,Grants,Delivery Directorate,BECKFOOT SCHOOL,4000250588,93.00,Grants to educational establishments or not for profit organisations including other businesses
Department for Education,NATIONAL COLLEGE FOR TEACHING AND LEADERSHIP AGENCY,20/10/2016,Grants,Delivery Directorate,BECKFOOT SCHOOL,4000250588,6000.00,Grants to educational establishments or not for profit organisations including other businesses
Department for Education,DEPARTMENT FOR EDUCATION,20/10/2016,Programme costs,"Assessment, Curriculum and General Qualifications Group",EDUCATION DEVELOPMENT TRUST,4000250593,110550.00,Funding to deliver policies (excluding consultancy) paid to third parties via a service delivery contract
Department for Education,NATIONAL COLLEGE FOR TEACHING AND LEADERSHIP AGENCY,20/10/2016,Grants,Delivery Directorate,WAKEFIELD CITY ACADEMY,4000250603,40000.00,Grants to educational establishments or not for profit organisations including other businesses
Department for Education,NATIONAL COLLEGE FOR TEACHING AND LEADERSHIP AGENCY,20/10/2016,Grants,Delivery Directorate,WAKEFIELD CITY ACADEMY,4000250603,6000.00,Grants to educational establishments or not for profit organisations including other businesses
Department for Education,NATIONAL COLLEGE FOR TEACHING AND LEADERSHIP AGENCY,20/10/2016,Grants,Delivery Directorate,ORMISTON VENTURE ACADEMY,4000250604,29625.00,Grants to educational establishments or not for profit organisations including other businesses
Department for Education,NATIONAL COLLEGE FOR TEACHING AND LEADERSHIP AGENCY,20/10/2016,Grants,Delivery Directorate,ORMISTON VENTURE ACADEMY,4000250604,6000.00,Grants to educational establishments or not for profit organisations including other businesses
Department for Education,NATIONAL COLLEGE FOR TEACHING AND LEADERSHIP AGENCY,20/10/2016,Grants,Delivery Directorate,MOUNT STREET INFANT & NURSERY SCHOOL,4000250613,40000.00,Grants to educational establishments or not for profit organisations including other businesses
Department for Education,NATIONAL COLLEGE FOR TEACHING AND LEADERSHIP AGENCY,20/10/2016,Grants,Delivery Directorate,MOUNT STREET INFANT & NURSERY SCHOOL,4000250613,6000.00,Grants to educational establishments or not for profit organisations including other businesses
Department for Education,NATIONAL COLLEGE FOR TEACHING AND LEADERSHIP AGENCY,20/10/2016,Grants,Delivery Directorate,CHIPSTEAD VALLEY PRIMARY SCHOOL,4000250614,40000.00,Grants to educational establishments or not for profit organisations including other businesses
Department for Education,NATIONAL COLLEGE FOR TEACHING AND LEADERSHIP AGENCY,20/10/2016,Grants,Delivery Directorate,CHIPSTEAD VALLEY PRIMARY SCHOOL,4000250614,6000.00,Grants to educational establishments or not for profit organisations including other businesses
Department for Education,NATIONAL COLLEGE FOR TEACHING AND LEADERSHIP AGENCY,20/10/2016,Grants,Delivery Directorate,KING EDWARD VI HIGH SCHOOL FOR GIRLS,4000250621,40000.00,Grants to educational establishments or not for profit organisations including other businesses
Department for Education,NATIONAL COLLEGE FOR TEACHING AND LEADERSHIP AGENCY,20/10/2016,Grants,Delivery Directorate,THE SOUTHWATER INFANT ACADEMY,4000250623,50000.00,Grants to educational establishments or not for profit organisations including other businesses
Department for Education,NATIONAL COLLEGE FOR TEACHING AND LEADERSHIP AGENCY,20/10/2016,Grants,Delivery Directorate,THE SOUTHWATER INFANT ACADEMY,4000250623,6000.00,Grants to educational establishments or not for profit organisations including other businesses
Department for Education,NATIONAL COLLEGE FOR TEACHING AND LEADERSHIP AGENCY,20/10/2016,Grants,Delivery Directorate,THE BISHOP WHEELER CATHOLIC ACADEMY TRUST,4000250624,40000.00,Grants to educational establishments or not for profit organisations including other businesses
Department for Education,NATIONAL COLLEGE FOR TEACHING AND LEADERSHIP AGENCY,20/10/2016,Grants,Delivery Directorate,THE BISHOP WHEELER CATHOLIC ACADEMY TRUST,4000250624,2000.00,Grants to educational establishments or not for profit organisations including other businesses
Department for Education,NATIONAL COLLEGE FOR TEACHING AND LEADERSHIP AGENCY,20/10/2016,Grants,Delivery Directorate,THE BISHOP WHEELER CATHOLIC ACADEMY TRUST,4000250624,6000.00,Grants to educational establishments or not for profit organisations including other businesses
Department for Education,NATIONAL COLLEGE FOR TEACHING AND LEADERSHIP AGENCY,20/10/2016,Grants,Delivery Directorate,BROADMEADOW SPECIAL SCHOOL,4000250626,50000.00,Grants to educational establishments or not for profit organisations including other businesses
Department for Education,NATIONAL COLLEGE FOR TEACHING AND LEADERSHIP AGENCY,20/10/2016,Grants,Delivery Directorate,BROADMEADOW SPECIAL SCHOOL,4000250626,6000.00,Grants to educational establishments or not for profit organisations including other businesses
Department for Education,NATIONAL COLLEGE FOR TEACHING AND LEADERSHIP AGENCY,20/10/2016,Grants,Delivery Directorate,BLACKBURN THE REDEEMER CE SCHOOL,4000250630,40000.00,Grants to educational establishments or not for profit organisations including other businesses
Department for Education,NATIONAL COLLEGE FOR TEACHING AND LEADERSHIP AGENCY,20/10/2016,Grants,Delivery Directorate,BLACKBURN THE REDEEMER CE SCHOOL,4000250630,6000.00,Grants to educational establishments or not for profit organisations including other businesses
Department for Education,NATIONAL COLLEGE FOR TEACHING AND LEADERSHIP AGENCY,20/10/2016,Grants,Delivery Directorate,THE ROWAN SCHOOL,4000250635,37200.00,Grants to educational establishments or not for profit organisations including other businesses
Department for Education,NATIONAL COLLEGE FOR TEACHING AND LEADERSHIP AGENCY,20/10/2016,Grants,Delivery Directorate,THE ROWAN SCHOOL,4000250635,6000.00,Grants to educational establishments or not for profit organisations including other businesses
Department for Education,NATIONAL COLLEGE FOR TEACHING AND LEADERSHIP AGENCY,20/10/2016,Grants,Delivery Directorate,THOMAS TELFORD SCHOOL,4000250637,31600.00,Grants to educational establishments or not for profit organisations including other businesses
Department for Education,NATIONAL COLLEGE FOR TEACHING AND LEADERSHIP AGENCY,20/10/2016,Grants,Delivery Directorate,THOMAS TELFORD SCHOOL,4000250637,6000.00,Grants to educational establishments or not for profit organisations including other businesses
Department for Education,NATIONAL COLLEGE FOR TEACHING AND LEADERSHIP AGENCY,20/10/2016,Grants,Delivery Directorate,VALENTINES HIGH SCHOOL,4000250638,36208.00,Grants to educational establishments or not for profit organisations including other businesses
Department for Education,NATIONAL COLLEGE FOR TEACHING AND LEADERSHIP AGENCY,20/10/2016,Grants,Delivery Directorate,VALENTINES HIGH SCHOOL,4000250638,950.00,Grants to educational establishments or not for profit organisations including other businesses
Department for Education,NATIONAL COLLEGE FOR TEACHING AND LEADERSHIP AGENCY,20/10/2016,Grants,Delivery Directorate,ST BEDE'S CATHOLIC SCHOOL & SIXTH FORM CENTRE,4000250642,52500.00,Grants to educational establishments or not for profit organisations including other businesses
Department for Education,NATIONAL COLLEGE FOR TEACHING AND LEADERSHIP AGENCY,20/10/2016,Grants,Delivery Directorate,ST BEDE'S CATHOLIC SCHOOL & SIXTH FORM CENTRE,4000250642,40000.00,Grants to educational establishments or not for profit organisations including other businesses
Department for Education,NATIONAL COLLEGE FOR TEACHING AND LEADERSHIP AGENCY,20/10/2016,Grants,Delivery Directorate,ST BEDE'S CATHOLIC SCHOOL & SIXTH FORM CENTRE,4000250642,6000.00,Grants to educational establishments or not for profit organisations including other businesses
Department for Education,NATIONAL COLLEGE FOR TEACHING AND LEADERSHIP AGENCY,20/10/2016,Grants,Delivery Directorate,WOODFIELD SCHOOL,4000250643,28500.00,Grants to educational establishments or not for profit organisations including other businesses
Department for Education,NATIONAL COLLEGE FOR TEACHING AND LEADERSHIP AGENCY,20/10/2016,Grants,Delivery Directorate,PETER PAN NURSERY SCHOOL,4000250644,40000.00,Grants to educational establishments or not for profit organisations including other businesses
Department for Education,NATIONAL COLLEGE FOR TEACHING AND LEADERSHIP AGENCY,20/10/2016,Grants,Delivery Directorate,PETER PAN NURSERY SCHOOL,4000250644,6000.00,Grants to educational establishments or not for profit organisations including other businesses
Department for Education,NATIONAL COLLEGE FOR TEACHING AND LEADERSHIP AGENCY,20/10/2016,Grants,Delivery Directorate,KINGSTON PRIMARY SCHOOL,4000250647,40000.00,Grants to educational establishments or not for profit organisations including other businesses
Department for Education,NATIONAL COLLEGE FOR TEACHING AND LEADERSHIP AGENCY,20/10/2016,Grants,Delivery Directorate,KINGSTON PRIMARY SCHOOL,4000250647,6000.00,Grants to educational establishments or not for profit organisations including other businesses
Department for Education,DEPARTMENT FOR EDUCATION,20/10/2016,Programme costs,Post 16 and Disadvantage Group,RURAL PAYMENTS AGENCY,4000250648,53855.70,Funding to deliver policies (excluding consultancy) paid to third parties via a service delivery contract
Department for Education,NATIONAL COLLEGE FOR TEACHING AND LEADERSHIP AGENCY,20/10/2016,Grants,Delivery Directorate,ST THOMAS OF CANTERBURY SCHOOL A CATHOLIC VOLUNTARY ACADEMY,4000250652,50000.00,Grants to educational establishments or not for profit organisations including other businesses
Department for Education,NATIONAL COLLEGE FOR TEACHING AND LEADERSHIP AGENCY,20/10/2016,Grants,Delivery Directorate,ST THOMAS OF CANTERBURY SCHOOL A CATHOLIC VOLUNTARY ACADEMY,4000250652,6000.00,Grants to educational establishments or not for profit organisations including other businesses
Department for Education,DEPARTMENT FOR EDUCATION,20/10/2016,Programme costs,Children's Services Special Educational Needs Group,BRITISH DYSLEXIA ASSOCIATION,4000250655,162680.98,Funding to deliver policies (excluding consultancy) paid to third parties via a service delivery contract
Department for Education,NATIONAL COLLEGE FOR TEACHING AND LEADERSHIP AGENCY,20/10/2016,Grants,Delivery Directorate,ST JOSEPHS CATHOLIC PRIMARY SCHOOL,4000250659,40000.00,Grants to educational establishments or not for profit organisations including other businesses
Department for Education,NATIONAL COLLEGE FOR TEACHING AND LEADERSHIP AGENCY,20/10/2016,Grants,Delivery Directorate,ST JOSEPHS CATHOLIC PRIMARY SCHOOL,4000250659,6000.00,Grants to educational establishments or not for profit organisations including other businesses
Department for Education,NATIONAL COLLEGE FOR TEACHING AND LEADERSHIP AGENCY,20/10/2016,Grants,Delivery Directorate,WHITEHILL COMMUNITY ACADEMY,4000250660,40000.00,Grants to educational establishments or not for profit organisations including other businesses
Department for Education,NATIONAL COLLEGE FOR TEACHING AND LEADERSHIP AGENCY,20/10/2016,Grants,Delivery Directorate,WHITEHILL COMMUNITY ACADEMY,4000250660,6000.00,Grants to educational establishments or not for profit organisations including other businesses
Department for Education,NATIONAL COLLEGE FOR TEACHING AND LEADERSHIP AGENCY,20/10/2016,Grants,Delivery Directorate,REDCLIFFE CHILDRENS CENTRE,4000250661,40000.00,Grants to educational establishments or not for profit organisations including other businesses
Department for Education,NATIONAL COLLEGE FOR TEACHING AND LEADERSHIP AGENCY,20/10/2016,Grants,Delivery Directorate,REDCLIFFE CHILDRENS CENTRE,4000250661,6000.00,Grants to educational establishments or not for profit organisations including other businesses
Department for Education,NATIONAL COLLEGE FOR TEACHING AND LEADERSHIP AGENCY,20/10/2016,Grants,Delivery Directorate,WINDSOR GIRLS SCHOOL,4000250664,40000.00,Grants to educational establishments or not for profit organisations including other businesses
Department for Education,NATIONAL COLLEGE FOR TEACHING AND LEADERSHIP AGENCY,20/10/2016,Grants,Delivery Directorate,WINDSOR GIRLS SCHOOL,4000250664,6000.00,Grants to educational establishments or not for profit organisations including other businesses
Department for Education,NATIONAL COLLEGE FOR TEACHING AND LEADERSHIP AGENCY,20/10/2016,Grants,Delivery Directorate,FOREST WAY SCHOOL,4000250667,40000.00,Grants to educational establishments or not for profit organisations including other businesses
Department for Education,NATIONAL COLLEGE FOR TEACHING AND LEADERSHIP AGENCY,20/10/2016,Grants,Delivery Directorate,FOREST WAY SCHOOL,4000250667,6000.00,Grants to educational establishments or not for profit organisations including other businesses
Department for Education,NATIONAL COLLEGE FOR TEACHING AND LEADERSHIP AGENCY,20/10/2016,Grants,Delivery Directorate,HORNDEAN INFANT SCHOOL,4000250672,40000.00,Grants to educational establishments or not for profit organisations including other businesses
Department for Education,NATIONAL COLLEGE FOR TEACHING AND LEADERSHIP AGENCY,20/10/2016,Grants,Delivery Directorate,ASHFIELD ACADEMY,4000250675,40000.00,Grants to educational establishments or not for profit organisations including other businesses
Department for Education,NATIONAL COLLEGE FOR TEACHING AND LEADERSHIP AGENCY,20/10/2016,Grants,Delivery Directorate,ASHFIELD ACADEMY,4000250675,6000.00,Grants to educational establishments or not for profit organisations including other businesses
Department for Education,NATIONAL COLLEGE FOR TEACHING AND LEADERSHIP AGENCY,20/10/2016,Grants,Delivery Directorate,THE GLYN LEARNING FOUNDATION,4000250681,40000.00,Grants to educational establishments or not for profit organisations including other businesses
Department for Education,NATIONAL COLLEGE FOR TEACHING AND LEADERSHIP AGENCY,20/10/2016,Grants,Delivery Directorate,THE GLYN LEARNING FOUNDATION,4000250681,6000.00,Grants to educational establishments or not for profit organisations including other businesses
Department for Education,NATIONAL COLLEGE FOR TEACHING AND LEADERSHIP AGENCY,20/10/2016,Grants,Delivery Directorate,ROYAL WOOTTON BASSETT ACADEMY,4000250682,35000.00,Grants to educational establishments or not for profit organisations including other businesses
Department for Education,NATIONAL COLLEGE FOR TEACHING AND LEADERSHIP AGENCY,20/10/2016,Grants,Delivery Directorate,ROYAL WOOTTON BASSETT ACADEMY,4000250682,6000.00,Grants to educational establishments or not for profit organisations including other businesses
Department for Education,NATIONAL COLLEGE FOR TEACHING AND LEADERSHIP AGENCY,20/10/2016,Grants,Delivery Directorate,ASH GROVE ACADEMY,4000250684,40000.00,Grants to educational establishments or not for profit organisations including other businesses
Department for Education,NATIONAL COLLEGE FOR TEACHING AND LEADERSHIP AGENCY,20/10/2016,Grants,Delivery Directorate,ASH GROVE ACADEMY,4000250684,6000.00,Grants to educational establishments or not for profit organisations including other businesses
Department for Education,DEPARTMENT FOR EDUCATION,21/10/2016,ICT,Portfolio Management Board,CAPRICORN VENTIS LTD,4000250725,25397.47,ICT Services
Department for Education,DEPARTMENT FOR EDUCATION,21/10/2016,Facilities,Property Asset Management Group,GVA GRIMLEY LTD DCLG,4000250727,383378.00,"Business rates. From 2016/17 financial year DCLG and DECC will use the DfE's finance system, reflecting the shared services arrangement for property asset management that already exists across the three departments. DfE will recharge DCLG and DECC on a quarterly basis."
Department for Education,DEPARTMENT FOR EDUCATION,21/10/2016,Professional Services Consultancy and Contingent Labour,Portfolio Management Board,CAPGEMINI UK PLC,4000250784,84082.61,Costs related to temporary workers
Department for Education,DEPARTMENT FOR EDUCATION,21/10/2016,Communications,Communications Group,UCAS MEDIA LTD,4000250765,162000.00,Marketing services
Department for Education,NATIONAL COLLEGE FOR TEACHING AND LEADERSHIP AGENCY,21/10/2016,Programme costs,Delivery Directorate,TEACH FIRST INITIAL TEACHER DEVELOPMENT,4000250721,1557677.00,Funding to deliver policies (excluding consultancy) paid to third parties via a service delivery contract
Department for Education,DEPARTMENT FOR EDUCATION,21/10/2016,Professional Services Other,Strategic Analysis and Research Group,FFT EDUCATION LTD,4000250723,47816.00,Research and evaluation activities
Department for Education,STANDARDS AND TESTING AGENCY,21/10/2016,Programme costs,Test Development Division,CIVICA SERVICES LTD,4000250742,48142.60,Funding to deliver policies (excluding consultancy) paid to third parties via a service delivery contract
Department for Education,DEPARTMENT FOR EDUCATION,21/10/2016,Programme costs,"Assessment, Curriculum and General Qualifications Group",TRIBAL EDUCATION LIMITED,4000250774,156733.20,Funding to deliver policies (excluding consultancy) paid to third parties via a service delivery contract
Department for Education,DEPARTMENT FOR EDUCATION,21/10/2016,Professional Services Other,Strategic Analysis and Research Group,SMART SURVEY LTD,4000250731,54500.00,Research and evaluation activities
Department for Education,DEPARTMENT FOR EDUCATION,21/10/2016,Professional Services Consultancy and Contingent Labour,Portfolio Management Board,METHODS PROFESSIONAL SERVICES LTD,4000250724,11105.88,Costs related to temporary workers
Department for Education,NATIONAL COLLEGE FOR TEACHING AND LEADERSHIP AGENCY,21/10/2016,Communications,Operations Directorate,UCAS MEDIA LTD,4000250765,3144.00,"Publicity, advertising, media advertising campaigns (excluding recruitment adverts)"
Department for Education,DEPARTMENT FOR EDUCATION,21/10/2016,Professional Services Consultancy and Contingent Labour,Portfolio Management Board,METHODS PROFESSIONAL SERVICES LTD,4000250724,43620.00,Costs related to temporary workers
Department for Education,DEPARTMENT FOR EDUCATION,24/10/2016,ICT,Information Technology Group,BOTTOMLINE,4000250861,80901.34,ICT Services
Department for Education,DEPARTMENT FOR EDUCATION,24/10/2016,ICT,Information Technology Group,BRITISH TELECOMMUNICATIONS PLC,4000250844,50426.56,Telecoms facilities and services - telecom rentals
Department for Education,DEPARTMENT FOR EDUCATION,24/10/2016,Facilities,Property Asset Management Group,GVA GRIMLEY LTD,4000250833,484527.00,Business rates
Department for Education,DEPARTMENT FOR EDUCATION,24/10/2016,ICT,Portfolio Management Board,CAPGEMINI UK PLC,4000250856,26162.36,ICT Services
Department for Education,DEPARTMENT FOR EDUCATION,24/10/2016,Professional Services Consultancy and Contingent Labour,Information Technology Group,CAPGEMINI UK PLC,4000250856,1212.00,Costs related to temporary workers
Department for Education,DEPARTMENT FOR EDUCATION,24/10/2016,Grants,Academies Regional Delivery Group,THE CHALLENGER MULTI ACADEMY TRUST,4000250806,150000.00,Grants to educational establishments or not for profit organisations including other businesses
Department for Education,DEPARTMENT FOR EDUCATION,24/10/2016,Grants,Adoption and Children in Care Division,THE SHARE FOUNDATION 3RD PARTY TRUST,4000250808,64800.00,Grants to educational establishments or not for profit organisations including other businesses
Department for Education,DEPARTMENT FOR EDUCATION,24/10/2016,Programme costs,System Reform Group,EDUCATION & EMPLOYERS TASKFORCE,4000250813,248000.00,Funding to deliver policies (excluding consultancy) paid to third parties via a service delivery contract
Department for Education,DEPARTMENT FOR EDUCATION,24/10/2016,Grants,Academies Regional Delivery Group,THE ASHCOMBE SCHOOL,4000250818,25000.00,Grants to educational establishments or not for profit organisations including other businesses
Department for Education,DEPARTMENT FOR EDUCATION,24/10/2016,Grants,Academies Regional Delivery Group,HILL VIEW JUNIOR SCHOOL,4000250819,25000.00,Grants to educational establishments or not for profit organisations including other businesses
Department for Education,DEPARTMENT FOR EDUCATION,24/10/2016,Grants,Academies Regional Delivery Group,HILL VIEW INFANT SCHOOL,4000250820,25000.00,Grants to educational establishments or not for profit organisations including other businesses
Department for Education,DEPARTMENT FOR EDUCATION,24/10/2016,Professional Services Consultancy and Contingent Labour,Change Team,THE BOSTON CONSULTING GROUP,4000250826,499000.00,"Fees / expenses of professionals such as auditors, accountants, lawyers, etc. engaged to provide advice or opinion on how to affect something"
Department for Education,DEPARTMENT FOR EDUCATION,24/10/2016,Grants,Academies Regional Delivery Group,EBOR ACADEMY TRUST,4000250828,25000.00,Grants to educational establishments or not for profit organisations including other businesses
Department for Education,DEPARTMENT FOR EDUCATION,24/10/2016,Grants,Academies Regional Delivery Group,PRIMARY FIRST TRUST,4000250829,25000.00,Grants to educational establishments or not for profit organisations including other businesses
